Local authority department which incurred the expenditure,Service Division,Cost Centre,Summary of the Purpose of Expenditure,Expense Type,Expense Code,Detailed Expense Type,Date of Transaction,Transaction Number,Beneficiary,Merchant Category Number,Merchant Category,Gross Amount,VAT,Net Amount
Children and Young Peoples Services,Head of Looked After Provision Permanence and Care Leavers,085342,9 Cedar Drive Aycliffe,Supplies and Services,324117,Provisions,01-Mar-2018,000007077234005,STARBUCKS THINFORD,5499,Catering costs - provisions,11.45,0.00,11.45
Regeneration and Local Services,Technical Services,018700,Highways Services - Management and Administration,Income,720130,Fees and Charges,01-Mar-2018,000007077234031,JACKSONS LAW FIRM,8111,Fees-legal,225.00,0.00,225.00
Regeneration and Local Services,Direct Services,021242,Catering - County Hall,Supplies and Services,324117,Provisions,01-Mar-2018,000007077234037,JR HOLLAND FOODSERVICE,5422,Catering costs - provisions,106.54,0.00,106.54
Regeneration and Local Services,Direct Services,021242,Catering - County Hall,Supplies and Services,324117,Provisions,01-Mar-2018,000007077234041,JR HOLLAND FOODSERVICE,5422,Catering costs - provisions,13.20,0.00,13.20
Regeneration and Local Services,Culture & Sport,054812,Gala Theatre - Catering etc,Supplies and Services,324117,Provisions,01-Mar-2018,000007077234057,JR HOLLAND FOODSERVICE,5422,Catering costs - provisions,57.52,0.00,57.52
Regeneration and Local Services,Culture & Sport,054812,Gala Theatre - Catering etc,Supplies and Services,324117,Provisions,01-Mar-2018,000007077234059,JR HOLLAND FOODSERVICE,5422,Catering costs - provisions,6.44,0.00,6.44
Resources,Digital and Customer Services,065335,School Services - Implementations,Supplies and Services,304639,Equipment and Materials,01-Mar-2018,000007077234155,Amazon UK Marketplace,5942,Technicians-supplies,10.45,1.74,8.71
Resources,Digital and Customer Services,065335,School Services - Implementations,Supplies and Services,304639,Equipment and Materials,01-Mar-2018,000007077234157,Amazon UK Marketplace,5942,Technicians-supplies,16.95,2.83,14.12
Children and Young Peoples Services,Head of Looked After Provision Permanence and Care Leavers,085332,Middlestone Moor CU,Supplies and Services,364320,Grants to Voluntary Organisations,01-Mar-2018,000007077234167,WILKO RETAIL LIMIT,5722,Accommodation assistance,2.25,0.00,2.25
Regeneration and Local Services,Direct Services,021234,Catering - Locomotion,Supplies and Services,324117,Provisions,01-Mar-2018,000007077234171,JR HOLLAND FOODSERVICE,5422,Catering costs - provisions,62.70,0.00,62.70
Regeneration and Local Services,Direct Services,021234,Catering - Locomotion,Supplies and Services,324117,Provisions,01-Mar-2018,000007077234175,JR HOLLAND FOODSERVICE,5422,Catering costs - provisions,-2.61,0.00,-2.61
Regeneration and Local Services,Economic Development and Housing,031576,B& B - Temp Accom,Supplies and Services,364320,Grants to Voluntary Organisations,01-Mar-2018,000007077234179,TRAVELODGE,3615,Accommodation assistance,41.00,6.83,34.17
Children and Young Peoples Services,Childrens Services Operational Support,052934,Early Help Assessment and Safeguarding,Supplies and Services,312011,Newspapers Books and Periodicals,01-Mar-2018,000007077234211,Amazon UK Marketplace,5942,Books-school library,188.71,0.00,188.71
Children and Young Peoples Services,Childrens Services Operational Support,052934,Early Help Assessment and Safeguarding,Supplies and Services,312011,Newspapers Books and Periodicals,01-Mar-2018,000007077234215,Amazon EU,5969,Books-school library,57.95,0.00,57.95
Children and Young Peoples Services,Head of Early Help Assessment and Safeguarding,071443,Stanley One Point Hub,Supplies and Services,312011,Newspapers Books and Periodicals,01-Mar-2018,000007077234217,Amazon EU,5969,Books-school library,13.98,0.00,13.98
Children and Young Peoples Services,Head of Early Help Assessment and Safeguarding,074000,TTF-Attachment and Results,Supplies and Services,312011,Newspapers Books and Periodicals,01-Mar-2018,000007077234295,Amazon UK Marketplace,5942,Books-school library,5.14,0.00,5.14
Children and Young Peoples Services,Head of Early Help Assessment and Safeguarding,074000,TTF-Attachment and Results,Supplies and Services,312011,Newspapers Books and Periodicals,01-Mar-2018,000007077234297,Amazon UK Marketplace,5942,Books-school library,3.49,0.00,3.49
Children and Young Peoples Services,Head of Early Help Assessment and Safeguarding,074000,TTF-Attachment and Results,Supplies and Services,312011,Newspapers Books and Periodicals,01-Mar-2018,000007077234299,Amazon UK Marketplace,5942,Books-school library,9.13,0.00,9.13
Children and Young Peoples Services,Head of Looked After Provision Permanence and Care Leavers,085955,Auckland,Supplies and Services,304245,Equipment and Materials,01-Mar-2018,000007077234307,FAST KEY SERVICES LIMI,7399,Materials,32.10,5.35,26.75
Regeneration and Local Services,Transport and Contracted Services,031701,Care Connect All Localities,Supplies and Services,344033,Telephones,01-Mar-2018,000007077234327,Amazon UK Marketplace,5942,Telephones general-all costs,12.99,0.00,12.99
Regeneration and Local Services,Direct Services,021235,Catering - Wharton Park,Supplies and Services,324117,Provisions,01-Mar-2018,000007077234425,JR HOLLAND FOODSERVICE,5422,Catering costs - provisions,-8.06,0.00,-8.06
Transformation and Partnerships,Partnerships & Community Engagement Div.,060472,Syrian Vulnerable Persons Scheme,Supplies and Services,308011,Furniture,01-Mar-2018,000007077234473,SCREWFIX DIRECT,5211,Furniture repair and replacement,255.30,42.55,212.75
Transformation and Partnerships,Partnerships & Community Engagement Div.,060472,Syrian Vulnerable Persons Scheme,Supplies and Services,308011,Furniture,01-Mar-2018,000007077234475,ASDA GEORGE COM LEEDS,5411,Furniture repair and replacement,97.85,16.31,81.54
Regeneration and Local Services,Culture & Sport,010599,Newton Aycliffe Leisure Ctr-General,Supplies and Services,384956,Miscellaneous Expenses,01-Mar-2018,000007083505361,TVLICENSING.CO.UK,7392,Licences,147.00,0.00,147.00
Adult and Health Services,Head of Adults,051625,Intermediate Care Plus - South,Supplies and Services,340001,Postages,01-Mar-2018,000007083505365,POST OFFICE SHOP,9402,Postages,114.99,0.00,114.99
Regeneration and Local Services,Economic Development and Housing,031576,B& B - Temp Accom,Supplies and Services,364320,Grants to Voluntary Organisations,01-Mar-2018,000007083505479,PREMIER INN,3811,Accommodation assistance,66.00,11.00,55.00
Regeneration and Local Services,Economic Development and Housing,031576,B& B - Temp Accom,Supplies and Services,364320,Grants to Voluntary Organisations,01-Mar-2018,000007083505483,PREMIER INN,3811,Accommodation assistance,66.00,11.00,55.00
Regeneration and Local Services,Economic Development and Housing,031576,B& B - Temp Accom,Supplies and Services,364320,Grants to Voluntary Organisations,01-Mar-2018,000007083505487,PREMIER INN,3811,Accommodation assistance,66.00,11.00,55.00
Regeneration and Local Services,Economic Development and Housing,031576,B& B - Temp Accom,Supplies and Services,364320,Grants to Voluntary Organisations,01-Mar-2018,000007083505491,PREMIER INN,3811,Accommodation assistance,66.00,11.00,55.00
Regeneration and Local Services,Economic Development and Housing,031576,B& B - Temp Accom,Supplies and Services,364320,Grants to Voluntary Organisations,01-Mar-2018,000007083505497,PREMIER INN,3811,Accommodation assistance,-66.00,-11.00,-55.00
Resources,Digital and Customer Services,065432,Web Development Group,Supplies and Services,304335,Equipment and Materials,02-Mar-2018,000007077233981,TELERIK,7372,ICT supplies etc,10.01,0.00,10.01
Dedicated Schools Grant,Dedicated Schools Grant,079063,Partial Hearing-Belmont Comp,Supplies and Services,352001,Conference Expenses,02-Mar-2018,000007083505141,WWW.THESAGEGATES,7922,Conferencesseminars fees etc,223.00,0.00,223.00
Regeneration and Local Services,Economic Development and Housing,030699,Business Growth and Innovation General,Supplies and Services,304403,Equipment and Materials,02-Mar-2018,000007083505145,ADOBE CREATIVE CLOUD,5734,Other consumables,50.57,8.43,42.14
Regeneration and Local Services,Economic Development and Housing,030699,Business Growth and Innovation General,Supplies and Services,312011,Newspapers Books and Periodicals,02-Mar-2018,000007083505151,FASTHOSTS INTERNET,4816,Books-school library,12.59,2.10,10.49
Regeneration and Local Services,Economic Development and Housing,030699,Business Growth and Innovation General,Supplies and Services,312011,Newspapers Books and Periodicals,02-Mar-2018,000007083505155,FASTHOSTS INTERNET,4816,Books-school library,59.99,10.00,49.99
Regeneration and Local Services,Direct Services,021242,Catering - County Hall,Supplies and Services,324117,Provisions,02-Mar-2018,000007083505219,JR HOLLAND FOODSERVICE,5422,Catering costs - provisions,60.04,0.00,60.04
Regeneration and Local Services,Direct Services,021242,Catering - County Hall,Supplies and Services,324117,Provisions,02-Mar-2018,000007083505225,JR HOLLAND FOODSERVICE,5422,Catering costs - provisions,13.20,0.00,13.20
Regeneration and Local Services,Culture & Sport,011060,Hardwick Park Catering,Supplies and Services,324117,Provisions,02-Mar-2018,000007083505425,JR HOLLAND FOODSERVICE,5422,Catering costs - provisions,18.16,0.00,18.16
Resources,Digital and Customer Services,065335,School Services - Implementations,Supplies and Services,304639,Equipment and Materials,02-Mar-2018,000007083505437,GEDAT Datentechnik Gmb,5045,Technicians-supplies,132.24,22.04,110.20
Children and Young Peoples Services,Head of Looked After Provision Permanence and Care Leavers,085332,Middlestone Moor CU,Supplies and Services,304245,Equipment and Materials,02-Mar-2018,000007083505465,WILKO RETAIL LIMIT,5722,Materials,16.00,0.00,16.00
Children and Young Peoples Services,Head of Looked After Provision Permanence and Care Leavers,085332,Middlestone Moor CU,Supplies and Services,364320,Grants to Voluntary Organisations,02-Mar-2018,000007083505469,HAVEN HOLIDAYS,7033,Accommodation assistance,277.22,0.00,277.22
Regeneration and Local Services,Economic Development and Housing,031576,B& B - Temp Accom,Supplies and Services,364320,Grants to Voluntary Organisations,02-Mar-2018,000007083505477,HOTEL 52,7011,Accommodation assistance,300.00,0.00,300.00
Regeneration and Local Services,Economic Development and Housing,031576,B& B - Temp Accom,Supplies and Services,364320,Grants to Voluntary Organisations,02-Mar-2018,000007083505493,TRAVELODGE,3615,Accommodation assistance,127.00,21.17,105.83
Regeneration and Local Services,Economic Development and Housing,031576,B& B - Temp Accom,Supplies and Services,364320,Grants to Voluntary Organisations,02-Mar-2018,000007083505499,PREMIER INN,3811,Accommodation assistance,186.00,31.00,155.00
Regeneration and Local Services,Economic Development and Housing,031576,B& B - Temp Accom,Supplies and Services,364320,Grants to Voluntary Organisations,02-Mar-2018,000007083505503,PREMIER INN,3811,Accommodation assistance,186.00,31.00,155.00
Regeneration and Local Services,Economic Development and Housing,031576,B& B - Temp Accom,Supplies and Services,364320,Grants to Voluntary Organisations,02-Mar-2018,000007083505507,PREMIER INN,3811,Accommodation assistance,188.50,31.42,157.08
Regeneration and Local Services,Spatial Policy Planning Assets & Environment,031071,Sustainability and Climate Change,Supplies and Services,348037,Subsistence,02-Mar-2018,000007083505515,Pest-Buda Bistro,5812,Subsistence,55.18,0.00,55.18
Regeneration and Local Services,Direct Services,010525,Catering - Green Lane,Supplies and Services,324117,Provisions,02-Mar-2018,000007083505571,JR HOLLAND FOODSERVICE,5422,Catering costs - provisions,65.95,0.00,65.95
Children and Young Peoples Services,Head of Looked After Provision Permanence and Care Leavers,085332,Middlestone Moor CU,Supplies and Services,324117,Provisions,02-Mar-2018,000007083505619,SAINSBURYS 2199,5411,Catering costs - provisions,38.72,0.00,38.72
Children and Young Peoples Services,Head of Looked After Provision Permanence and Care Leavers,085332,Middlestone Moor CU,Supplies and Services,304259,Equipment and Materials,02-Mar-2018,000007083505623,HOMEBASE LTD 822,5211,Equipment-purchase and rental,14.95,0.00,14.95
Regeneration and Local Services,Economic Development and Housing,031576,B& B - Temp Accom,Supplies and Services,364320,Grants to Voluntary Organisations,02-Mar-2018,000007083505637,TRAVELODGE,3615,Accommodation assistance,173.00,28.83,144.17
Adult and Health Services,Head of Adults,055643,Hawthorn House LD Respite Unit,Supplies and Services,324117,Provisions,02-Mar-2018,000007083505703,JR HOLLAND FOODSERVICE,5422,Catering costs - provisions,10.27,0.00,10.27
Adult and Health Services,Head of Adults,055643,Hawthorn House LD Respite Unit,Supplies and Services,324117,Provisions,02-Mar-2018,000007083505705,JR HOLLAND FOODSERVICE,5422,Catering costs - provisions,9.56,0.00,9.56
Children and Young Peoples Services,Head of Looked After Provision Permanence and Care Leavers,085957,Secure Management,Supplies and Services,340001,Postages,02-Mar-2018,000007083505743,FEDERAL EXPRESS EUROPE,4215,Postages,19.37,3.23,16.14
Children and Young Peoples Services,Head of Looked After Provision Permanence and Care Leavers,085957,Secure Management,Supplies and Services,328041,Clothing Uniforms and Laundry,02-Mar-2018,000007083505747,VERY,5964,Clothing uniforms and laundry,70.99,0.00,70.99
Children and Young Peoples Services,Head of Looked After Provision Permanence and Care Leavers,085955,Auckland,Supplies and Services,384999,Miscellaneous Expenses,02-Mar-2018,000007083505753,WWW.ARGOS.CO.UK,5310,Other expenses,79.92,13.32,66.60
Children and Young Peoples Services,Head of Looked After Provision Permanence and Care Leavers,085955,Auckland,Supplies and Services,384999,Miscellaneous Expenses,02-Mar-2018,000007083505755,WILKO.COM,5722,Other expenses,87.00,0.00,87.00
Children and Young Peoples Services,Childrens Services Operational Support,052986,CYPS - Locality and Operational Support,Supplies and Services,304259,Equipment and Materials,02-Mar-2018,000007083505765,HARTLEPOOL BC CNP,9399,Equipment-purchase and rental,28.00,0.00,28.00
Regeneration and Local Services,Direct Services,021324,Catering - Meadowfield,Supplies and Services,324117,Provisions,02-Mar-2018,000007083505801,JR HOLLAND FOODSERVICE,5422,Catering costs - provisions,37.32,0.00,37.32
Regeneration and Local Services,Direct Services,021324,Catering - Meadowfield,Supplies and Services,324117,Provisions,02-Mar-2018,000007083505805,JR HOLLAND FOODSERVICE,5422,Catering costs - provisions,9.90,0.00,9.90
Regeneration and Local Services,Economic Development and Housing,031576,B& B - Temp Accom,Supplies and Services,364320,Grants to Voluntary Organisations,02-Mar-2018,000007083505837,PREMIER INN,3811,Accommodation assistance,201.00,33.50,167.50
Resources,Finance & Transactional Services,065180,Collections,Supplies and Services,338048,Services,02-Mar-2018,000007083505931,HMCOURTS-SERVICE.G,9222,Court Costs,"3,606.00",0.00,3606.00
Transformation and Partnerships,Partnerships & Community Engagement Div.,060472,Syrian Vulnerable Persons Scheme,Supplies and Services,308011,Furniture,02-Mar-2018,000007083506017,WILKO.COM,5722,Furniture repair and replacement,228.00,38.00,190.00
Regeneration and Local Services,Culture & Sport,011060,Hardwick Park Catering,Supplies and Services,324117,Provisions,02-Mar-2018,000007091389287,BATLEYS PERTH,5300,Catering costs - provisions,41.28,6.88,34.40
Regeneration and Local Services,Culture & Sport,011060,Hardwick Park Catering,Supplies and Services,324117,Provisions,02-Mar-2018,000007091389287 - 1,BATLEYS PERTH,5300,Catering costs - provisions,107.29,,107.29
Regeneration and Local Services,Direct Services,021234,Catering - Locomotion,Supplies and Services,324117,Provisions,02-Mar-2018,000007091389323,BATLEYS PERTH,5300,Catering costs - provisions,-202.05,-29.04,-173.01
Regeneration and Local Services,Direct Services,010525,Catering - Green Lane,Supplies and Services,324117,Provisions,02-Mar-2018,000007091389343,BATLEYS PERTH,5300,Catering costs - provisions,83.82,13.97,69.85
Regeneration and Local Services,Direct Services,010525,Catering - Green Lane,Supplies and Services,324117,Provisions,02-Mar-2018,000007091389343 - 1,BATLEYS PERTH,5300,Catering costs - provisions,64.04,,64.04
Adult and Health Services,Head of Adults,055643,Hawthorn House LD Respite Unit,Supplies and Services,324117,Provisions,02-Mar-2018,000007091389459,BATLEYS PERTH,5300,Catering costs - provisions,43.86,7.31,36.55
Adult and Health Services,Head of Adults,055643,Hawthorn House LD Respite Unit,Supplies and Services,324117,Provisions,02-Mar-2018,000007091389459 - 1,BATLEYS PERTH,5300,Catering costs - provisions,141.45,,141.45
Children and Young Peoples Services,Head of Looked After Provision Permanence and Care Leavers,085551,Short Break Services-Park Hse Sher,Supplies and Services,324117,Provisions,03-Mar-2018,000007083505455,ALDI 15 774,5411,Catering costs - provisions,22.94,0.00,22.94
Regeneration and Local Services,Spatial Policy Planning Assets & Environment,031071,Sustainability and Climate Change,Supplies and Services,352001,Conference Expenses,03-Mar-2018,000007083505517,NH HUNGARY KFT.,7011,Conferencesseminars fees etc,42.85,0.00,42.85
Regeneration and Local Services,Spatial Policy Planning Assets & Environment,031071,Sustainability and Climate Change,Supplies and Services,352001,Conference Expenses,03-Mar-2018,000007083505521,NH HUNGARY KFT.,7011,Conferencesseminars fees etc,42.85,0.00,42.85
Regeneration and Local Services,Spatial Policy Planning Assets & Environment,031071,Sustainability and Climate Change,Supplies and Services,352001,Conference Expenses,03-Mar-2018,000007083505523,NH HUNGARY KFT.,7011,Conferencesseminars fees etc,42.85,0.00,42.85
Regeneration and Local Services,Spatial Policy Planning Assets & Environment,031071,Sustainability and Climate Change,Supplies and Services,352001,Conference Expenses,03-Mar-2018,000007083505527,NH HUNGARY KFT.,7011,Conferencesseminars fees etc,42.85,0.00,42.85
Regeneration and Local Services,Spatial Policy Planning Assets & Environment,031071,Sustainability and Climate Change,Supplies and Services,352001,Conference Expenses,03-Mar-2018,000007083505529,NH HUNGARY KFT.,7011,Conferencesseminars fees etc,42.85,0.00,42.85
Regeneration and Local Services,Spatial Policy Planning Assets & Environment,031071,Sustainability and Climate Change,Supplies and Services,348037,Subsistence,03-Mar-2018,000007083505533,Pest-Buda Bistro,5812,Subsistence,21.11,0.00,21.11
Children and Young Peoples Services,Head of Looked After Provision Permanence and Care Leavers,085954,Walworth,Supplies and Services,324117,Provisions,03-Mar-2018,000007083505759,TESCO STORES 6329,5411,Catering costs - provisions,97.08,0.00,97.08
Children and Young Peoples Services,Head of Looked After Provision Permanence and Care Leavers,085363,LAC & Permanence Team 3,Supplies and Services,304259,Equipment and Materials,03-Mar-2018,000007083505991,HM PASSPORT OFFICE,9399,Equipment-purchase and rental,46.00,0.00,46.00
Regeneration and Local Services,Economic Development and Housing,030699,Business Growth and Innovation General,Supplies and Services,312011,Newspapers Books and Periodicals,04-Mar-2018,000007083505149,FASTHOSTS INTERNET,4816,Books-school library,6.34,1.06,5.28
Children and Young Peoples Services,Head of Looked After Provision Permanence and Care Leavers,085351,Framwellgate Moor CU,Supplies and Services,304999,Equipment and Materials,04-Mar-2018,000007083505291,TESCO DELIVERY SAVER2,5968,Misc equipment tools and materials,3.99,0.00,3.99
Children and Young Peoples Services,Head of Looked After Provision Permanence and Care Leavers,085333,Coxhoe Satelite Home,Supplies and Services,304259,Equipment and Materials,04-Mar-2018,000007083505297,FOOTASYLUM PLC,5941,Equipment-purchase and rental,38.94,0.00,38.94
Regeneration and Local Services,Spatial Policy Planning Assets & Environment,031071,Sustainability and Climate Change,Supplies and Services,348037,Subsistence,04-Mar-2018,000007083505535,Padthai Wokbar,5812,Subsistence,7.74,0.00,7.74
Children and Young Peoples Services,Head of Looked After Provision Permanence and Care Leavers,085965,Barnard,Supplies and Services,384999,Miscellaneous Expenses,04-Mar-2018,000007083505749,Amazon UK Marketplace,5942,Other expenses,9.59,0.00,9.59
Children and Young Peoples Services,Head of Looked After Provision Permanence and Care Leavers,085363,LAC & Permanence Team 3,Supplies and Services,312011,Newspapers Books and Periodicals,04-Mar-2018,000007083505993,Amazon EU,5969,Books-school library,62.30,0.00,62.30
Transformation and Partnerships,Partnerships & Community Engagement Div.,060472,Syrian Vulnerable Persons Scheme,Supplies and Services,308011,Furniture,04-Mar-2018,000007083506019,SP TERRYS FABRICS,5691,Furniture repair and replacement,159.51,26.59,132.92
Transformation and Partnerships,Partnerships & Community Engagement Div.,060472,Syrian Vulnerable Persons Scheme,Supplies and Services,308011,Furniture,04-Mar-2018,000007083506023,SP TERRYS FABRICS,5691,Furniture repair and replacement,213.00,35.50,177.50
Transformation and Partnerships,Partnerships & Community Engagement Div.,060472,Syrian Vulnerable Persons Scheme,Supplies and Services,308011,Furniture,04-Mar-2018,000007083506025,SP TERRYS FABRICS,5691,Furniture repair and replacement,210.00,35.00,175.00
Transformation and Partnerships,Partnerships & Community Engagement Div.,060472,Syrian Vulnerable Persons Scheme,Supplies and Services,308011,Furniture,04-Mar-2018,000007083506029,SP TERRYS FABRICS,5691,Furniture repair and replacement,175.92,29.32,146.60
Transformation and Partnerships,Partnerships & Community Engagement Div.,060472,Syrian Vulnerable Persons Scheme,Supplies and Services,308011,Furniture,04-Mar-2018,000007083506029 - 1,SP TERRYS FABRICS,5691,Furniture repair and replacement,0.03,,0.03
Transformation and Partnerships,Partnerships & Community Engagement Div.,060472,Syrian Vulnerable Persons Scheme,Supplies and Services,308011,Furniture,04-Mar-2018,000007083506031,BOOTS.COM,5912,Furniture repair and replacement,89.40,14.90,74.50
Transformation and Partnerships,Partnerships & Community Engagement Div.,060472,Syrian Vulnerable Persons Scheme,Supplies and Services,308011,Furniture,04-Mar-2018,000007083506031 - 1,BOOTS.COM,5912,Furniture repair and replacement,0.03,,0.03
Regeneration and Local Services,Economic Development and Housing,030699,Business Growth and Innovation General,Supplies and Services,304403,Equipment and Materials,04-Mar-2018,000007091389097,MEETEDGAR MONTHLY,5734,Other consumables,35.62,0.00,35.62
Resources,Digital and Customer Services,065335,School Services - Implementations,Supplies and Services,304639,Equipment and Materials,05-Mar-2018,000007083505441,GEDAT Datentechnik Gmb,5045,Technicians-supplies,3.64,0.00,3.64
Regeneration and Local Services,Spatial Policy Planning Assets & Environment,031071,Sustainability and Climate Change,Supplies and Services,348037,Subsistence,05-Mar-2018,000007083505537,Pest-Buda Bistro,5812,Subsistence,1.52,0.00,1.52
Regeneration and Local Services,Spatial Policy Planning Assets & Environment,031071,Sustainability and Climate Change,Supplies and Services,352001,Conference Expenses,05-Mar-2018,000007083505541,NH HUNGARY KFT.,7011,Conferencesseminars fees etc,1.18,0.00,1.18
Regeneration and Local Services,Spatial Policy Planning Assets & Environment,031071,Sustainability and Climate Change,Supplies and Services,352001,Conference Expenses,05-Mar-2018,000007083505543,NH HUNGARY KFT.,7011,Conferencesseminars fees etc,1.18,0.00,1.18
Regeneration and Local Services,Spatial Policy Planning Assets & Environment,031071,Sustainability and Climate Change,Supplies and Services,352001,Conference Expenses,05-Mar-2018,000007083505545,NH HUNGARY KFT.,7011,Conferencesseminars fees etc,1.18,0.00,1.18
Regeneration and Local Services,Spatial Policy Planning Assets & Environment,031071,Sustainability and Climate Change,Supplies and Services,352001,Conference Expenses,05-Mar-2018,000007083505547,NH HUNGARY KFT.,7011,Conferencesseminars fees etc,1.18,0.00,1.18
Regeneration and Local Services,Spatial Policy Planning Assets & Environment,031071,Sustainability and Climate Change,Supplies and Services,352001,Conference Expenses,05-Mar-2018,000007083505549,NH HUNGARY KFT.,7011,Conferencesseminars fees etc,1.18,0.00,1.18
Regeneration and Local Services,Spatial Policy Planning Assets & Environment,031071,Sustainability and Climate Change,Supplies and Services,348037,Subsistence,05-Mar-2018,000007083505551,Pest-Buda Bistro,5812,Subsistence,0.58,0.00,0.58
Regeneration and Local Services,Spatial Policy Planning Assets & Environment,031071,Sustainability and Climate Change,Supplies and Services,348037,Subsistence,05-Mar-2018,000007083505553,Padthai Wokbar,5812,Subsistence,0.21,0.00,0.21
Children and Young Peoples Services,Head of Education,071801,Selby Cottage Childcare Centre,Supplies and Services,324117,Provisions,05-Mar-2018,000007091389065,TESCO STORES 2278,5411,Catering costs - provisions,38.09,0.00,38.09
Resources,Digital and Customer Services,065321,Operations - Digital & Customer Services,Supplies and Services,304335,Equipment and Materials,05-Mar-2018,000007091389069,AVANGATE ADVANCEDINSTA,5734,ICT supplies etc,"1,239.18",0.00,1239.18
Adult and Health Services,Head of Adults,055302,Durham Pathways,Supplies and Services,324117,Provisions,05-Mar-2018,000007091389083,SAINSBURYS SACAT 0776,5411,Catering costs - provisions,11.25,0.00,11.25
Dedicated Schools Grant,Dedicated Schools Grant,079052,Part Sighted-Belmont Comp,Supplies and Services,304403,Equipment and Materials,05-Mar-2018,000007091389093,Amazon UK Marketplace,5942,Other consumables,11.90,0.00,11.90
Regeneration and Local Services,Direct Services,021242,Catering - County Hall,Supplies and Services,324117,Provisions,05-Mar-2018,000007091389111,FREEMAN CATERING BUTCH,5422,Catering costs - provisions,241.22,0.00,241.22
Regeneration and Local Services,Economic Development and Housing,030544,Rural Employability - Client Engagement,Employees,040149,Recruitment Instruction and Training,05-Mar-2018,000007091389125,WWW.ONLINECRBCHECK.CO.,8999,Training-all costs,53.60,0.00,53.60
Regeneration and Local Services,Economic Development and Housing,030737,Durham Works Flexible Fund,Transport,235057,Public Transport,05-Mar-2018,000007091389127,ARRIVA NORTH EAST,4131,Staff travelling,25.00,0.00,25.00
Regeneration and Local Services,Economic Development and Housing,030737,Durham Works Flexible Fund,Transport,235057,Public Transport,05-Mar-2018,000007091389131,ARRIVA NORTH EAST,4131,Staff travelling,21.00,0.00,21.00
Regeneration and Local Services,Economic Development and Housing,030737,Durham Works Flexible Fund,Transport,235057,Public Transport,05-Mar-2018,000007091389133,ARRIVA NORTH EAST,4131,Staff travelling,7.00,0.00,7.00
Regeneration and Local Services,Culture & Sport,054812,Gala Theatre - Catering etc,Supplies and Services,324117,Provisions,05-Mar-2018,000007091389137,FREEMAN CATERING BUTCH,5422,Catering costs - provisions,25.34,0.00,25.34
Regeneration and Local Services,Culture & Sport,054812,Gala Theatre - Catering etc,Supplies and Services,324117,Provisions,05-Mar-2018,000007091389141,FREEMAN CATERING BUTCH,5422,Catering costs - provisions,14.20,0.00,14.20
Regeneration and Local Services,Culture & Sport,054812,Gala Theatre - Catering etc,Supplies and Services,324117,Provisions,05-Mar-2018,000007091389143,FREEMAN CATERING BUTCH,5422,Catering costs - provisions,12.12,0.00,12.12
Regeneration and Local Services,Culture & Sport,011217,Commercial Management,Supplies and Services,384999,Miscellaneous Expenses,05-Mar-2018,000007091389187,DISPLAYSENSE.CO.UK,5046,Other expenses,119.99,20.00,99.99
Regeneration and Local Services,Culture & Sport,011217,Commercial Management,Supplies and Services,384999,Miscellaneous Expenses,05-Mar-2018,000007091389191,DISPLAYSENSE.CO.UK,5046,Other expenses,119.99,20.00,99.99
Regeneration and Local Services,Culture & Sport,011217,Commercial Management,Supplies and Services,384999,Miscellaneous Expenses,05-Mar-2018,000007091389195,DISPLAYSENSE.CO.UK,5046,Other expenses,119.99,20.00,99.99
Regeneration and Local Services,Culture & Sport,011217,Commercial Management,Supplies and Services,384999,Miscellaneous Expenses,05-Mar-2018,000007091389197,DISPLAYSENSE.CO.UK,5046,Other expenses,119.99,20.00,99.99
Regeneration and Local Services,Culture & Sport,011217,Commercial Management,Supplies and Services,384999,Miscellaneous Expenses,05-Mar-2018,000007091389201,DISPLAYSENSE.CO.UK,5046,Other expenses,119.99,20.00,99.99
Regeneration and Local Services,Culture & Sport,011217,Commercial Management,Supplies and Services,384999,Miscellaneous Expenses,05-Mar-2018,000007091389205,DISPLAYSENSE.CO.UK,5046,Other expenses,119.99,20.00,99.99
Children and Young Peoples Services,Head of Looked After Provision Permanence and Care Leavers,085334,West Rainton Satelite Home,Supplies and Services,324117,Provisions,05-Mar-2018,000007091389217,ALDI 12 774,5411,Catering costs - provisions,92.26,0.00,92.26
Children and Young Peoples Services,Head of Looked After Provision Permanence and Care Leavers,085334,West Rainton Satelite Home,Supplies and Services,312011,Newspapers Books and Periodicals,05-Mar-2018,000007091389221,HOME BARGAINS,5251,Books-school library,9.87,0.00,9.87
Children and Young Peoples Services,Head of Looked After Provision Permanence and Care Leavers,085334,West Rainton Satelite Home,Supplies and Services,312011,Newspapers Books and Periodicals,05-Mar-2018,000007091389225,HOME BARGAINS,5251,Books-school library,5.49,0.00,5.49
Children and Young Peoples Services,Head of Looked After Provision Permanence and Care Leavers,085334,West Rainton Satelite Home,Supplies and Services,324117,Provisions,05-Mar-2018,000007091389227,TESCO STORES 2371,5411,Catering costs - provisions,23.69,0.00,23.69
Regeneration and Local Services,Direct Services,010301,C&G - North Grounds Maintenance,Supplies and Services,304999,Equipment and Materials,05-Mar-2018,000007091389259,NEW ROW FARM NURSERIES,5193,Misc equipment tools and materials,495.60,82.60,413.00
Regeneration and Local Services,Direct Services,010301,C&G - North Grounds Maintenance,Supplies and Services,304999,Equipment and Materials,05-Mar-2018,000007091389263,NEW ROW FARM NURSERIES,5193,Misc equipment tools and materials,495.00,82.50,412.50
Children and Young Peoples Services,Head of Early Help Assessment and Safeguarding,071746,Newton Aycliffe Childrens Centre,Supplies and Services,324117,Provisions,05-Mar-2018,000007091389273,TESCO STORES 2916,5411,Catering costs - provisions,10.90,0.00,10.90
Regeneration and Local Services,Culture & Sport,011060,Hardwick Park Catering,Supplies and Services,324117,Provisions,05-Mar-2018,000007091389283,FREEMAN CATERING BUTCH,5422,Catering costs - provisions,33.48,0.00,33.48
Resources,Digital and Customer Services,065335,School Services - Implementations,Supplies and Services,304639,Equipment and Materials,05-Mar-2018,000007091389309,AMZ replacebase,4816,Technicians-supplies,36.80,6.13,30.67
Children and Young Peoples Services,Head of Looked After Provision Permanence and Care Leavers,085332,Middlestone Moor CU,Supplies and Services,324117,Provisions,05-Mar-2018,000007091389313,HOME BARGAINS SPENNYMO,5251,Catering costs - provisions,28.08,4.68,23.40
Children and Young Peoples Services,Head of Looked After Provision Permanence and Care Leavers,085332,Middlestone Moor CU,Supplies and Services,324117,Provisions,05-Mar-2018,000007091389313 - 1,HOME BARGAINS SPENNYMO,5251,Catering costs - provisions,10.95,,10.95
Children and Young Peoples Services,Head of Looked After Provision Permanence and Care Leavers,085332,Middlestone Moor CU,Supplies and Services,324117,Provisions,05-Mar-2018,000007091389317,ASDA SUPERSTORE 4987,5411,Catering costs - provisions,77.14,0.00,77.14
Children and Young Peoples Services,Head of Looked After Provision Permanence and Care Leavers,085332,Middlestone Moor CU,Supplies and Services,324117,Provisions,05-Mar-2018,000007091389321,ASDA SUPERSTORE 4987,5411,Catering costs - provisions,21.00,0.00,21.00
Regeneration and Local Services,Economic Development and Housing,030671,Business Space,Supplies and Services,324117,Provisions,05-Mar-2018,000007091389331,CO-OP GROUP FOOD,5411,Catering costs - provisions,2.20,0.00,2.20
Regeneration and Local Services,Direct Services,010525,Catering - Green Lane,Supplies and Services,324117,Provisions,05-Mar-2018,000007091389339,FREEMAN CATERING BUTCH,5422,Catering costs - provisions,46.94,0.00,46.94
Regeneration and Local Services,Economic Development and Housing,030554,International Relations,Transport,235057,Public Transport,05-Mar-2018,000007091389369,NEWCASTLE PARK AND FLY,7523,Staff travelling,8.50,0.00,8.50
Regeneration and Local Services,Economic Development and Housing,030554,International Relations,Transport,235057,Public Transport,05-Mar-2018,000007091389373,PRINCE BISHOP SHOPPING,7523,Staff travelling,2.10,0.00,2.10
Regeneration and Local Services,Economic Development and Housing,030554,International Relations,Supplies and Services,348037,Subsistence,05-Mar-2018,000007091389377,CAFE RITAZZA NCL LS 18,5814,Subsistence,13.60,0.00,13.60
Regeneration and Local Services,Direct Services,010367,C&G - South Grounds Maintenance,Supplies and Services,304999,Equipment and Materials,05-Mar-2018,000007091389389,NEW ROW FARM NURSERIES,5193,Misc equipment tools and materials,316.80,52.80,264.00
Regeneration and Local Services,Direct Services,010367,C&G - South Grounds Maintenance,Supplies and Services,304999,Equipment and Materials,05-Mar-2018,000007091389391,NEW ROW FARM NURSERIES,5193,Misc equipment tools and materials,489.60,81.60,408.00
Resources,Resources Management,069000,Resources Management,Supplies and Services,324117,Provisions,05-Mar-2018,000007091389409,SAINSBURYS LOC4937,5411,Catering costs - provisions,6.70,0.00,6.70
Children and Young Peoples Services,Head of Looked After Provision Permanence and Care Leavers,085342,9 Cedar Drive Aycliffe,Supplies and Services,324117,Provisions,05-Mar-2018,000007091389411,TESCO STORES 2916,5411,Catering costs - provisions,21.50,0.00,21.50
Adult and Health Services,Head of Adults,055301,Stanley Pathways,Supplies and Services,324117,Provisions,05-Mar-2018,000007091389419,ASDA SUPERSTORE,5411,Catering costs - provisions,4.55,0.00,4.55
Adult and Health Services,Head of Adults,055643,Hawthorn House LD Respite Unit,Supplies and Services,324117,Provisions,05-Mar-2018,000007091389449,FREEMAN CATERING BUTCH,5422,Catering costs - provisions,34.91,0.00,34.91
Adult and Health Services,Head of Adults,055643,Hawthorn House LD Respite Unit,Supplies and Services,324117,Provisions,05-Mar-2018,000007091389453,FREEMAN CATERING BUTCH,5422,Catering costs - provisions,12.90,0.00,12.90
Adult and Health Services,Head of Adults,055643,Hawthorn House LD Respite Unit,Supplies and Services,324117,Provisions,05-Mar-2018,000007091389455,JR HOLLAND FOODSERVICE,5422,Catering costs - provisions,2.55,0.00,2.55
Children and Young Peoples Services,Head of Looked After Provision Permanence and Care Leavers,085965,Barnard,Supplies and Services,384999,Miscellaneous Expenses,05-Mar-2018,000007091389493,The Plastic Box Compan,5085,Other expenses,53.95,0.00,53.95
Children and Young Peoples Services,Head of Looked After Provision Permanence and Care Leavers,085957,Secure Management,Supplies and Services,324117,Provisions,05-Mar-2018,000007091389497,TESCO DELIVERY SAVER1,5411,Catering costs - provisions,6.99,0.00,6.99
Regeneration and Local Services,Direct Services,021324,Catering - Meadowfield,Supplies and Services,324117,Provisions,05-Mar-2018,000007091389523,FREEMAN CATERING BUTCH,5422,Catering costs - provisions,67.65,0.00,67.65
Regeneration and Local Services,Direct Services,021324,Catering - Meadowfield,Supplies and Services,324117,Provisions,05-Mar-2018,000007091389529,FREEMAN CATERING BUTCH,5422,Catering costs - provisions,59.86,0.00,59.86
Regeneration and Local Services,Direct Services,021324,Catering - Meadowfield,Supplies and Services,324117,Provisions,05-Mar-2018,000007091389531,FREEMAN CATERING BUTCH,5422,Catering costs - provisions,7.10,0.00,7.10
Regeneration and Local Services,Economic Development and Housing,030694,Netpark Incubator 2,Supplies and Services,332047,Printing Stationery and Gen Off Exps,05-Mar-2018,000007091389629,ARGOS RETAIL GROUP,5310,Stationery,12.99,0.00,12.99
Resources,Digital and Customer Services,069010,Administration,Transport,235057,Public Transport,05-Mar-2018,000007091389647,OYSTER RENEW WEB,4112,Staff travelling,50.00,0.00,50.00
Regeneration and Local Services,Direct Services,021235,Catering - Wharton Park,Supplies and Services,324117,Provisions,05-Mar-2018,000007091389653,JR HOLLAND FOODSERVICE,5422,Catering costs - provisions,20.15,0.00,20.15
Adult and Health Services,Head of Adults,055309,Peterlee Pathways,Supplies and Services,324117,Provisions,05-Mar-2018,000007091389661,LIDL UK,5411,Catering costs - provisions,4.36,0.00,4.36
Children and Young Peoples Services,Head of Education,079039,SENSS-HQ-Local Authority,Supplies and Services,352001,Conference Expenses,05-Mar-2018,000007091389667,IPSEA,5734,Conferencesseminars fees etc,225.00,0.00,225.00
Regeneration and Local Services,Economic Development and Housing,030737,Durham Works Flexible Fund,Transport,235057,Public Transport,05-Mar-2018,000007091389689,NEXUS TRAVEL SHOP,4131,Staff travelling,5.00,0.00,5.00
Resources,Corporate Finance & Commercial Services,069800,Corporate Procurement,Employees,040149,Recruitment Instruction and Training,05-Mar-2018,000007091389709,WWW.CIPS.ORG,8699,Training-all costs,124.00,0.00,124.00
Resources,Corporate Finance & Commercial Services,069800,Corporate Procurement,Employees,040149,Recruitment Instruction and Training,05-Mar-2018,000007091389711,WWW.CIPS.ORG,8699,Training-all costs,41.45,0.00,41.45
Regeneration and Local Services,Culture & Sport,054812,Gala Theatre - Catering etc,Supplies and Services,324117,Provisions,05-Mar-2018,000007095280227,BATLEYS PERTH,5300,Catering costs - provisions,61.92,10.32,51.60
Regeneration and Local Services,Culture & Sport,054812,Gala Theatre - Catering etc,Supplies and Services,324117,Provisions,05-Mar-2018,000007095280227 - 1,BATLEYS PERTH,5300,Catering costs - provisions,62.49,,62.49
Regeneration and Local Services,Economic Development and Housing,031576,B& B - Temp Accom,Employees,040149,Recruitment Instruction and Training,05-Mar-2018,000007095280229,PREMIER INN,3811,Training-all costs,72.00,12.00,60.00
Regeneration and Local Services,Economic Development and Housing,031576,B& B - Temp Accom,Employees,040149,Recruitment Instruction and Training,05-Mar-2018,000007095280233,PREMIER INN,3811,Training-all costs,72.00,12.00,60.00
Regeneration and Local Services,Economic Development and Housing,031576,B& B - Temp Accom,Employees,040149,Recruitment Instruction and Training,05-Mar-2018,000007095280235,PREMIER INN,3811,Training-all costs,63.00,10.50,52.50
Regeneration and Local Services,Economic Development and Housing,031576,B& B - Temp Accom,Employees,040149,Recruitment Instruction and Training,05-Mar-2018,000007095280239,PREMIER INN,3811,Training-all costs,71.00,11.83,59.17
Regeneration and Local Services,Direct Services,021235,Catering - Wharton Park,Supplies and Services,324117,Provisions,05-Mar-2018,000007095280761,BATLEYS PERTH,5300,Catering costs - provisions,196.02,32.67,163.35
Regeneration and Local Services,Direct Services,021235,Catering - Wharton Park,Supplies and Services,324117,Provisions,05-Mar-2018,000007095280761 - 1,BATLEYS PERTH,5300,Catering costs - provisions,38.41,,38.41
Regeneration and Local Services,Direct Services,021235,Catering - Wharton Park,Supplies and Services,324117,Provisions,05-Mar-2018,000007095280767,BATLEYS PERTH,5300,Catering costs - provisions,-230.36,-33.27,-197.09
Regeneration and Local Services,Economic Development and Housing,030699,Business Growth and Innovation General,Supplies and Services,304403,Equipment and Materials,06-Mar-2018,000007091389101,MEETEDGAR MONTHLY,5734,Other consumables,0.98,0.00,0.98
Dedicated Schools Grant,Dedicated Schools Grant,079052,Part Sighted-Belmont Comp,Supplies and Services,304335,Equipment and Materials,06-Mar-2018,000007095280107,WWW.TECHSOFT.CO.UK,5970,ICT supplies etc,299.40,49.90,249.50
Regeneration and Local Services,Economic Development and Housing,031500,Housing Solutions - Core Team,Supplies and Services,352001,Conference Expenses,06-Mar-2018,000007095280121,TRAVELODGE,3615,Conferencesseminars fees etc,60.00,0.00,60.00
Children and Young Peoples Services,Head of Education,075021,Youth Employment Initiative,Supplies and Services,304999,Equipment and Materials,06-Mar-2018,000007095280125,GOOGLE ADWS7021127990,5968,Misc equipment tools and materials,500.00,0.00,500.00
Adult and Health Services,Head of Adults,051603,OP/PD Durham & CLS,Supplies and Services,340001,Postages,06-Mar-2018,000007095280131,ROYAL MAIL ONLINE SHOP,9402,Postages,56.00,0.00,56.00
Regeneration and Local Services,Economic Development and Housing,030705,Visit County Durham,Supplies and Services,342033,Computers and Communications,06-Mar-2018,000007095280149,STK SHUTTERSTOCK.COM,7333,Computer hardware,-34.80,0.00,-34.80
Children and Young Peoples Services,Head of Early Help Assessment and Safeguarding,085624,Families First Crook,Income,720130,Fees and Charges,06-Mar-2018,000007095280199,CREWE REGISTER OFFICE,9399,Fees-legal,11.00,0.00,11.00
Children and Young Peoples Services,Head of Early Help Assessment and Safeguarding,085624,Families First Crook,Income,720130,Fees and Charges,06-Mar-2018,000007095280203,CREWE REGISTER OFFICE,9399,Fees-legal,20.00,0.00,20.00
Children and Young Peoples Services,Head of Early Help Assessment and Safeguarding,085624,Families First Crook,Income,720130,Fees and Charges,06-Mar-2018,000007095280205,GRO HM PASSPORT OFFICE,9399,Fees-legal,46.80,0.00,46.80
Regeneration and Local Services,Direct Services,021242,Catering - County Hall,Supplies and Services,324117,Provisions,06-Mar-2018,000007095280209,HOPWELLS LTD,5811,Catering costs - provisions,278.90,0.00,278.90
Regeneration and Local Services,Economic Development and Housing,030737,Durham Works Flexible Fund,Transport,235057,Public Transport,06-Mar-2018,000007095280223,ARRIVA NORTH EAST,4131,Staff travelling,9.00,0.00,9.00
Children and Young Peoples Services,Head of Looked After Provision Permanence and Care Leavers,085361,LAC & Permanence Team 1,Supplies and Services,384999,Miscellaneous Expenses,06-Mar-2018,000007095280265,GRO HM PASSPORT OFFICE,9399,Other expenses,18.50,0.00,18.50
Children and Young Peoples Services,Head of Looked After Provision Permanence and Care Leavers,085351,Framwellgate Moor CU,Supplies and Services,324117,Provisions,06-Mar-2018,000007095280269,TESCO STORES 2371,5411,Catering costs - provisions,199.12,0.00,199.12
Children and Young Peoples Services,Head of Early Help Assessment and Safeguarding,071406,Tudhoe Childrens Centre,Supplies and Services,328041,Clothing Uniforms and Laundry,06-Mar-2018,000007095280273,ARGOS LTD,5310,Clothing uniforms and laundry,24.99,0.00,24.99
Regeneration and Local Services,Direct Services,010900,Fleet - Meadowfield Fleet,Transport,215013,Running Costs of Vehicles,06-Mar-2018,000007095280281,DVLA VEHICLE TAX,9399,Vehicle Excise Duty (VED),202.50,0.00,202.50
Regeneration and Local Services,Direct Services,010900,Fleet - Meadowfield Fleet,Transport,215013,Running Costs of Vehicles,06-Mar-2018,000007095280285,DVLA VEHICLE TAX,9399,Vehicle Excise Duty (VED),22.50,0.00,22.50
Regeneration and Local Services,Direct Services,010561,Fleet - Morrison Busty Fleet,Transport,215013,Running Costs of Vehicles,06-Mar-2018,000007095280289,DVLA VEHICLE TAX,9399,Vehicle Excise Duty (VED),652.50,0.00,652.50
Regeneration and Local Services,Direct Services,010561,Fleet - Morrison Busty Fleet,Transport,215013,Running Costs of Vehicles,06-Mar-2018,000007095280291,DVLA VEHICLE TAX,9399,Vehicle Excise Duty (VED),167.50,0.00,167.50
Regeneration and Local Services,Direct Services,010561,Fleet - Morrison Busty Fleet,Transport,215013,Running Costs of Vehicles,06-Mar-2018,000007095280295,DVLA VEHICLE TAX,9399,Vehicle Excise Duty (VED),652.50,0.00,652.50
Regeneration and Local Services,Direct Services,010561,Fleet - Morrison Busty Fleet,Transport,215013,Running Costs of Vehicles,06-Mar-2018,000007095280297,DVLA VEHICLE TAX,9399,Vehicle Excise Duty (VED),352.50,0.00,352.50
Regeneration and Local Services,Direct Services,010900,Fleet - Meadowfield Fleet,Transport,215013,Running Costs of Vehicles,06-Mar-2018,000007095280301,DVLA VEHICLE TAX,9399,Vehicle Excise Duty (VED),352.50,58.75,293.75
Regeneration and Local Services,Direct Services,010900,Fleet - Meadowfield Fleet,Transport,215013,Running Costs of Vehicles,06-Mar-2018,000007095280305,DVLA VEHICLE TAX,9399,Vehicle Excise Duty (VED),652.50,0.00,652.50
Regeneration and Local Services,Direct Services,010900,Fleet - Meadowfield Fleet,Transport,215013,Running Costs of Vehicles,06-Mar-2018,000007095280307,DVLA VEHICLE TAX,9399,Vehicle Excise Duty (VED),352.50,0.00,352.50
Regeneration and Local Services,Direct Services,010561,Fleet - Morrison Busty Fleet,Transport,215013,Running Costs of Vehicles,06-Mar-2018,000007095280311,DVLA VEHICLE TAX,9399,Vehicle Excise Duty (VED),652.50,0.00,652.50
Regeneration and Local Services,Direct Services,010561,Fleet - Morrison Busty Fleet,Transport,215013,Running Costs of Vehicles,06-Mar-2018,000007095280313,DVLA VEHICLE TAX,9399,Vehicle Excise Duty (VED),652.50,0.00,652.50
Regeneration and Local Services,Direct Services,010561,Fleet - Morrison Busty Fleet,Transport,215013,Running Costs of Vehicles,06-Mar-2018,000007095280317,DVLA VEHICLE TAX,9399,Vehicle Excise Duty (VED),652.50,0.00,652.50
Regeneration and Local Services,Direct Services,010561,Fleet - Morrison Busty Fleet,Transport,215013,Running Costs of Vehicles,06-Mar-2018,000007095280319,DVLA VEHICLE TAX,9399,Vehicle Excise Duty (VED),167.50,0.00,167.50
Regeneration and Local Services,Economic Development and Housing,030737,Durham Works Flexible Fund,Transport,235057,Public Transport,06-Mar-2018,000007095280367,GO NORTH EAST LIMITED,4131,Staff travelling,8.00,0.00,8.00
Regeneration and Local Services,Direct Services,010367,C&G - South Grounds Maintenance,Supplies and Services,384999,Miscellaneous Expenses,06-Mar-2018,000007095280375,WWW.GUSTHARTS.COM,5046,Other expenses,220.79,36.80,183.99
Regeneration and Local Services,Culture & Sport,011060,Hardwick Park Catering,Supplies and Services,324117,Provisions,06-Mar-2018,000007095280393,JR HOLLAND FOODSERVICE,5422,Catering costs - provisions,54.67,0.00,54.67
Regeneration and Local Services,Economic Development and Housing,030755,Durham Employment & Skills - Other Training,Employees,040149,Recruitment Instruction and Training,06-Mar-2018,000007095280411,NCS VUE CITB HS&E REV,8299,Training-all costs,487.50,0.00,487.50
Regeneration and Local Services,Economic Development and Housing,030755,Durham Employment & Skills - Other Training,Employees,040149,Recruitment Instruction and Training,06-Mar-2018,000007095280415,CITB,8220,Training-all costs,30.00,5.00,25.00
Regeneration and Local Services,Economic Development and Housing,030755,Durham Employment & Skills - Other Training,Employees,040149,Recruitment Instruction and Training,06-Mar-2018,000007095280417,CITB,8220,Training-all costs,30.00,5.00,25.00
Regeneration and Local Services,Economic Development and Housing,030755,Durham Employment & Skills - Other Training,Employees,040149,Recruitment Instruction and Training,06-Mar-2018,000007095280419,CITB,8220,Training-all costs,30.00,5.00,25.00
Children and Young Peoples Services,Head of Looked After Provision Permanence and Care Leavers,085332,Middlestone Moor CU,Supplies and Services,324117,Provisions,06-Mar-2018,000007095280423,TESCO STORES 2371,5411,Catering costs - provisions,122.34,0.00,122.34
Regeneration and Local Services,Direct Services,010525,Catering - Green Lane,Supplies and Services,324117,Provisions,06-Mar-2018,000007095280439,HOPWELLS LTD,5811,Catering costs - provisions,119.87,0.00,119.87
Children and Young Peoples Services,Head of Looked After Provision Permanence and Care Leavers,085352,Tow Law CU,Supplies and Services,324117,Provisions,06-Mar-2018,000007095280443,TESCO STORES 2371,5411,Catering costs - provisions,269.85,0.00,269.85
Children and Young Peoples Services,Head of Looked After Provision Permanence and Care Leavers,085332,Middlestone Moor CU,Supplies and Services,324117,Provisions,06-Mar-2018,000007095280477,SAINSBURYS 2199,5411,Catering costs - provisions,215.35,0.00,215.35
Children and Young Peoples Services,Head of Looked After Provision Permanence and Care Leavers,085333,Coxhoe Satelite Home,Supplies and Services,324117,Provisions,06-Mar-2018,000007095280487,TESCO STORES 2371,5411,Catering costs - provisions,234.28,0.00,234.28
Children and Young Peoples Services,Head of Looked After Provision Permanence and Care Leavers,085333,Coxhoe Satelite Home,Supplies and Services,328041,Clothing Uniforms and Laundry,06-Mar-2018,000007095280491,B & M RETAIL,5310,Clothing uniforms and laundry,60.63,0.00,60.63
Regeneration and Local Services,Economic Development and Housing,031576,B& B - Temp Accom,Supplies and Services,364320,Grants to Voluntary Organisations,06-Mar-2018,000007095280505,HOTEL 52,7011,Accommodation assistance,100.00,16.67,83.33
Adult and Health Services,Head of Adults,055643,Hawthorn House LD Respite Unit,Supplies and Services,324117,Provisions,06-Mar-2018,000007095280511,JR HOLLAND FOODSERVICE,5422,Catering costs - provisions,26.76,0.00,26.76
Adult and Health Services,Head of Adults,055643,Hawthorn House LD Respite Unit,Supplies and Services,324117,Provisions,06-Mar-2018,000007095280517,JR HOLLAND FOODSERVICE,5422,Catering costs - provisions,21.60,0.00,21.60
Adult and Health Services,Head of Adults,055643,Hawthorn House LD Respite Unit,Supplies and Services,324117,Provisions,06-Mar-2018,000007095280521,JR HOLLAND FOODSERVICE,5422,Catering costs - provisions,3.42,0.00,3.42
Children and Young Peoples Services,Head of Looked After Provision Permanence and Care Leavers,085955,Auckland,Supplies and Services,384999,Miscellaneous Expenses,06-Mar-2018,000007095280555,Amazon UK Marketplace,5942,Other expenses,6.94,0.00,6.94
Children and Young Peoples Services,Head of Looked After Provision Permanence and Care Leavers,085955,Auckland,Supplies and Services,384999,Miscellaneous Expenses,06-Mar-2018,000007095280557,Amazon UK Marketplace,5942,Other expenses,6.92,0.00,6.92
Children and Young Peoples Services,Head of Looked After Provision Permanence and Care Leavers,085965,Barnard,Supplies and Services,304649,Equipment and Materials,06-Mar-2018,000007095280559,GAME RETAIL LTD BASING,5945,Toys,64.99,0.00,64.99
Children and Young Peoples Services,Head of Looked After Provision Permanence and Care Leavers,085956,Lumley,Supplies and Services,304083,Equipment and Materials,06-Mar-2018,000007095280561,WWW.ARGOS.CO.UK,5310,Catering equipment,43.94,0.00,43.94
Children and Young Peoples Services,Head of Looked After Provision Permanence and Care Leavers,085957,Secure Management,Supplies and Services,328041,Clothing Uniforms and Laundry,06-Mar-2018,000007095280565,WWW.FOOTLOCKER.EU,5661,Clothing uniforms and laundry,134.99,0.00,134.99
Children and Young Peoples Services,Head of Looked After Provision Permanence and Care Leavers,085957,Secure Management,Supplies and Services,328041,Clothing Uniforms and Laundry,06-Mar-2018,000007095280569,FOOTASYLUM PLC,5941,Clothing uniforms and laundry,147.96,0.00,147.96
Children and Young Peoples Services,Head of Looked After Provision Permanence and Care Leavers,085957,Secure Management,Supplies and Services,328041,Clothing Uniforms and Laundry,06-Mar-2018,000007095280573,FOOTASYLUM PLC,5941,Clothing uniforms and laundry,99.99,0.00,99.99
Children and Young Peoples Services,Head of Looked After Provision Permanence and Care Leavers,085957,Secure Management,Supplies and Services,328041,Clothing Uniforms and Laundry,06-Mar-2018,000007095280575,VERY,5964,Clothing uniforms and laundry,88.99,0.00,88.99
Regeneration and Local Services,Culture & Sport,026591,Hardwick Park,Supplies and Services,304245,Equipment and Materials,06-Mar-2018,000007095280613,Amazon UK Marketplace,5942,Materials,6.94,0.00,6.94
Regeneration and Local Services,Direct Services,021324,Catering - Meadowfield,Supplies and Services,324117,Provisions,06-Mar-2018,000007095280625,HOPWELLS LTD,5811,Catering costs - provisions,55.08,0.00,55.08
Resources,Digital and Customer Services,069010,Administration,Supplies and Services,336005,Advertising,06-Mar-2018,000007095280741,FACEBK FNR6AEW4B2,7311,Advertising other than for staff,499.92,0.00,499.92
Regeneration and Local Services,Direct Services,021235,Catering - Wharton Park,Supplies and Services,324117,Provisions,06-Mar-2018,000007095280757,JR HOLLAND FOODSERVICE,5422,Catering costs - provisions,20.15,0.00,20.15
Regeneration and Local Services,Spatial Policy Planning Assets & Environment,031200,North Pennines Core,Supplies and Services,304221,Equipment and Materials,06-Mar-2018,000007095280825,WWW.KITEPACKAGING.CO.U,5085,Direct materials,27.30,4.55,22.75
Regeneration and Local Services,Spatial Policy Planning Assets & Environment,031200,North Pennines Core,Supplies and Services,304221,Equipment and Materials,06-Mar-2018,000007095280825 - 1,WWW.KITEPACKAGING.CO.U,5085,Direct materials,4.18,,4.18
Regeneration and Local Services,Spatial Policy Planning Assets & Environment,031200,North Pennines Core,Supplies and Services,384999,Miscellaneous Expenses,06-Mar-2018,000007095280829,WWW.BIRDFOOD.CO.UK,5995,Other expenses,20.75,0.00,20.75
Regeneration and Local Services,Economic Development and Housing,031576,B& B - Temp Accom,Supplies and Services,364320,Grants to Voluntary Organisations,06-Mar-2018,000007100274157,PREMIER INN,3811,Accommodation assistance,81.50,13.58,67.92
Regeneration and Local Services,Economic Development and Housing,031576,B& B - Temp Accom,Supplies and Services,364320,Grants to Voluntary Organisations,06-Mar-2018,000007100274159,PREMIER INN,3811,Accommodation assistance,81.50,13.58,67.92
Regeneration and Local Services,Economic Development and Housing,031576,B& B - Temp Accom,Supplies and Services,364320,Grants to Voluntary Organisations,06-Mar-2018,000007100274163,PREMIER INN,3811,Accommodation assistance,158.00,26.33,131.67
Children and Young Peoples Services,Head of Looked After Provision Permanence and Care Leavers,085957,Secure Management,Supplies and Services,328041,Clothing Uniforms and Laundry,06-Mar-2018,000007100274201,SPORTSDIRECT.COM,5941,Clothing uniforms and laundry,64.98,0.00,64.98
Regeneration and Local Services,Direct Services,021242,Catering - County Hall,Supplies and Services,324117,Provisions,06-Mar-2018,000007105552763,BATLEYS PERTH,5300,Catering costs - provisions,824.76,137.46,687.30
Regeneration and Local Services,Direct Services,021242,Catering - County Hall,Supplies and Services,324117,Provisions,06-Mar-2018,000007105552763 - 1,BATLEYS PERTH,5300,Catering costs - provisions,325.30,,325.30
Regeneration and Local Services,Direct Services,021242,Catering - County Hall,Supplies and Services,324117,Provisions,06-Mar-2018,000007105552771,BATLEYS PERTH,5300,Catering costs - provisions,18.90,3.15,15.75
Regeneration and Local Services,Culture & Sport,011060,Hardwick Park Catering,Supplies and Services,324117,Provisions,06-Mar-2018,000007105552897,BATLEYS PERTH,5300,Catering costs - provisions,18.72,3.12,15.60
Regeneration and Local Services,Culture & Sport,011060,Hardwick Park Catering,Supplies and Services,324117,Provisions,06-Mar-2018,000007105552897 - 1,BATLEYS PERTH,5300,Catering costs - provisions,87.18,,87.18
Regeneration and Local Services,Direct Services,021234,Catering - Locomotion,Supplies and Services,324117,Provisions,06-Mar-2018,000007105552927,BATLEYS PERTH,5300,Catering costs - provisions,253.20,42.20,211.00
Regeneration and Local Services,Direct Services,021234,Catering - Locomotion,Supplies and Services,324117,Provisions,06-Mar-2018,000007105552927 - 1,BATLEYS PERTH,5300,Catering costs - provisions,66.08,,66.08
Regeneration and Local Services,Direct Services,010525,Catering - Green Lane,Supplies and Services,324117,Provisions,06-Mar-2018,000007105552971,BATLEYS PERTH,5300,Catering costs - provisions,-3.59,0.00,-3.59
Adult and Health Services,Head of Adults,055643,Hawthorn House LD Respite Unit,Supplies and Services,324117,Provisions,06-Mar-2018,000007105553059,BATLEYS PERTH,5300,Catering costs - provisions,-25.20,0.00,-25.20
Regeneration and Local Services,Culture & Sport,054235,Bishop Auckland Town Hall Cafe,Supplies and Services,324117,Provisions,06-Mar-2018,000007105553117,BATLEYS PERTH,5300,Catering costs - provisions,17.00,0.00,17.00
Regeneration and Local Services,Direct Services,021324,Catering - Meadowfield,Supplies and Services,324117,Provisions,06-Mar-2018,000007105553137,BATLEYS PERTH,5300,Catering costs - provisions,56.04,9.34,46.70
Regeneration and Local Services,Direct Services,021324,Catering - Meadowfield,Supplies and Services,324117,Provisions,06-Mar-2018,000007105553137 - 1,BATLEYS PERTH,5300,Catering costs - provisions,91.16,,91.16
Children and Young Peoples Services,Head of Looked After Provision Permanence and Care Leavers,085361,LAC & Permanence Team 1,Supplies and Services,384999,Miscellaneous Expenses,06-Mar-2018,000007201918985,GRO HM PASSPORT OFFICE,9399,Other expenses,-9.25,0.00,-9.25
Regeneration and Local Services,Culture & Sport,026591,Hardwick Park,Supplies and Services,384871,Miscellaneous Expenses,07-Mar-2018,000007095280617,Amazon EU,5969,Training-other activities,5.26,0.00,5.26
Children and Young Peoples Services,Head of Education,071801,Selby Cottage Childcare Centre,Supplies and Services,324117,Provisions,07-Mar-2018,000007100273609,TESCO STORES 2278,5411,Catering costs - provisions,48.24,0.00,48.24
Children and Young Peoples Services,Head of Education,071801,Selby Cottage Childcare Centre,Supplies and Services,324117,Provisions,07-Mar-2018,000007100273611,TESCO STORES 2278,5411,Catering costs - provisions,13.44,0.00,13.44
Regeneration and Local Services,Technical Services,025121,Strategic Highways - Drainage and Coast Protection,Supplies and Services,384956,Miscellaneous Expenses,07-Mar-2018,000007100273641,UK CAA GATWICK,9399,Licences,173.00,0.00,173.00
Children and Young Peoples Services,Head of Looked After Provision Permanence and Care Leavers,085342,9 Cedar Drive Aycliffe,Supplies and Services,324117,Provisions,07-Mar-2018,000007100273665,TESCO STORES 2916,5411,Catering costs - provisions,235.40,0.00,235.40
Regeneration and Local Services,Economic Development and Housing,030737,Durham Works Flexible Fund,Transport,230031,Contract Hire,07-Mar-2018,000007100273691,ARRIVA NORTH EAST,4131,Pupils-transport to play fields etc,5.00,0.00,5.00
Regeneration and Local Services,Direct Services,021242,Catering - County Hall,Supplies and Services,324117,Provisions,07-Mar-2018,000007100273695,JR HOLLAND FOODSERVICE,5422,Catering costs - provisions,77.78,0.00,77.78
Regeneration and Local Services,Direct Services,021242,Catering - County Hall,Supplies and Services,324117,Provisions,07-Mar-2018,000007100273699,JR HOLLAND FOODSERVICE,5422,Catering costs - provisions,30.14,0.00,30.14
Children and Young Peoples Services,Head of Looked After Provision Permanence and Care Leavers,085333,Coxhoe Satelite Home,Supplies and Services,312011,Newspapers Books and Periodicals,07-Mar-2018,000007100273743,Amazon UK Marketplace,5942,Books-school library,9.50,0.00,9.50
Children and Young Peoples Services,Head of Looked After Provision Permanence and Care Leavers,085334,West Rainton Satelite Home,Supplies and Services,328041,Clothing Uniforms and Laundry,07-Mar-2018,000007100273771,POUNDWORLD RETAIL,5310,Clothing uniforms and laundry,4.00,0.00,4.00
Children and Young Peoples Services,Head of Looked After Provision Permanence and Care Leavers,085334,West Rainton Satelite Home,Supplies and Services,324117,Provisions,07-Mar-2018,000007100273775,TESCO STORES 2371,5411,Catering costs - provisions,40.88,0.00,40.88
Children and Young Peoples Services,Head of Looked After Provision Permanence and Care Leavers,085334,West Rainton Satelite Home,Supplies and Services,324117,Provisions,07-Mar-2018,000007100273779,TESCO STORES 2371,5411,Catering costs - provisions,26.02,0.00,26.02
Regeneration and Local Services,Direct Services,010900,Fleet - Meadowfield Fleet,Transport,215013,Running Costs of Vehicles,07-Mar-2018,000007100273787,DVLA VEHICLE TAX,9399,Vehicle Excise Duty (VED),167.50,0.00,167.50
Regeneration and Local Services,Direct Services,010900,Fleet - Meadowfield Fleet,Transport,215013,Running Costs of Vehicles,07-Mar-2018,000007100273791,DVLA VEHICLE TAX,9399,Vehicle Excise Duty (VED),242.50,0.00,242.50
Regeneration and Local Services,Direct Services,010551,Fleet - Chilton Fleet,Transport,215013,Running Costs of Vehicles,07-Mar-2018,000007100273795,DVLA VEHICLE TAX,9399,Vehicle Excise Duty (VED),242.50,0.00,242.50
Regeneration and Local Services,Direct Services,010900,Fleet - Meadowfield Fleet,Transport,215013,Running Costs of Vehicles,07-Mar-2018,000007100273799,DVLA VEHICLE TAX,9399,Vehicle Excise Duty (VED),242.50,0.00,242.50
Regeneration and Local Services,Direct Services,010900,Fleet - Meadowfield Fleet,Transport,215013,Running Costs of Vehicles,07-Mar-2018,000007100273801,DVLA VEHICLE TAX,9399,Vehicle Excise Duty (VED),167.50,0.00,167.50
Regeneration and Local Services,Direct Services,010900,Fleet - Meadowfield Fleet,Transport,215013,Running Costs of Vehicles,07-Mar-2018,000007100273805,DVLA VEHICLE TAX,9399,Vehicle Excise Duty (VED),167.50,0.00,167.50
Regeneration and Local Services,Direct Services,010561,Fleet - Morrison Busty Fleet,Transport,215013,Running Costs of Vehicles,07-Mar-2018,000007100273809,DVLA VEHICLE TAX,9399,Vehicle Excise Duty (VED),167.50,0.00,167.50
Regeneration and Local Services,Direct Services,010900,Fleet - Meadowfield Fleet,Transport,215013,Running Costs of Vehicles,07-Mar-2018,000007100273813,DVLA VEHICLE TAX,9399,Vehicle Excise Duty (VED),167.50,0.00,167.50
Regeneration and Local Services,Direct Services,010900,Fleet - Meadowfield Fleet,Transport,215013,Running Costs of Vehicles,07-Mar-2018,000007100273815,DVLA VEHICLE TAX,9399,Vehicle Excise Duty (VED),167.50,0.00,167.50
Regeneration and Local Services,Direct Services,010864,Fleet - Hackworth Road Fleet,Transport,215013,Running Costs of Vehicles,07-Mar-2018,000007100273819,DVLA VEHICLE TAX,9399,Vehicle Excise Duty (VED),167.50,0.00,167.50
Regeneration and Local Services,Direct Services,010900,Fleet - Meadowfield Fleet,Transport,215013,Running Costs of Vehicles,07-Mar-2018,000007100273823,DVLA VEHICLE TAX,9399,Vehicle Excise Duty (VED),242.50,0.00,242.50
Regeneration and Local Services,Direct Services,010900,Fleet - Meadowfield Fleet,Transport,215013,Running Costs of Vehicles,07-Mar-2018,000007100273827,DVLA VEHICLE TAX,9399,Vehicle Excise Duty (VED),242.50,0.00,242.50
Regeneration and Local Services,Direct Services,010900,Fleet - Meadowfield Fleet,Transport,215013,Running Costs of Vehicles,07-Mar-2018,000007100273829,DVLA VEHICLE TAX,9399,Vehicle Excise Duty (VED),242.50,0.00,242.50
Regeneration and Local Services,Direct Services,010900,Fleet - Meadowfield Fleet,Transport,215013,Running Costs of Vehicles,07-Mar-2018,000007100273833,DVLA VEHICLE TAX,9399,Vehicle Excise Duty (VED),167.50,0.00,167.50
Regeneration and Local Services,Direct Services,010561,Fleet - Morrison Busty Fleet,Transport,215013,Running Costs of Vehicles,07-Mar-2018,000007100273837,DVLA VEHICLE TAX,9399,Vehicle Excise Duty (VED),242.50,0.00,242.50
Regeneration and Local Services,Direct Services,010900,Fleet - Meadowfield Fleet,Transport,215013,Running Costs of Vehicles,07-Mar-2018,000007100273839,DVLA VEHICLE TAX,9399,Vehicle Excise Duty (VED),242.50,0.00,242.50
Regeneration and Local Services,Direct Services,010900,Fleet - Meadowfield Fleet,Transport,215013,Running Costs of Vehicles,07-Mar-2018,000007100273843,DVLA VEHICLE TAX,9399,Vehicle Excise Duty (VED),167.50,0.00,167.50
Regeneration and Local Services,Direct Services,010561,Fleet - Morrison Busty Fleet,Transport,215013,Running Costs of Vehicles,07-Mar-2018,000007100273847,DVLA VEHICLE TAX,9399,Vehicle Excise Duty (VED),167.50,0.00,167.50
Regeneration and Local Services,Direct Services,010900,Fleet - Meadowfield Fleet,Transport,215013,Running Costs of Vehicles,07-Mar-2018,000007100273849,DVLA VEHICLE TAX,9399,Vehicle Excise Duty (VED),167.50,0.00,167.50
Regeneration and Local Services,Direct Services,010900,Fleet - Meadowfield Fleet,Transport,215013,Running Costs of Vehicles,07-Mar-2018,000007100273853,DVLA VEHICLE TAX,9399,Vehicle Excise Duty (VED),242.50,0.00,242.50
Regeneration and Local Services,Direct Services,010900,Fleet - Meadowfield Fleet,Transport,215013,Running Costs of Vehicles,07-Mar-2018,000007100273855,DVLA VEHICLE TAX,9399,Vehicle Excise Duty (VED),242.50,0.00,242.50
Regeneration and Local Services,Direct Services,010561,Fleet - Morrison Busty Fleet,Transport,215013,Running Costs of Vehicles,07-Mar-2018,000007100273859,DVLA VEHICLE TAX,9399,Vehicle Excise Duty (VED),242.50,0.00,242.50
Regeneration and Local Services,Direct Services,010900,Fleet - Meadowfield Fleet,Transport,215013,Running Costs of Vehicles,07-Mar-2018,000007100273863,DVLA VEHICLE TAX,9399,Vehicle Excise Duty (VED),242.50,0.00,242.50
Regeneration and Local Services,Direct Services,010900,Fleet - Meadowfield Fleet,Transport,215013,Running Costs of Vehicles,07-Mar-2018,000007100273865,DVLA VEHICLE TAX,9399,Vehicle Excise Duty (VED),167.50,0.00,167.50
Regeneration and Local Services,Direct Services,010900,Fleet - Meadowfield Fleet,Transport,215013,Running Costs of Vehicles,07-Mar-2018,000007100273869,DVLA VEHICLE TAX,9399,Vehicle Excise Duty (VED),242.50,0.00,242.50
Regeneration and Local Services,Direct Services,010900,Fleet - Meadowfield Fleet,Transport,215013,Running Costs of Vehicles,07-Mar-2018,000007100273871,DVLA VEHICLE TAX,9399,Vehicle Excise Duty (VED),242.50,0.00,242.50
Regeneration and Local Services,Direct Services,010551,Fleet - Chilton Fleet,Transport,215013,Running Costs of Vehicles,07-Mar-2018,000007100273875,DVLA VEHICLE TAX,9399,Vehicle Excise Duty (VED),167.50,0.00,167.50
Regeneration and Local Services,Direct Services,010864,Fleet - Hackworth Road Fleet,Transport,215013,Running Costs of Vehicles,07-Mar-2018,000007100273879,DVLA VEHICLE TAX,9399,Vehicle Excise Duty (VED),167.50,0.00,167.50
Regeneration and Local Services,Direct Services,010900,Fleet - Meadowfield Fleet,Transport,215013,Running Costs of Vehicles,07-Mar-2018,000007100273881,DVLA VEHICLE TAX,9399,Vehicle Excise Duty (VED),242.50,0.00,242.50
Regeneration and Local Services,Direct Services,010551,Fleet - Chilton Fleet,Transport,215013,Running Costs of Vehicles,07-Mar-2018,000007100273885,DVLA VEHICLE TAX,9399,Vehicle Excise Duty (VED),242.50,0.00,242.50
Regeneration and Local Services,Direct Services,010900,Fleet - Meadowfield Fleet,Transport,215013,Running Costs of Vehicles,07-Mar-2018,000007100273889,DVLA VEHICLE TAX,9399,Vehicle Excise Duty (VED),167.50,0.00,167.50
Regeneration and Local Services,Direct Services,010864,Fleet - Hackworth Road Fleet,Transport,215013,Running Costs of Vehicles,07-Mar-2018,000007100273891,DVLA VEHICLE TAX,9399,Vehicle Excise Duty (VED),167.50,0.00,167.50
Regeneration and Local Services,Direct Services,010561,Fleet - Morrison Busty Fleet,Transport,215013,Running Costs of Vehicles,07-Mar-2018,000007100273895,DVLA VEHICLE TAX,9399,Vehicle Excise Duty (VED),167.50,0.00,167.50
Regeneration and Local Services,Direct Services,010561,Fleet - Morrison Busty Fleet,Transport,215013,Running Costs of Vehicles,07-Mar-2018,000007100273899,DVLA VEHICLE TAX,9399,Vehicle Excise Duty (VED),167.50,0.00,167.50
Regeneration and Local Services,Direct Services,010900,Fleet - Meadowfield Fleet,Transport,215013,Running Costs of Vehicles,07-Mar-2018,000007100273901,DVLA VEHICLE TAX,9399,Vehicle Excise Duty (VED),242.50,0.00,242.50
Regeneration and Local Services,Direct Services,010900,Fleet - Meadowfield Fleet,Transport,215013,Running Costs of Vehicles,07-Mar-2018,000007100273905,DVLA VEHICLE TAX,9399,Vehicle Excise Duty (VED),242.50,0.00,242.50
Regeneration and Local Services,Direct Services,010900,Fleet - Meadowfield Fleet,Transport,215013,Running Costs of Vehicles,07-Mar-2018,000007100273909,DVLA VEHICLE TAX,9399,Vehicle Excise Duty (VED),242.50,0.00,242.50
Regeneration and Local Services,Direct Services,010864,Fleet - Hackworth Road Fleet,Transport,215013,Running Costs of Vehicles,07-Mar-2018,000007100273911,DVLA VEHICLE TAX,9399,Vehicle Excise Duty (VED),167.50,0.00,167.50
Regeneration and Local Services,Direct Services,010900,Fleet - Meadowfield Fleet,Transport,215013,Running Costs of Vehicles,07-Mar-2018,000007100273915,DVLA VEHICLE TAX,9399,Vehicle Excise Duty (VED),242.50,0.00,242.50
Regeneration and Local Services,Direct Services,010900,Fleet - Meadowfield Fleet,Transport,215013,Running Costs of Vehicles,07-Mar-2018,000007100273917,DVLA VEHICLE TAX,9399,Vehicle Excise Duty (VED),167.50,0.00,167.50
Regeneration and Local Services,Direct Services,010561,Fleet - Morrison Busty Fleet,Transport,215013,Running Costs of Vehicles,07-Mar-2018,000007100273921,DVLA VEHICLE TAX,9399,Vehicle Excise Duty (VED),167.50,0.00,167.50
Regeneration and Local Services,Direct Services,010864,Fleet - Hackworth Road Fleet,Transport,215013,Running Costs of Vehicles,07-Mar-2018,000007100273925,DVLA VEHICLE TAX,9399,Vehicle Excise Duty (VED),242.50,0.00,242.50
Regeneration and Local Services,Direct Services,010900,Fleet - Meadowfield Fleet,Transport,215013,Running Costs of Vehicles,07-Mar-2018,000007100273927,DVLA VEHICLE TAX,9399,Vehicle Excise Duty (VED),242.50,0.00,242.50
Regeneration and Local Services,Direct Services,010551,Fleet - Chilton Fleet,Transport,215013,Running Costs of Vehicles,07-Mar-2018,000007100273931,DVLA VEHICLE TAX,9399,Vehicle Excise Duty (VED),242.50,0.00,242.50
Regeneration and Local Services,Direct Services,010900,Fleet - Meadowfield Fleet,Transport,215013,Running Costs of Vehicles,07-Mar-2018,000007100273935,DVLA VEHICLE TAX,9399,Vehicle Excise Duty (VED),242.50,0.00,242.50
Regeneration and Local Services,Direct Services,010561,Fleet - Morrison Busty Fleet,Transport,215013,Running Costs of Vehicles,07-Mar-2018,000007100273937,DVLA VEHICLE TAX,9399,Vehicle Excise Duty (VED),167.50,0.00,167.50
Regeneration and Local Services,Direct Services,010864,Fleet - Hackworth Road Fleet,Transport,215013,Running Costs of Vehicles,07-Mar-2018,000007100273941,DVLA VEHICLE TAX,9399,Vehicle Excise Duty (VED),167.50,0.00,167.50
Children and Young Peoples Services,Head of Education,071903,EYDCP-Sustainability EDS,Supplies and Services,312011,Newspapers Books and Periodicals,07-Mar-2018,000007100273981,Amazon EU,5969,Books-school library,15.20,0.00,15.20
Regeneration and Local Services,Economic Development and Housing,030737,Durham Works Flexible Fund,Transport,235057,Public Transport,07-Mar-2018,000007100273999,GO NORTH EAST LIMITED,4131,Staff travelling,8.00,0.00,8.00
Regeneration and Local Services,Economic Development and Housing,030737,Durham Works Flexible Fund,Transport,235057,Public Transport,07-Mar-2018,000007100274001,GO NORTH EAST LIMITED,4131,Staff travelling,105.00,0.00,105.00
Regeneration and Local Services,Economic Development and Housing,030737,Durham Works Flexible Fund,Supplies and Services,328041,Clothing Uniforms and Laundry,07-Mar-2018,000007100274005,SHOE ZONE,5661,Clothing uniforms and laundry,8.04,0.00,8.04
Regeneration and Local Services,Direct Services,010367,C&G - South Grounds Maintenance,Supplies and Services,304259,Equipment and Materials,07-Mar-2018,000007100274009,HORNS GARDEN CENTR,5261,Equipment-purchase and rental,5.94,0.00,5.94
Regeneration and Local Services,Culture & Sport,011060,Hardwick Park Catering,Supplies and Services,324117,Provisions,07-Mar-2018,000007100274013,JR HOLLAND FOODSERVICE,5422,Catering costs - provisions,40.77,0.00,40.77
Regeneration and Local Services,Economic Development and Housing,030755,Durham Employment & Skills - Other Training,Employees,040149,Recruitment Instruction and Training,07-Mar-2018,000007100274025,CITB,8220,Training-all costs,30.00,5.00,25.00
Regeneration and Local Services,Economic Development and Housing,030755,Durham Employment & Skills - Other Training,Employees,040149,Recruitment Instruction and Training,07-Mar-2018,000007100274029,CITB,8220,Training-all costs,30.00,5.00,25.00
Children and Young Peoples Services,Head of Looked After Provision Permanence and Care Leavers,085332,Middlestone Moor CU,Supplies and Services,324117,Provisions,07-Mar-2018,000007100274037,ASDA SUPERSTORE 4987,5411,Catering costs - provisions,43.94,0.00,43.94
Children and Young Peoples Services,Head of Looked After Provision Permanence and Care Leavers,085332,Middlestone Moor CU,Supplies and Services,384999,Miscellaneous Expenses,07-Mar-2018,000007100274041,ASDA SUPERSTORE 4987,5411,Other expenses,4.00,0.00,4.00
Regeneration and Local Services,Direct Services,021234,Catering - Locomotion,Supplies and Services,324117,Provisions,07-Mar-2018,000007100274043,WWW.ADELIEFOODS.CO.UK,5499,Catering costs - provisions,-8.65,0.00,-8.65
Regeneration and Local Services,Spatial Policy Planning Assets & Environment,031071,Sustainability and Climate Change,Supplies and Services,348037,Subsistence,07-Mar-2018,000007100274051,Pest-Buda Bistro,5812,Subsistence,110.35,0.00,110.35
Regeneration and Local Services,Economic Development and Housing,030671,Business Space,Supplies and Services,324117,Provisions,07-Mar-2018,000007100274057,CO-OP GROUP FOOD,5411,Catering costs - provisions,4.42,0.00,4.42
Regeneration and Local Services,Economic Development and Housing,030671,Business Space,Supplies and Services,324117,Provisions,07-Mar-2018,000007100274061,CO-OP GROUP FOOD,5411,Catering costs - provisions,2.20,0.00,2.20
Regeneration and Local Services,Economic Development and Housing,030671,Business Space,Supplies and Services,324117,Provisions,07-Mar-2018,000007100274065,CO-OP GROUP FOOD,5411,Catering costs - provisions,-4.42,0.00,-4.42
Regeneration and Local Services,Direct Services,010525,Catering - Green Lane,Supplies and Services,324117,Provisions,07-Mar-2018,000007100274081,JR HOLLAND FOODSERVICE,5422,Catering costs - provisions,74.60,0.00,74.60
Children and Young Peoples Services,Head of Looked After Provision Permanence and Care Leavers,085352,Tow Law CU,Supplies and Services,324117,Provisions,07-Mar-2018,000007100274087,TESCO STORES 2916,5411,Catering costs - provisions,10.00,0.00,10.00
Regeneration and Local Services,Economic Development and Housing,030735,Economic Development - Employability,Supplies and Services,336005,Advertising,07-Mar-2018,000007100274123,CAMALOON,5699,Advertising other than for staff,207.44,34.57,172.87
Adult and Health Services,Head of Adults,055643,Hawthorn House LD Respite Unit,Supplies and Services,324117,Provisions,07-Mar-2018,000007100274167,JR HOLLAND FOODSERVICE,5422,Catering costs - provisions,19.20,0.00,19.20
Adult and Health Services,Head of Adults,055643,Hawthorn House LD Respite Unit,Supplies and Services,324117,Provisions,07-Mar-2018,000007100274171,JR HOLLAND FOODSERVICE,5422,Catering costs - provisions,12.38,0.00,12.38
Children and Young Peoples Services,Head of Looked After Provision Permanence and Care Leavers,085957,Secure Management,Supplies and Services,328041,Clothing Uniforms and Laundry,07-Mar-2018,000007100274195,M and M Direct Ltd,5941,Clothing uniforms and laundry,5.99,0.00,5.99
Children and Young Peoples Services,Head of Looked After Provision Permanence and Care Leavers,085952,Secure Education,Supplies and Services,384999,Miscellaneous Expenses,07-Mar-2018,000007100274199,PAYPAL SWIFTPRINTU,2741,Other expenses,116.87,19.48,97.39
Children and Young Peoples Services,Head of Looked After Provision Permanence and Care Leavers,085955,Auckland,Supplies and Services,324117,Provisions,07-Mar-2018,000007100274205,TESCO STORES 6329,5411,Catering costs - provisions,99.55,0.00,99.55
Children and Young Peoples Services,Head of Looked After Provision Permanence and Care Leavers,085957,Secure Management,Supplies and Services,328041,Clothing Uniforms and Laundry,07-Mar-2018,000007100274207,VERY,5964,Clothing uniforms and laundry,53.99,0.00,53.99
Children and Young Peoples Services,Head of Looked After Provision Permanence and Care Leavers,085957,Secure Management,Supplies and Services,328041,Clothing Uniforms and Laundry,07-Mar-2018,000007100274211,VERY,5964,Clothing uniforms and laundry,34.24,0.00,34.24
Adult and Health Services,EnvironmentHealth & Consumer Protection,010829,Environment Protection,Supplies and Services,364320,Grants to Voluntary Organisations,07-Mar-2018,000007100274229,SHAFTESBURY PREMIER LO,7011,Accommodation assistance,126.00,0.00,126.00
Regeneration and Local Services,Culture & Sport,054235,Bishop Auckland Town Hall Cafe,Supplies and Services,324117,Provisions,07-Mar-2018,000007100274245,JR HOLLAND FOODSERVICE,5422,Catering costs - provisions,53.32,0.00,53.32
Regeneration and Local Services,Culture & Sport,026591,Hardwick Park,Supplies and Services,384871,Miscellaneous Expenses,07-Mar-2018,000007100274251,Amazon EU,5969,Training-other activities,10.52,0.00,10.52
Regeneration and Local Services,Culture & Sport,026591,Hardwick Park,Supplies and Services,324117,Provisions,07-Mar-2018,000007100274255,SAINSBURYS TO YOU 0790,5411,Catering costs - provisions,42.50,0.00,42.50
Regeneration and Local Services,Culture & Sport,026591,Hardwick Park,Supplies and Services,384871,Miscellaneous Expenses,07-Mar-2018,000007100274257,Amazon EU,5969,Training-other activities,10.51,0.00,10.51
Regeneration and Local Services,Culture & Sport,026591,Hardwick Park,Supplies and Services,384871,Miscellaneous Expenses,07-Mar-2018,000007100274261,Amazon EU,5969,Training-other activities,38.23,0.00,38.23
Regeneration and Local Services,Direct Services,021324,Catering - Meadowfield,Supplies and Services,324117,Provisions,07-Mar-2018,000007100274271,JR HOLLAND FOODSERVICE,5422,Catering costs - provisions,40.18,0.00,40.18
Regeneration and Local Services,Direct Services,021324,Catering - Meadowfield,Supplies and Services,324117,Provisions,07-Mar-2018,000007100274275,JR HOLLAND FOODSERVICE,5422,Catering costs - provisions,7.29,0.00,7.29
Regeneration and Local Services,Economic Development and Housing,031576,B& B - Temp Accom,Supplies and Services,364320,Grants to Voluntary Organisations,07-Mar-2018,000007100274303,HOTEL 52,7011,Accommodation assistance,200.00,0.00,200.00
Regeneration and Local Services,Economic Development and Housing,031576,B& B - Temp Accom,Supplies and Services,364320,Grants to Voluntary Organisations,07-Mar-2018,000007100274307,TRAVELODGE,3615,Accommodation assistance,45.00,7.50,37.50
Children and Young Peoples Services,Childrens Services Operational Support,052986,CYPS - Locality and Operational Support,Supplies and Services,304259,Equipment and Materials,07-Mar-2018,000007100274417,STOCKTON BOROUGH COUNC,9399,Equipment-purchase and rental,21.00,0.00,21.00
Regeneration and Local Services,Spatial Policy Planning Assets & Environment,031071,Sustainability and Climate Change,Transport,235057,Public Transport,07-Mar-2018,000007105552937,BKK AUTOMATA - E09,4131,Staff travelling,6.04,0.00,6.04
Regeneration and Local Services,Economic Development and Housing,031576,B& B - Temp Accom,Supplies and Services,364320,Grants to Voluntary Organisations,07-Mar-2018,000007105553147,PREMIER INN,3811,Accommodation assistance,77.00,12.83,64.17
Regeneration and Local Services,Economic Development and Housing,031576,B& B - Temp Accom,Supplies and Services,364320,Grants to Voluntary Organisations,07-Mar-2018,000007105553149,PREMIER INN,3811,Accommodation assistance,79.00,13.17,65.83
Regeneration and Local Services,Economic Development and Housing,031576,B& B - Temp Accom,Supplies and Services,364320,Grants to Voluntary Organisations,07-Mar-2018,000007105553151,PREMIER INN,3811,Accommodation assistance,156.00,26.00,130.00
Regeneration and Local Services,Spatial Policy Planning Assets & Environment,031071,Sustainability and Climate Change,Supplies and Services,348037,Subsistence,08-Mar-2018,000007100274055,Pest-Buda Bistro,5812,Subsistence,3.03,0.00,3.03
Children and Young Peoples Services,Head of Education,071801,Selby Cottage Childcare Centre,Supplies and Services,324117,Provisions,08-Mar-2018,000007105552687,JR HOLLAND FOODSERVICE,5422,Catering costs - provisions,363.52,0.00,363.52
Children and Young Peoples Services,Head of Education,071801,Selby Cottage Childcare Centre,Supplies and Services,324117,Provisions,08-Mar-2018,000007105552689,ASDA GROCERIES ONLINE,5411,Catering costs - provisions,103.85,0.00,103.85
Children and Young Peoples Services,Head of Education,071801,Selby Cottage Childcare Centre,Supplies and Services,324117,Provisions,08-Mar-2018,000007105552691,ASDA GROCERIES ONLINE,5411,Catering costs - provisions,-1.34,0.00,-1.34
Children and Young Peoples Services,Head of Early Help Assessment and Safeguarding,071443,Stanley One Point Hub,Supplies and Services,304335,Equipment and Materials,08-Mar-2018,000007105552701,Amazon UK Marketplace,5942,ICT supplies etc,33.49,5.58,27.91
Regeneration and Local Services,Economic Development and Housing,031576,B& B - Temp Accom,Supplies and Services,352001,Conference Expenses,08-Mar-2018,000007105552703,TRAVELODGE,3615,Conferencesseminars fees etc,43.00,7.17,35.83
Adult and Health Services,Head of Adults,055302,Durham Pathways,Supplies and Services,324117,Provisions,08-Mar-2018,000007105552723,LIDL UK,5411,Catering costs - provisions,3.67,0.00,3.67
Regeneration and Local Services,Economic Development and Housing,030699,Business Growth and Innovation General,Supplies and Services,312011,Newspapers Books and Periodicals,08-Mar-2018,000007105552737,FASTHOSTS INTERNET,4816,Books-school library,13.19,2.20,10.99
Regeneration and Local Services,Direct Services,021242,Catering - County Hall,Supplies and Services,324117,Provisions,08-Mar-2018,000007105552755,HOPWELLS LTD,5811,Catering costs - provisions,227.74,0.00,227.74
Regeneration and Local Services,Direct Services,021242,Catering - County Hall,Supplies and Services,324117,Provisions,08-Mar-2018,000007105552757,JR HOLLAND FOODSERVICE,5422,Catering costs - provisions,138.17,0.00,138.17
Regeneration and Local Services,Direct Services,021242,Catering - County Hall,Supplies and Services,324117,Provisions,08-Mar-2018,000007105552759,JR HOLLAND FOODSERVICE,5422,Catering costs - provisions,116.80,0.00,116.80
Regeneration and Local Services,Direct Services,021242,Catering - County Hall,Supplies and Services,324117,Provisions,08-Mar-2018,000007105552761,JR HOLLAND FOODSERVICE,5422,Catering costs - provisions,13.20,0.00,13.20
Regeneration and Local Services,Direct Services,021242,Catering - County Hall,Supplies and Services,324117,Provisions,08-Mar-2018,000007105552773,JR HOLLAND FOODSERVICE,5422,Catering costs - provisions,-18.12,0.00,-18.12
Children and Young Peoples Services,Head of Looked After Provision Permanence and Care Leavers,085380,Operations Manager Adoption & Fostering,Third Party Payments,430100,Rendered by Private Contractors,08-Mar-2018,000007105552775,GENERAL REGISTER OFFIC,7399,Payments to sub-contractors,20.00,0.00,20.00
Resources,Digital and Customer Services,070204,School Services - Systems,Supplies and Services,372009,Subscriptions,08-Mar-2018,000007105552779,NOMINET UK,5734,Subscriptions,112.50,18.75,93.75
Resources,Digital and Customer Services,065461,Business Support,Supplies and Services,372009,Subscriptions,08-Mar-2018,000007105552781,NOMINET UK,5734,Subscriptions,18.00,3.00,15.00
Resources,Digital and Customer Services,065461,Business Support,Supplies and Services,372009,Subscriptions,08-Mar-2018,000007105552783,WEB NETWORKSOLUTIONS,5968,Subscriptions,237.95,0.00,237.95
Resources,Digital and Customer Services,065461,Business Support,Supplies and Services,372009,Subscriptions,08-Mar-2018,000007105552785,WEB NETWORKSOLUTIONS,5968,Subscriptions,104.21,0.00,104.21
Regeneration and Local Services,Culture & Sport,054812,Gala Theatre - Catering etc,Supplies and Services,324117,Provisions,08-Mar-2018,000007105552799,JR HOLLAND FOODSERVICE,5422,Catering costs - provisions,49.29,0.00,49.29
Children and Young Peoples Services,Head of Looked After Provision Permanence and Care Leavers,085341,High Etherley Satelite Home,Supplies and Services,384999,Miscellaneous Expenses,08-Mar-2018,000007105552839,TICKETS08712200260,7922,Other expenses,26.40,0.00,26.40
Regeneration and Local Services,Economic Development and Housing,030737,Durham Works Flexible Fund,Transport,230031,Contract Hire,08-Mar-2018,000007105552857,ARRIVA NORTH EAST,4131,Pupils-transport to play fields etc,14.00,0.00,14.00
Regeneration and Local Services,Spatial Policy Planning Assets & Environment,031221,North Pennines - Bowlees,Supplies and Services,312011,Newspapers Books and Periodicals,08-Mar-2018,000007105552859,Amazon UK Marketplace,5942,Books-school library,90.00,0.00,90.00
Children and Young Peoples Services,Head of Early Help Assessment and Safeguarding,071746,Newton Aycliffe Childrens Centre,Supplies and Services,324117,Provisions,08-Mar-2018,000007105552875,TESCO STORES 2916,5411,Catering costs - provisions,18.45,0.00,18.45
Regeneration and Local Services,Direct Services,010301,C&G - North Grounds Maintenance,Third Party Payments,430100,Rendered by Private Contractors,08-Mar-2018,000007105552877,JOHN WARREN (ANIMAL BY,7399,Payments to sub-contractors,13.50,0.00,13.50
Regeneration and Local Services,Direct Services,010301,C&G - North Grounds Maintenance,Supplies and Services,338057,Services,08-Mar-2018,000007105552879,THE HELPING HAND COMPA,5047,Medical fees,226.32,0.00,226.32
Regeneration and Local Services,Spatial Policy Planning Assets & Environment,031222,North Pennines Allen Valleys Landscape Partnership,Supplies and Services,324117,Provisions,08-Mar-2018,000007105552883,ALLENDALE CO-OPERATIVE,5499,Catering costs - provisions,22.88,0.00,22.88
Regeneration and Local Services,Culture & Sport,011060,Hardwick Park Catering,Supplies and Services,324117,Provisions,08-Mar-2018,000007105552889,HOPWELLS LTD,5811,Catering costs - provisions,14.52,2.42,12.10
Regeneration and Local Services,Culture & Sport,011060,Hardwick Park Catering,Supplies and Services,324117,Provisions,08-Mar-2018,000007105552889 - 1,HOPWELLS LTD,5811,Catering costs - provisions,94.17,,94.17
Regeneration and Local Services,Culture & Sport,011060,Hardwick Park Catering,Supplies and Services,324117,Provisions,08-Mar-2018,000007105552893,JR HOLLAND FOODSERVICE,5422,Catering costs - provisions,22.10,0.00,22.10
Children and Young Peoples Services,Head of Looked After Provision Permanence and Care Leavers,085551,Short Break Services-Park Hse Sher,Supplies and Services,324117,Provisions,08-Mar-2018,000007105552909,ICELAND,5411,Catering costs - provisions,9.60,0.00,9.60
Children and Young Peoples Services,Head of Looked After Provision Permanence and Care Leavers,085332,Middlestone Moor CU,Supplies and Services,384999,Miscellaneous Expenses,08-Mar-2018,000007105552913,SUNDERLAND AFC LTD,5947,Other expenses,38.97,0.00,38.97
Children and Young Peoples Services,Head of Looked After Provision Permanence and Care Leavers,085332,Middlestone Moor CU,Supplies and Services,324117,Provisions,08-Mar-2018,000007105552915,TESCO STORES 2916,5411,Catering costs - provisions,3.15,0.00,3.15
Regeneration and Local Services,Direct Services,021234,Catering - Locomotion,Supplies and Services,324117,Provisions,08-Mar-2018,000007105552921,HOPWELLS LTD,5811,Catering costs - provisions,76.01,0.00,76.01
Regeneration and Local Services,Direct Services,021234,Catering - Locomotion,Supplies and Services,324117,Provisions,08-Mar-2018,000007105552923,JR HOLLAND FOODSERVICE,5422,Catering costs - provisions,35.52,0.00,35.52
Regeneration and Local Services,Direct Services,021234,Catering - Locomotion,Supplies and Services,324117,Provisions,08-Mar-2018,000007105552929,HOPWELLS LTD,5811,Catering costs - provisions,-19.58,0.00,-19.58
Regeneration and Local Services,Economic Development and Housing,031576,B& B - Temp Accom,Supplies and Services,364320,Grants to Voluntary Organisations,08-Mar-2018,000007105552965,HOTEL 52,7011,Accommodation assistance,100.00,0.00,100.00
Regeneration and Local Services,Economic Development and Housing,031576,B& B - Temp Accom,Supplies and Services,364320,Grants to Voluntary Organisations,08-Mar-2018,000007105552967,TRAVELODGE,3615,Accommodation assistance,43.00,7.17,35.83
Children and Young Peoples Services,Head of Early Help Assessment and Safeguarding,071443,Stanley One Point Hub,Supplies and Services,304259,Equipment and Materials,08-Mar-2018,000007105552997,WWW.DURHAM.GOV.UK,9399,Equipment-purchase and rental,12.00,0.00,12.00
Regeneration and Local Services,Direct Services,010367,C&G - South Grounds Maintenance,Supplies and Services,304259,Equipment and Materials,08-Mar-2018,000007105553013,AYCLIFFE DECORATIV,5211,Equipment-purchase and rental,35.20,5.87,29.33
Regeneration and Local Services,Direct Services,020073,Bldg Serv - R&M Div 73 - Gas Servicing,Supplies and Services,372009,Subscriptions,08-Mar-2018,000007105553027,OFTECDIRECT.COM,5942,Subscriptions,189.00,31.50,157.50
Children and Young Peoples Services,Head of Looked After Provision Permanence and Care Leavers,085333,Coxhoe Satelite Home,Supplies and Services,304259,Equipment and Materials,08-Mar-2018,000007105553037,SPORTSDIRECT 264,5941,Equipment-purchase and rental,12.00,2.00,10.00
Children and Young Peoples Services,Head of Looked After Provision Permanence and Care Leavers,085333,Coxhoe Satelite Home,Supplies and Services,324117,Provisions,08-Mar-2018,000007105553039,TESCO STORES 2371,5411,Catering costs - provisions,28.08,0.00,28.08
Regeneration and Local Services,Culture & Sport,011191,Wellbeing4Life,Supplies and Services,328041,Clothing Uniforms and Laundry,08-Mar-2018,000007105553045,POUNDWORLD RETAIL,5310,Clothing uniforms and laundry,15.25,0.00,15.25
Children and Young Peoples Services,Head of Looked After Provision Permanence and Care Leavers,085965,Barnard,Supplies and Services,324117,Provisions,08-Mar-2018,000007105553101,TESCO STORES 6329,5411,Catering costs - provisions,86.69,0.00,86.69
Children and Young Peoples Services,Head of Looked After Provision Permanence and Care Leavers,085956,Lumley,Supplies and Services,384999,Miscellaneous Expenses,08-Mar-2018,000007105553105,NEXT DIRECTORY,5651,Other expenses,38.99,0.00,38.99
Dedicated Schools Grant,Dedicated Schools Grant,079040,SENSS-HQ,Supplies and Services,312011,Newspapers Books and Periodicals,08-Mar-2018,000007105553107,BOOK PEOPLE VOUCHER,5942,Books-school library,6.00,0.00,6.00
Regeneration and Local Services,Culture & Sport,054235,Bishop Auckland Town Hall Cafe,Supplies and Services,324117,Provisions,08-Mar-2018,000007105553115,HOPWELLS LTD,5811,Catering costs - provisions,98.28,0.00,98.28
Resources,Digital and Customer Services,069010,Administration,Supplies and Services,304259,Equipment and Materials,08-Mar-2018,000007105553207,WWW.ICO.GOV.UK,9399,Equipment-purchase and rental,35.00,0.00,35.00
Resources,Digital and Customer Services,069010,Administration,Supplies and Services,304259,Equipment and Materials,08-Mar-2018,000007105553209,WWW.ICO.GOV.UK,9399,Equipment-purchase and rental,35.00,0.00,35.00
Resources,Digital and Customer Services,069010,Administration,Supplies and Services,304259,Equipment and Materials,08-Mar-2018,000007105553211,WWW.ICO.GOV.UK,9399,Equipment-purchase and rental,35.00,0.00,35.00
Resources,Digital and Customer Services,069010,Administration,Supplies and Services,304259,Equipment and Materials,08-Mar-2018,000007105553213,WWW.ICO.GOV.UK,9399,Equipment-purchase and rental,35.00,0.00,35.00
Resources,Digital and Customer Services,069010,Administration,Supplies and Services,304259,Equipment and Materials,08-Mar-2018,000007105553219,WWW.ICO.GOV.UK,9399,Equipment-purchase and rental,35.00,0.00,35.00
Resources,Digital and Customer Services,069010,Administration,Supplies and Services,304259,Equipment and Materials,08-Mar-2018,000007105553221,WWW.ICO.GOV.UK,9399,Equipment-purchase and rental,35.00,0.00,35.00
Resources,Digital and Customer Services,069010,Administration,Supplies and Services,304259,Equipment and Materials,08-Mar-2018,000007105553225,WWW.ICO.GOV.UK,9399,Equipment-purchase and rental,35.00,0.00,35.00
Resources,Digital and Customer Services,069010,Administration,Supplies and Services,304259,Equipment and Materials,08-Mar-2018,000007105553229,WWW.ICO.GOV.UK,9399,Equipment-purchase and rental,35.00,0.00,35.00
Resources,Digital and Customer Services,069010,Administration,Supplies and Services,304259,Equipment and Materials,08-Mar-2018,000007105553231,WWW.ICO.GOV.UK,9399,Equipment-purchase and rental,35.00,0.00,35.00
Resources,Digital and Customer Services,069010,Administration,Supplies and Services,304259,Equipment and Materials,08-Mar-2018,000007105553235,WWW.ICO.GOV.UK,9399,Equipment-purchase and rental,35.00,0.00,35.00
Resources,Digital and Customer Services,069010,Administration,Supplies and Services,304259,Equipment and Materials,08-Mar-2018,000007105553237,WWW.ICO.GOV.UK,9399,Equipment-purchase and rental,35.00,0.00,35.00
Resources,Digital and Customer Services,069010,Administration,Supplies and Services,304259,Equipment and Materials,08-Mar-2018,000007105553239,WWW.ICO.GOV.UK,9399,Equipment-purchase and rental,35.00,0.00,35.00
Resources,Digital and Customer Services,069010,Administration,Supplies and Services,304259,Equipment and Materials,08-Mar-2018,000007105553241,WWW.ICO.GOV.UK,9399,Equipment-purchase and rental,35.00,0.00,35.00
Resources,Digital and Customer Services,069010,Administration,Supplies and Services,304259,Equipment and Materials,08-Mar-2018,000007105553243,WWW.ICO.GOV.UK,9399,Equipment-purchase and rental,35.00,0.00,35.00
Resources,Digital and Customer Services,069010,Administration,Supplies and Services,304259,Equipment and Materials,08-Mar-2018,000007105553245,WWW.ICO.GOV.UK,9399,Equipment-purchase and rental,35.00,0.00,35.00
Resources,Digital and Customer Services,069010,Administration,Supplies and Services,304259,Equipment and Materials,08-Mar-2018,000007105553247,WWW.ICO.GOV.UK,9399,Equipment-purchase and rental,35.00,0.00,35.00
Regeneration and Local Services,Direct Services,021235,Catering - Wharton Park,Supplies and Services,324117,Provisions,08-Mar-2018,000007105553251,JR HOLLAND FOODSERVICE,5422,Catering costs - provisions,9.42,0.00,9.42
Transformation and Partnerships,Partnerships & Community Engagement Div.,060472,Syrian Vulnerable Persons Scheme,Supplies and Services,308011,Furniture,08-Mar-2018,000007105553275,WILKO DURHAM 426,5722,Furniture repair and replacement,21.75,3.63,18.12
Regeneration and Local Services,Economic Development and Housing,030749,Employability - Youth Contract,Transport,235057,Public Transport,08-Mar-2018,000007105553279,ARRIVA NORTH EAST,4131,Staff travelling,7.00,0.00,7.00
Regeneration and Local Services,Economic Development and Housing,031500,Housing Solutions - Core Team,Supplies and Services,338064,Services,08-Mar-2018,000007105553281,DISCLOSURE SCOT,9399,Disclosure & Barring (DBS) Fees,25.00,0.00,25.00
Regeneration and Local Services,Economic Development and Housing,031576,B& B - Temp Accom,Employees,040149,Recruitment Instruction and Training,08-Mar-2018,000007111575735,PREMIER INN,3811,Training-all costs,66.00,11.00,55.00
Regeneration and Local Services,Spatial Policy Planning Assets & Environment,031071,Sustainability and Climate Change,Supplies and Services,352001,Conference Expenses,08-Mar-2018,000007111576397,CONTINENTAL HOTEL,7011,Conferencesseminars fees etc,34.18,0.00,34.18
Regeneration and Local Services,Economic Development and Housing,031576,B& B - Temp Accom,Supplies and Services,364320,Grants to Voluntary Organisations,08-Mar-2018,000007111576415,PREMIER INN,3811,Accommodation assistance,65.00,0.00,65.00
Regeneration and Local Services,Economic Development and Housing,031576,B& B - Temp Accom,Supplies and Services,364320,Grants to Voluntary Organisations,08-Mar-2018,000007111576417,PREMIER INN,3811,Accommodation assistance,66.00,0.00,66.00
Regeneration and Local Services,Economic Development and Housing,031576,B& B - Temp Accom,Supplies and Services,364320,Grants to Voluntary Organisations,08-Mar-2018,000007111576423,PREMIER INN,3811,Accommodation assistance,65.00,0.00,65.00
Regeneration and Local Services,Economic Development and Housing,031576,B& B - Temp Accom,Supplies and Services,364320,Grants to Voluntary Organisations,08-Mar-2018,000007111576425,PREMIER INN,3811,Accommodation assistance,66.00,0.00,66.00
Regeneration and Local Services,Direct Services,021242,Catering - County Hall,Supplies and Services,324117,Provisions,08-Mar-2018,000007119484997,BATLEYS PERTH,5300,Catering costs - provisions,166.80,27.80,139.00
Regeneration and Local Services,Direct Services,021242,Catering - County Hall,Supplies and Services,324117,Provisions,08-Mar-2018,000007119484997 - 1,BATLEYS PERTH,5300,Catering costs - provisions,192.65,,192.65
Regeneration and Local Services,Direct Services,021242,Catering - County Hall,Supplies and Services,324117,Provisions,08-Mar-2018,000007119485005,BATLEYS PERTH,5300,Catering costs - provisions,4.06,0.68,3.38
Regeneration and Local Services,Culture & Sport,011060,Hardwick Park Catering,Supplies and Services,324117,Provisions,08-Mar-2018,000007119485199,BATLEYS PERTH,5300,Catering costs - provisions,11.40,1.90,9.50
Regeneration and Local Services,Culture & Sport,011060,Hardwick Park Catering,Supplies and Services,324117,Provisions,08-Mar-2018,000007119485199 - 1,BATLEYS PERTH,5300,Catering costs - provisions,182.22,,182.22
Regeneration and Local Services,Culture & Sport,011060,Hardwick Park Catering,Supplies and Services,324117,Provisions,08-Mar-2018,000007119485219,BATLEYS PERTH,5300,Catering costs - provisions,-4.49,0.00,-4.49
Children and Young Peoples Services,Head of Looked After Provision Permanence and Care Leavers,085956,Lumley,Supplies and Services,328041,Clothing Uniforms and Laundry,08-Mar-2018,000007119485401,NEXT DIRECTORY,5651,Clothing uniforms and laundry,170.00,0.00,170.00
Resources,Digital and Customer Services,065461,Business Support,Supplies and Services,372009,Subscriptions,09-Mar-2018,000007105552787,WEB NETWORKSOLUTIONS,5968,Subscriptions,6.54,0.00,6.54
Resources,Digital and Customer Services,065461,Business Support,Supplies and Services,372009,Subscriptions,09-Mar-2018,000007105552789,WEB NETWORKSOLUTIONS,5968,Subscriptions,2.87,0.00,2.87
Regeneration and Local Services,Spatial Policy Planning Assets & Environment,031071,Sustainability and Climate Change,Transport,235057,Public Transport,09-Mar-2018,000007105552953,BKK AUTOMATA - E09,4131,Staff travelling,0.17,0.00,0.17
Children and Young Peoples Services,Head of Education,071801,Selby Cottage Childcare Centre,Supplies and Services,324117,Provisions,09-Mar-2018,000007111575667,TESCO STORES 2278,5411,Catering costs - provisions,22.35,0.00,22.35
Regeneration and Local Services,Economic Development and Housing,031576,B& B - Temp Accom,Supplies and Services,364320,Grants to Voluntary Organisations,09-Mar-2018,000007111575695,TRAVELODGE,3615,Accommodation assistance,127.00,21.17,105.83
Regeneration and Local Services,Economic Development and Housing,031576,B& B - Temp Accom,Supplies and Services,364320,Grants to Voluntary Organisations,09-Mar-2018,000007111575697,PREMIER INN,3811,Accommodation assistance,185.00,30.83,154.17
Regeneration and Local Services,Economic Development and Housing,031576,B& B - Temp Accom,Supplies and Services,364320,Grants to Voluntary Organisations,09-Mar-2018,000007111575703,PREMIER INN,3811,Accommodation assistance,186.00,31.00,155.00
Regeneration and Local Services,Economic Development and Housing,031576,B& B - Temp Accom,Supplies and Services,364320,Grants to Voluntary Organisations,09-Mar-2018,000007111575705,PREMIER INN,3811,Accommodation assistance,377.00,62.83,314.17
Regeneration and Local Services,Economic Development and Housing,031576,B& B - Temp Accom,Supplies and Services,364320,Grants to Voluntary Organisations,09-Mar-2018,000007111575709,PREMIER INN,3811,Accommodation assistance,188.50,31.42,157.08
Regeneration and Local Services,Direct Services,021601,Building Cleaning School Support,Supplies and Services,304335,Equipment and Materials,09-Mar-2018,000007111575727,Amazon UK Marketplace,5942,ICT supplies etc,18.78,0.00,18.78
Regeneration and Local Services,Economic Development and Housing,030732,Rural Employability Project - South Durham,Supplies and Services,342033,Computers and Communications,09-Mar-2018,000007111575757,WP-SAFETY SER DIR,7372,Computer hardware,22.50,0.00,22.50
Regeneration and Local Services,Economic Development and Housing,030671,Business Space,Supplies and Services,304403,Equipment and Materials,09-Mar-2018,000007111575823,W E & J ROWLE,5947,Other consumables,24.70,4.12,20.58
Regeneration and Local Services,Economic Development and Housing,030737,Durham Works Flexible Fund,Transport,230031,Contract Hire,09-Mar-2018,000007111575847,ARRIVA NORTH EAST,4131,Pupils-transport to play fields etc,15.20,0.00,15.20
Regeneration and Local Services,Direct Services,021242,Catering - County Hall,Supplies and Services,324117,Provisions,09-Mar-2018,000007111575851,JR HOLLAND FOODSERVICE,5422,Catering costs - provisions,84.45,0.00,84.45
Resources,Digital and Customer Services,070204,School Services - Systems,Supplies and Services,372009,Subscriptions,09-Mar-2018,000007111575867,WEB NETWORKSOLUTIONS,5968,Subscriptions,147.90,0.00,147.90
Regeneration and Local Services,Economic Development and Housing,030737,Durham Works Flexible Fund,Transport,235057,Public Transport,09-Mar-2018,000007111575879,ARRIVA NORTH EAST,4131,Staff travelling,14.00,0.00,14.00
Regeneration and Local Services,Economic Development and Housing,030737,Durham Works Flexible Fund,Transport,235057,Public Transport,09-Mar-2018,000007111575883,ARRIVA NORTH EAST,4131,Staff travelling,85.50,0.00,85.50
Children and Young Peoples Services,Head of Looked After Provision Permanence and Care Leavers,085333,Coxhoe Satelite Home,Supplies and Services,304259,Equipment and Materials,09-Mar-2018,000007111575971,WILKO DURHAM 426,5722,Equipment-purchase and rental,43.05,0.00,43.05
Children and Young Peoples Services,Head of Looked After Provision Permanence and Care Leavers,085334,West Rainton Satelite Home,Supplies and Services,324117,Provisions,09-Mar-2018,000007111576005,TESCO STORES 2371,5411,Catering costs - provisions,58.77,0.00,58.77
Regeneration and Local Services,Economic Development and Housing,030749,Employability - Youth Contract,Transport,235057,Public Transport,09-Mar-2018,000007111576015,ARRIVA NORTH EAST,4131,Staff travelling,25.00,0.00,25.00
Regeneration and Local Services,Economic Development and Housing,030737,Durham Works Flexible Fund,Transport,230031,Contract Hire,09-Mar-2018,000007111576043,ARRIVA NORTH EAST,4131,Pupils-transport to play fields etc,25.00,0.00,25.00
Regeneration and Local Services,Spatial Policy Planning Assets & Environment,031221,North Pennines - Bowlees,Supplies and Services,308011,Furniture,09-Mar-2018,000007111576061,IKEA LIMITED,5712,Furniture repair and replacement,105.00,0.00,105.00
Regeneration and Local Services,Direct Services,010301,C&G - North Grounds Maintenance,Supplies and Services,304221,Equipment and Materials,09-Mar-2018,000007111576115,ARCO LTD,5085,Direct materials,59.49,0.00,59.49
Regeneration and Local Services,Economic Development and Housing,030737,Durham Works Flexible Fund,Supplies and Services,348037,Subsistence,09-Mar-2018,000007111576121,GO NORTH EAST LIMITED,4131,Subsistence,27.00,0.00,27.00
Regeneration and Local Services,Economic Development and Housing,030674,Business Services General,Supplies and Services,352001,Conference Expenses,09-Mar-2018,000007111576127,RAMSIDE HALL HOTEL,7011,Conferencesseminars fees etc,57.20,0.00,57.20
Regeneration and Local Services,Direct Services,010301,C&G - North Grounds Maintenance,Supplies and Services,304259,Equipment and Materials,09-Mar-2018,000007111576297,WWW.JTDOVE.CO.UK,5211,Equipment-purchase and rental,248.40,0.00,248.40
Regeneration and Local Services,Economic Development and Housing,030755,Durham Employment & Skills - Other Training,Employees,040149,Recruitment Instruction and Training,09-Mar-2018,000007111576315,CITB,8220,Training-all costs,30.00,5.00,25.00
Children and Young Peoples Services,Head of Looked After Provision Permanence and Care Leavers,085332,Middlestone Moor CU,Supplies and Services,304245,Equipment and Materials,09-Mar-2018,000007111576333,POUNDWORLD,5310,Materials,8.00,1.33,6.67
Children and Young Peoples Services,Head of Looked After Provision Permanence and Care Leavers,085332,Middlestone Moor CU,Premises,145015,Cleaning and Domestic Supplies,09-Mar-2018,000007111576339,WILKO RETAIL LIMIT,5722,Cleaning and domestic equipment,13.25,0.00,13.25
Children and Young Peoples Services,Head of Looked After Provision Permanence and Care Leavers,085332,Middlestone Moor CU,Supplies and Services,324117,Provisions,09-Mar-2018,000007111576345,HOME BARGAINS SPENNYMO,5251,Catering costs - provisions,15.08,0.00,15.08
Children and Young Peoples Services,Head of Looked After Provision Permanence and Care Leavers,085332,Middlestone Moor CU,Supplies and Services,324117,Provisions,09-Mar-2018,000007111576349,LIDL UK,5411,Catering costs - provisions,34.49,0.00,34.49
Regeneration and Local Services,Direct Services,010525,Catering - Green Lane,Supplies and Services,324117,Provisions,09-Mar-2018,000007111576435,JR HOLLAND FOODSERVICE,5422,Catering costs - provisions,49.75,0.00,49.75
Regeneration and Local Services,Economic Development and Housing,030554,International Relations,Transport,235057,Public Transport,09-Mar-2018,000007111576517,SNCB NMBS BRU MIDI ZU,4112,Staff travelling,8.03,0.00,8.03
Regeneration and Local Services,Economic Development and Housing,030554,International Relations,Supplies and Services,348037,Subsistence,09-Mar-2018,000007111576523,BISTROT BRUSSELS AIRP,5812,Subsistence,23.12,0.00,23.12
Children and Young Peoples Services,Head of Early Help Assessment and Safeguarding,071443,Stanley One Point Hub,Supplies and Services,384999,Miscellaneous Expenses,09-Mar-2018,000007111576535,ROSEBUD CERAMICS,5945,Other expenses,230.00,0.00,230.00
Adult and Health Services,Head of Adults,055643,Hawthorn House LD Respite Unit,Supplies and Services,324117,Provisions,09-Mar-2018,000007111576671,JR HOLLAND FOODSERVICE,5422,Catering costs - provisions,10.27,0.00,10.27
Children and Young Peoples Services,Head of Early Help Assessment and Safeguarding,074000,TTF-Attachment and Results,Supplies and Services,324117,Provisions,09-Mar-2018,000007111576703,ASDA GEORGE COM LEEDS,5411,Catering costs - provisions,58.92,9.82,49.10
Children and Young Peoples Services,Head of Early Help Assessment and Safeguarding,074000,TTF-Attachment and Results,Supplies and Services,324117,Provisions,09-Mar-2018,000007111576703 - 1,ASDA GEORGE COM LEEDS,5411,Catering costs - provisions,20.03,,20.03
Children and Young Peoples Services,Head of Looked After Provision Permanence and Care Leavers,085957,Secure Management,Supplies and Services,384999,Miscellaneous Expenses,09-Mar-2018,000007111576741,Amazon UK Marketplace,5942,Other expenses,7.29,0.00,7.29
Children and Young Peoples Services,Head of Looked After Provision Permanence and Care Leavers,085952,Secure Education,Supplies and Services,384999,Miscellaneous Expenses,09-Mar-2018,000007111576745,Amazon EU,5969,Other expenses,7.50,0.00,7.50
Children and Young Peoples Services,Head of Looked After Provision Permanence and Care Leavers,085957,Secure Management,Supplies and Services,328041,Clothing Uniforms and Laundry,09-Mar-2018,000007111576749,M and M Direct Ltd,5941,Clothing uniforms and laundry,24.99,0.00,24.99
Children and Young Peoples Services,Head of Looked After Provision Permanence and Care Leavers,085965,Barnard,Supplies and Services,332047,Printing Stationery and Gen Off Exps,09-Mar-2018,000007111576753,STAMPS4U.CO.UK,5734,Stationery,45.80,7.63,38.17
Children and Young Peoples Services,Head of Looked After Provision Permanence and Care Leavers,085956,Lumley,Supplies and Services,324117,Provisions,09-Mar-2018,000007111576755,TESCO STORES 6329,5411,Catering costs - provisions,111.86,0.00,111.86
Regeneration and Local Services,Direct Services,021324,Catering - Meadowfield,Supplies and Services,324117,Provisions,09-Mar-2018,000007111576815,JR HOLLAND FOODSERVICE,5422,Catering costs - provisions,42.00,0.00,42.00
Regeneration and Local Services,Direct Services,021324,Catering - Meadowfield,Supplies and Services,324117,Provisions,09-Mar-2018,000007111576819,JR HOLLAND FOODSERVICE,5422,Catering costs - provisions,9.90,0.00,9.90
Adult and Health Services,Head of Adults,055301,Stanley Pathways,Supplies and Services,324117,Provisions,09-Mar-2018,000007111576839,ASDA SUPERSTORE,5411,Catering costs - provisions,7.50,0.00,7.50
Children and Young Peoples Services,Head of Looked After Provision Permanence and Care Leavers,085363,LAC & Permanence Team 3,Supplies and Services,304259,Equipment and Materials,09-Mar-2018,000007111576875,WWW.DURHAM.GOV.UK,9399,Equipment-purchase and rental,12.00,0.00,12.00
Children and Young Peoples Services,Head of Looked After Provision Permanence and Care Leavers,085363,LAC & Permanence Team 3,Supplies and Services,304259,Equipment and Materials,09-Mar-2018,000007111576881,WWW.DURHAM.GOV.UK,9399,Equipment-purchase and rental,12.00,0.00,12.00
Resources,Digital and Customer Services,069010,Administration,Third Party Payments,430100,Rendered by Private Contractors,09-Mar-2018,000007111576965,GLOBAL INSIGHT CONFERE,7399,Payments to sub-contractors,598.80,99.80,499.00
Resources,Digital and Customer Services,069010,Administration,Third Party Payments,430100,Rendered by Private Contractors,09-Mar-2018,000007111576965 - 1,GLOBAL INSIGHT CONFERE,7399,Payments to sub-contractors,11.98,,11.98
Resources,Finance & Transactional Services,065170,Welfare Rights,Supplies and Services,384956,Miscellaneous Expenses,09-Mar-2018,000007111576997,WWW POSTCODEANYWHERE C,4816,Licences,300.00,50.00,250.00
Regeneration and Local Services,Culture & Sport,011230,Operations Locality 2,Supplies and Services,328041,Clothing Uniforms and Laundry,09-Mar-2018,000007111577011,FANCY THAT,5310,Clothing uniforms and laundry,24.95,0.00,24.95
Regeneration and Local Services,Economic Development and Housing,030737,Durham Works Flexible Fund,Transport,235057,Public Transport,09-Mar-2018,000007111577033,GO NORTH EAST LIMITED,4131,Staff travelling,27.00,0.00,27.00
Transformation and Partnerships,Partnerships & Community Engagement Div.,060472,Syrian Vulnerable Persons Scheme,Supplies and Services,308011,Furniture,09-Mar-2018,000007111577041,SP TERRYS FABRICS,5691,Furniture repair and replacement,148.20,24.70,123.50
Transformation and Partnerships,Partnerships & Community Engagement Div.,060472,Syrian Vulnerable Persons Scheme,Supplies and Services,308011,Furniture,09-Mar-2018,000007111577043,SP TERRYS FABRICS,5691,Furniture repair and replacement,21.54,3.59,17.95
Transformation and Partnerships,Partnerships & Community Engagement Div.,060472,Syrian Vulnerable Persons Scheme,Supplies and Services,308011,Furniture,09-Mar-2018,000007111577043 - 1,SP TERRYS FABRICS,5691,Furniture repair and replacement,31.97,,31.97
Transformation and Partnerships,Partnerships & Community Engagement Div.,060472,Syrian Vulnerable Persons Scheme,Supplies and Services,308011,Furniture,09-Mar-2018,000007111577047,WILKO.COM,5722,Furniture repair and replacement,68.00,11.33,56.67
Regeneration and Local Services,Spatial Policy Planning Assets & Environment,031200,North Pennines Core,Supplies and Services,312011,Newspapers Books and Periodicals,09-Mar-2018,000007111577059,Amazon UK Marketplace,5942,Books-school library,45.98,0.00,45.98
Regeneration and Local Services,Culture & Sport,011060,Hardwick Park Catering,Supplies and Services,324117,Provisions,09-Mar-2018,000007119485205,BATLEYS PERTH,5300,Catering costs - provisions,212.58,35.43,177.15
Regeneration and Local Services,Culture & Sport,011060,Hardwick Park Catering,Supplies and Services,324117,Provisions,09-Mar-2018,000007119485205 - 1,BATLEYS PERTH,5300,Catering costs - provisions,81.14,,81.14
Regeneration and Local Services,Culture & Sport,011060,Hardwick Park Catering,Supplies and Services,324117,Provisions,09-Mar-2018,000007119485215,BATLEYS PERTH,5300,Catering costs - provisions,3.78,0.63,3.15
Regeneration and Local Services,Culture & Sport,011060,Hardwick Park Catering,Supplies and Services,324117,Provisions,09-Mar-2018,000007119485215 - 1,BATLEYS PERTH,5300,Catering costs - provisions,3.75,,3.75
Regeneration and Local Services,Direct Services,010525,Catering - Green Lane,Supplies and Services,324117,Provisions,09-Mar-2018,000007119485275,BATLEYS PERTH,5300,Catering costs - provisions,127.86,21.31,106.55
Regeneration and Local Services,Direct Services,010525,Catering - Green Lane,Supplies and Services,324117,Provisions,09-Mar-2018,000007119485275 - 1,BATLEYS PERTH,5300,Catering costs - provisions,96.34,,96.34
Adult and Health Services,Head of Adults,055643,Hawthorn House LD Respite Unit,Supplies and Services,324117,Provisions,09-Mar-2018,000007119485371,BATLEYS PERTH,5300,Catering costs - provisions,7.50,1.25,6.25
Adult and Health Services,Head of Adults,055643,Hawthorn House LD Respite Unit,Supplies and Services,324117,Provisions,09-Mar-2018,000007119485371 - 1,BATLEYS PERTH,5300,Catering costs - provisions,22.39,,22.39
Children and Young Peoples Services,Head of Education,071801,Selby Cottage Childcare Centre,Supplies and Services,312011,Newspapers Books and Periodicals,10-Mar-2018,000007111575673,Amazon UK Marketplace,5942,Books-school library,4.47,0.00,4.47
Regeneration and Local Services,Direct Services,021242,Catering - County Hall,Supplies and Services,324117,Provisions,10-Mar-2018,000007111575913,SAINSBURYS LOC4634,5411,Catering costs - provisions,5.44,0.00,5.44
Regeneration and Local Services,Direct Services,021242,Catering - County Hall,Supplies and Services,324117,Provisions,10-Mar-2018,000007111575915,CO-OP GROUP FOOD,5411,Catering costs - provisions,8.95,0.00,8.95
Children and Young Peoples Services,Head of Looked After Provision Permanence and Care Leavers,085333,Coxhoe Satelite Home,Supplies and Services,312011,Newspapers Books and Periodicals,10-Mar-2018,000007111575973,Amazon UK Marketplace,5942,Books-school library,31.48,0.00,31.48
Children and Young Peoples Services,Head of Looked After Provision Permanence and Care Leavers,085333,Coxhoe Satelite Home,Supplies and Services,304259,Equipment and Materials,10-Mar-2018,000007111575977,M and M Direct Ltd,5941,Equipment-purchase and rental,40.98,0.00,40.98
Regeneration and Local Services,Economic Development and Housing,030671,Business Space,Supplies and Services,328041,Clothing Uniforms and Laundry,10-Mar-2018,000007111576405,POUNDWORLD RETAIL,5310,Clothing uniforms and laundry,2.00,0.00,2.00
Resources,Resources Management,069000,Resources Management,Supplies and Services,324117,Provisions,10-Mar-2018,000007111576621,SAINSBURYS (2303),5411,Catering costs - provisions,20.30,0.00,20.30
Children and Young Peoples Services,Head of Early Help Assessment and Safeguarding,074000,TTF-Attachment and Results,Supplies and Services,312011,Newspapers Books and Periodicals,10-Mar-2018,000007111576707,Amazon UK Marketplace,5942,Books-school library,38.45,0.00,38.45
Children and Young Peoples Services,Head of Looked After Provision Permanence and Care Leavers,085954,Walworth,Supplies and Services,324117,Provisions,10-Mar-2018,000007111576759,TESCO STORES 6329,5411,Catering costs - provisions,74.42,0.00,74.42
Dedicated Schools Grant,Dedicated Schools Grant,079040,SENSS-HQ,Supplies and Services,312011,Newspapers Books and Periodicals,10-Mar-2018,000007111576793,Amazon UK Marketplace,5942,Books-school library,15.72,0.00,15.72
Transformation and Partnerships,Partnerships & Community Engagement Div.,060472,Syrian Vulnerable Persons Scheme,Supplies and Services,308011,Furniture,10-Mar-2018,000007111577053,ASDA STORES LTD 4313,5411,Furniture repair and replacement,29.50,4.92,24.58
Children and Young Peoples Services,Head of Education,071801,Selby Cottage Childcare Centre,Supplies and Services,312011,Newspapers Books and Periodicals,11-Mar-2018,000007111575677,Amazon UK Marketplace,5942,Books-school library,22.78,0.00,22.78
Children and Young Peoples Services,Head of Looked After Provision Permanence and Care Leavers,085333,Coxhoe Satelite Home,Supplies and Services,312011,Newspapers Books and Periodicals,11-Mar-2018,000007111575981,Amazon UK Marketplace,5942,Books-school library,8.95,0.00,8.95
Regeneration and Local Services,Economic Development and Housing,030749,Employability - Youth Contract,Transport,235057,Public Transport,11-Mar-2018,000007111576021,ARRIVA NORTH EAST,4131,Staff travelling,18.20,0.00,18.20
Children and Young Peoples Services,Head of Looked After Provision Permanence and Care Leavers,085341,High Etherley Satelite Home,Supplies and Services,328041,Clothing Uniforms and Laundry,11-Mar-2018,000007111576035,EMP Mail Order UK Ltd.,5964,Clothing uniforms and laundry,-22.49,0.00,-22.49
Children and Young Peoples Services,Head of Looked After Provision Permanence and Care Leavers,085332,Middlestone Moor CU,Supplies and Services,364320,Grants to Voluntary Organisations,11-Mar-2018,000007111576355A,LIGHTWATER VALLEY - IN,7996,Accommodation assistance,46.46,0.00,46.46
Children and Young Peoples Services,Head of Looked After Provision Permanence and Care Leavers,085342,9 Cedar Drive Aycliffe,Supplies and Services,364320,Grants to Voluntary Organisations,11-Mar-2018,000007111576355B,LIGHTWATER VALLEY - IN,7996,Accommodation assistance,46.46,0.00,46.46
Children and Young Peoples Services,Head of Looked After Provision Permanence and Care Leavers,085331,New Lea Childrens Home,Supplies and Services,364320,Grants to Voluntary Organisations,11-Mar-2018,000007111576355C,LIGHTWATER VALLEY - IN,7996,Accommodation assistance,46.46,0.00,46.46
Children and Young Peoples Services,Head of Looked After Provision Permanence and Care Leavers,085333,Coxhoe Satelite Home,Supplies and Services,364320,Grants to Voluntary Organisations,11-Mar-2018,000007111576355D,LIGHTWATER VALLEY - IN,7996,Accommodation assistance,46.46,0.00,46.46
Children and Young Peoples Services,Head of Looked After Provision Permanence and Care Leavers,085351,Framwellgate Moor CU,Supplies and Services,364320,Grants to Voluntary Organisations,11-Mar-2018,000007111576355E,LIGHTWATER VALLEY - IN,7996,Accommodation assistance,46.46,0.00,46.46
Children and Young Peoples Services,Head of Looked After Provision Permanence and Care Leavers,085341,High Etherley Satelite Home,Supplies and Services,364320,Grants to Voluntary Organisations,11-Mar-2018,000007111576355F,LIGHTWATER VALLEY - IN,7996,Accommodation assistance,46.46,0.00,46.46
Children and Young Peoples Services,Head of Looked After Provision Permanence and Care Leavers,085551,Short Break Services-Park Hse Sher,Supplies and Services,364320,Grants to Voluntary Organisations,11-Mar-2018,000007111576355G,LIGHTWATER VALLEY - IN,7996,Accommodation assistance,46.46,0.00,46.46
Children and Young Peoples Services,Head of Looked After Provision Permanence and Care Leavers,085352,Tow Law CU,Supplies and Services,364320,Grants to Voluntary Organisations,11-Mar-2018,000007111576355H,LIGHTWATER VALLEY - IN,7996,Accommodation assistance,46.45,0.00,46.45
Children and Young Peoples Services,Head of Looked After Provision Permanence and Care Leavers,085334,West Rainton Satelite Home,Supplies and Services,364320,Grants to Voluntary Organisations,11-Mar-2018,000007111576355I,LIGHTWATER VALLEY - IN,7996,Accommodation assistance,46.45,0.00,46.45
Children and Young Peoples Services,Head of Looked After Provision Permanence and Care Leavers,085352,Tow Law CU,Supplies and Services,348037,Subsistence,11-Mar-2018,000007111576499,ZA ZA BAZAAR NEWCASTLE,5812,Subsistence,79.90,0.00,79.90
Children and Young Peoples Services,Head of Looked After Provision Permanence and Care Leavers,085955,Auckland,Supplies and Services,384999,Miscellaneous Expenses,11-Mar-2018,000007111576765,Amazon UK Marketplace,5942,Other expenses,23.99,0.00,23.99
Children and Young Peoples Services,Head of Looked After Provision Permanence and Care Leavers,085962,Durham,Supplies and Services,324117,Provisions,11-Mar-2018,000007111576769,TESCO STORES 6329,5411,Catering costs - provisions,84.14,0.00,84.14
Dedicated Schools Grant,Dedicated Schools Grant,079040,SENSS-HQ,Supplies and Services,312011,Newspapers Books and Periodicals,11-Mar-2018,000007111576797,Amazon UK Marketplace,5942,Books-school library,27.51,0.00,27.51
Dedicated Schools Grant,Dedicated Schools Grant,079040,SENSS-HQ,Supplies and Services,312011,Newspapers Books and Periodicals,11-Mar-2018,000007111576801,Amazon EU,5969,Books-school library,8.94,0.00,8.94
Resources,Digital and Customer Services,070204,School Services - Systems,Supplies and Services,372009,Subscriptions,12-Mar-2018,000007111575869,WEB NETWORKSOLUTIONS,5968,Subscriptions,4.07,0.00,4.07
Regeneration and Local Services,Spatial Policy Planning Assets & Environment,031071,Sustainability and Climate Change,Supplies and Services,352001,Conference Expenses,12-Mar-2018,000007111576399,CONTINENTAL HOTEL,7011,Conferencesseminars fees etc,0.94,0.00,0.94
Regeneration and Local Services,Economic Development and Housing,030554,International Relations,Transport,235057,Public Transport,12-Mar-2018,000007111576527,SNCB NMBS BRU MIDI ZU,4112,Staff travelling,0.22,0.00,0.22
Regeneration and Local Services,Economic Development and Housing,030554,International Relations,Supplies and Services,348037,Subsistence,12-Mar-2018,000007111576529,BISTROT BRUSSELS AIRP,5812,Subsistence,0.64,0.00,0.64
Children and Young Peoples Services,Head of Education,071801,Selby Cottage Childcare Centre,Supplies and Services,304259,Equipment and Materials,12-Mar-2018,000007119484863,WILKO RETAIL LIMIT,5722,Equipment-purchase and rental,23.60,0.00,23.60
Children and Young Peoples Services,Head of Education,071801,Selby Cottage Childcare Centre,Supplies and Services,324117,Provisions,12-Mar-2018,000007119484867,ASDA GROCERIES ONLINE,5411,Catering costs - provisions,50.92,0.00,50.92
Children and Young Peoples Services,Head of Education,071801,Selby Cottage Childcare Centre,Supplies and Services,324117,Provisions,12-Mar-2018,000007119484871,TESCO STORES 2278,5411,Catering costs - provisions,55.31,0.00,55.31
Children and Young Peoples Services,Head of Education,071801,Selby Cottage Childcare Centre,Supplies and Services,324117,Provisions,12-Mar-2018,000007119484875,W M MORRISON PLC,5411,Catering costs - provisions,9.05,0.00,9.05
Children and Young Peoples Services,Head of Education,071903,EYDCP-Sustainability EDS,Supplies and Services,304335,Equipment and Materials,12-Mar-2018,000007119484881,Amazon UK Marketplace,5942,ICT supplies etc,26.85,0.00,26.85
Resources,Digital and Customer Services,065256,Nodes/Circuits,Supplies and Services,304303,Equipment and Materials,12-Mar-2018,000007119484885,COMMS EXP,5732,Network for resale,78.36,13.06,65.30
Children and Young Peoples Services,Head of Early Help Assessment and Safeguarding,071446,Seaham One Point Hub,Supplies and Services,304335,Equipment and Materials,12-Mar-2018,000007119484889,PAYPAL LAPTOPPARTS,5732,ICT supplies etc,31.99,0.00,31.99
Regeneration and Local Services,Business Support,010832,Business Support,Supplies and Services,312009,Newspapers Books and Periodicals,12-Mar-2018,000007119484891,Amazon EU,5969,Newspapers books and periodicals,133.56,0.00,133.56
Regeneration and Local Services,Direct Services,010367,C&G - South Grounds Maintenance,Supplies and Services,304259,Equipment and Materials,12-Mar-2018,000007119484961,SCREWFIX,5211,Equipment-purchase and rental,24.64,4.11,20.53
Regeneration and Local Services,Direct Services,010367,C&G - South Grounds Maintenance,Supplies and Services,304259,Equipment and Materials,12-Mar-2018,000007119484965,SCREWFIX,5211,Equipment-purchase and rental,27.99,4.67,23.32
Regeneration and Local Services,Economic Development and Housing,030737,Durham Works Flexible Fund,Transport,230031,Contract Hire,12-Mar-2018,000007119484979,ARRIVA NORTH EAST,4131,Pupils-transport to play fields etc,23.00,0.00,23.00
Regeneration and Local Services,Direct Services,021242,Catering - County Hall,Supplies and Services,324117,Provisions,12-Mar-2018,000007119484983,JR HOLLAND FOODSERVICE,5422,Catering costs - provisions,76.47,0.00,76.47
Regeneration and Local Services,Direct Services,021242,Catering - County Hall,Supplies and Services,324117,Provisions,12-Mar-2018,000007119484987,JR HOLLAND FOODSERVICE,5422,Catering costs - provisions,13.54,0.00,13.54
Regeneration and Local Services,Direct Services,021242,Catering - County Hall,Supplies and Services,324117,Provisions,12-Mar-2018,000007119484993,JR HOLLAND FOODSERVICE,5422,Catering costs - provisions,5.10,0.00,5.10
Regeneration and Local Services,Culture & Sport,054233,Bishop Auckland Town Hall Library,Employees,040149,Recruitment Instruction and Training,12-Mar-2018,000007119485009,WWW.FILMBANK.CO.UK,7829,Training-all costs,99.60,0.00,99.60
Regeneration and Local Services,Economic Development and Housing,030737,Durham Works Flexible Fund,Transport,235057,Public Transport,12-Mar-2018,000007119485015,ARRIVA NORTH EAST,4131,Staff travelling,25.00,0.00,25.00
Regeneration and Local Services,Economic Development and Housing,030737,Durham Works Flexible Fund,Transport,235057,Public Transport,12-Mar-2018,000007119485019,ARRIVA NORTH EAST,4131,Staff travelling,7.00,0.00,7.00
Regeneration and Local Services,Economic Development and Housing,030737,Durham Works Flexible Fund,Transport,235057,Public Transport,12-Mar-2018,000007119485021,ARRIVA NORTH EAST,4131,Staff travelling,7.00,0.00,7.00
Regeneration and Local Services,Economic Development and Housing,031576,B& B - Temp Accom,Supplies and Services,352001,Conference Expenses,12-Mar-2018,000007119485099,HOTEL 52,7011,Conferencesseminars fees etc,400.00,66.67,333.33
Regeneration and Local Services,Economic Development and Housing,031576,B& B - Temp Accom,Supplies and Services,352001,Conference Expenses,12-Mar-2018,000007119485103,HOTEL 52,7011,Conferencesseminars fees etc,184.00,30.67,153.33
Regeneration and Local Services,Economic Development and Housing,031576,B& B - Temp Accom,Supplies and Services,352001,Conference Expenses,12-Mar-2018,000007119485107,TRAVELODGE,3615,Conferencesseminars fees etc,41.00,6.83,34.17
Regeneration and Local Services,Direct Services,010900,Fleet - Meadowfield Fleet,Transport,215013,Running Costs of Vehicles,12-Mar-2018,000007119485115,DVLA VEHICLE TAX,9399,Vehicle Excise Duty (VED),242.50,0.00,242.50
Regeneration and Local Services,Economic Development and Housing,030749,Employability - Youth Contract,Transport,235057,Public Transport,12-Mar-2018,000007119485125,GO NORTH EAST LIMITED,4131,Staff travelling,27.00,0.00,27.00
Regeneration and Local Services,Culture & Sport,054813,Gala Theatre - Technical,Supplies and Services,312011,Newspapers Books and Periodicals,12-Mar-2018,000007119485157,Amazon UK Marketplace,5942,Books-school library,3.99,0.00,3.99
Regeneration and Local Services,Culture & Sport,054813,Gala Theatre - Technical,Supplies and Services,312011,Newspapers Books and Periodicals,12-Mar-2018,000007119485161,Amazon UK Marketplace,5942,Books-school library,16.95,0.00,16.95
Regeneration and Local Services,Culture & Sport,054813,Gala Theatre - Technical,Supplies and Services,312011,Newspapers Books and Periodicals,12-Mar-2018,000007119485165,Amazon UK Marketplace,5942,Books-school library,37.94,0.00,37.94
Regeneration and Local Services,Culture & Sport,054813,Gala Theatre - Technical,Supplies and Services,312011,Newspapers Books and Periodicals,12-Mar-2018,000007119485169,Amazon UK Marketplace,5942,Books-school library,112.36,0.00,112.36
Regeneration and Local Services,Culture & Sport,054813,Gala Theatre - Technical,Supplies and Services,312011,Newspapers Books and Periodicals,12-Mar-2018,000007119485171,Amazon UK Marketplace,5942,Books-school library,6.49,0.00,6.49
Regeneration and Local Services,Culture & Sport,054813,Gala Theatre - Technical,Supplies and Services,312011,Newspapers Books and Periodicals,12-Mar-2018,000007119485173,Amazon UK Marketplace,5942,Books-school library,42.99,0.00,42.99
Regeneration and Local Services,Culture & Sport,054813,Gala Theatre - Technical,Supplies and Services,312011,Newspapers Books and Periodicals,12-Mar-2018,000007119485177,Amazon UK Marketplace,5942,Books-school library,90.37,0.00,90.37
Regeneration and Local Services,Culture & Sport,054813,Gala Theatre - Technical,Supplies and Services,312011,Newspapers Books and Periodicals,12-Mar-2018,000007119485181,Amazon UK Marketplace,5942,Books-school library,108.88,0.00,108.88
Regeneration and Local Services,Culture & Sport,054813,Gala Theatre - Technical,Supplies and Services,304403,Equipment and Materials,12-Mar-2018,000007119485183,TESCO DIRECT,5999,Other consumables,476.00,0.00,476.00
Regeneration and Local Services,Direct Services,010301,C&G - North Grounds Maintenance,Supplies and Services,328041,Clothing Uniforms and Laundry,12-Mar-2018,000007119485189,THOMAS OWEN & SONS /N/,5611,Clothing uniforms and laundry,125.16,0.00,125.16
Regeneration and Local Services,Culture & Sport,011060,Hardwick Park Catering,Supplies and Services,324117,Provisions,12-Mar-2018,000007119485195,JR HOLLAND FOODSERVICE,5422,Catering costs - provisions,58.09,0.00,58.09
Children and Young Peoples Services,Head of Looked After Provision Permanence and Care Leavers,085551,Short Break Services-Park Hse Sher,Supplies and Services,324117,Provisions,12-Mar-2018,000007119485231,ALDI 59 774,5411,Catering costs - provisions,9.80,0.00,9.80
Children and Young Peoples Services,Head of Looked After Provision Permanence and Care Leavers,085352,Tow Law CU,Employees,040149,Recruitment Instruction and Training,12-Mar-2018,000007119485295,PARENTPAY E-COM R,8220,Training-all costs,30.00,0.00,30.00
Children and Young Peoples Services,Head of Looked After Provision Permanence and Care Leavers,085332,Middlestone Moor CU,Supplies and Services,324117,Provisions,12-Mar-2018,000007119485317,SAINSBURYS SACAT 2199,5411,Catering costs - provisions,74.39,0.00,74.39
Children and Young Peoples Services,Head of Looked After Provision Permanence and Care Leavers,085333,Coxhoe Satelite Home,Supplies and Services,324117,Provisions,12-Mar-2018,000007119485325,ICELAND,5411,Catering costs - provisions,3.00,0.00,3.00
Children and Young Peoples Services,Head of Looked After Provision Permanence and Care Leavers,085333,Coxhoe Satelite Home,Supplies and Services,324117,Provisions,12-Mar-2018,000007119485329,TESCO STORES 2371,5411,Catering costs - provisions,126.16,0.00,126.16
Children and Young Peoples Services,Head of Looked After Provision Permanence and Care Leavers,085333,Coxhoe Satelite Home,Supplies and Services,324117,Provisions,12-Mar-2018,000007119485331,ALDI 12 774,5411,Catering costs - provisions,67.55,0.00,67.55
Adult and Health Services,Head of Adults,055301,Stanley Pathways,Supplies and Services,324117,Provisions,12-Mar-2018,000007119485339,ASDA SUPERSTORE,5411,Catering costs - provisions,1.14,0.00,1.14
Regeneration and Local Services,Spatial Policy Planning Assets & Environment,031200,North Pennines Core,Transport,235057,Public Transport,12-Mar-2018,000007119485377,NEWCASTLE PARK AND FLY,7523,Staff travelling,4.90,0.00,4.90
Regeneration and Local Services,Spatial Policy Planning Assets & Environment,031200,North Pennines Core,Supplies and Services,324117,Provisions,12-Mar-2018,000007119485379,TESCO STORES 6329,5411,Catering costs - provisions,62.67,0.00,62.67
Children and Young Peoples Services,Head of Looked After Provision Permanence and Care Leavers,085952,Secure Education,Supplies and Services,324117,Provisions,12-Mar-2018,000007119485403,TESCO STORES 6329,5411,Catering costs - provisions,180.00,0.00,180.00
Dedicated Schools Grant,Dedicated Schools Grant,079040,SENSS-HQ,Supplies and Services,312011,Newspapers Books and Periodicals,12-Mar-2018,000007119485421,Amazon UK Marketplace,5942,Books-school library,39.99,0.00,39.99
Regeneration and Local Services,Culture & Sport,054235,Bishop Auckland Town Hall Cafe,Supplies and Services,324117,Provisions,12-Mar-2018,000007119485433,JR HOLLAND FOODSERVICE,5422,Catering costs - provisions,24.55,0.00,24.55
Adult and Health Services,Head of Adults,055309,Peterlee Pathways,Supplies and Services,324117,Provisions,12-Mar-2018,000007119485563,LIDL UK,5411,Catering costs - provisions,2.96,0.00,2.96
Regeneration and Local Services,Economic Development and Housing,030737,Durham Works Flexible Fund,Transport,235057,Public Transport,12-Mar-2018,000007119485597,GO NORTH EAST LIMITED,4131,Staff travelling,105.00,0.00,105.00
Regeneration and Local Services,Economic Development and Housing,030554,International Relations,Supplies and Services,384926,Miscellaneous Expenses,12-Mar-2018,000007119485607,DFDS Danmark Moto,4111,International visits,"1,926.00",0.00,1926.00
Regeneration and Local Services,Culture & Sport,054812,Gala Theatre - Catering etc,Supplies and Services,324117,Provisions,12-Mar-2018,000007123244715,BATLEYS PERTH,5300,Catering costs - provisions,84.78,14.13,70.65
Regeneration and Local Services,Culture & Sport,054812,Gala Theatre - Catering etc,Supplies and Services,324117,Provisions,12-Mar-2018,000007123244715 - 1,BATLEYS PERTH,5300,Catering costs - provisions,58.18,,58.18
Regeneration and Local Services,Economic Development and Housing,031576,B& B - Temp Accom,Employees,040149,Recruitment Instruction and Training,12-Mar-2018,000007123244741,PREMIER INN,3811,Training-all costs,63.00,10.50,52.50
Regeneration and Local Services,Economic Development and Housing,031576,B& B - Temp Accom,Employees,040149,Recruitment Instruction and Training,12-Mar-2018,000007123244745,PREMIER INN,3811,Training-all costs,74.00,12.33,61.67
Regeneration and Local Services,Economic Development and Housing,031576,B& B - Temp Accom,Employees,040149,Recruitment Instruction and Training,12-Mar-2018,000007123244747,PREMIER INN,3811,Training-all costs,189.00,31.50,157.50
Regeneration and Local Services,Direct Services,010383,C&G - South Street Cleansing,Supplies and Services,312011,Newspapers Books and Periodicals,12-Mar-2018,000007127968667,C.L.A.S.S,5251,Books-school library,11.40,1.90,9.50
Adult and Health Services,Commissioning inc Supporting People,052953,Training - Social Work,Supplies and Services,312009,Newspapers Books and Periodicals,13-Mar-2018,000007119485291,Amazon EU,5969,Newspapers books and periodicals,34.49,0.00,34.49
Children and Young Peoples Services,Head of Education,071801,Selby Cottage Childcare Centre,Supplies and Services,324117,Provisions,13-Mar-2018,000007123244611,TESCO STORES 2278,5411,Catering costs - provisions,14.65,0.00,14.65
Regeneration and Local Services,Business Support,010832,Business Support,Supplies and Services,312009,Newspapers Books and Periodicals,13-Mar-2018,000007123244615,Amazon UK Marketplace,5942,Newspapers books and periodicals,34.20,0.00,34.20
Adult and Health Services,Head of Adults,055302,Durham Pathways,Supplies and Services,324117,Provisions,13-Mar-2018,000007123244631,SAINSBURYS SACAT 0776,5411,Catering costs - provisions,7.50,0.00,7.50
Regeneration and Local Services,Economic Development and Housing,030705,Visit County Durham,Supplies and Services,304999,Equipment and Materials,13-Mar-2018,000007123244637,GOOGLE ADWS1872075479,5968,Misc equipment tools and materials,"4,000.00",0.00,4000.00
Children and Young Peoples Services,Head of Early Help Assessment and Safeguarding,088037,One Point YEI,Income,720130,Fees and Charges,13-Mar-2018,000007123244683,GRO HM PASSPORT OFFICE,9399,Fees-legal,9.25,0.00,9.25
Regeneration and Local Services,Direct Services,021242,Catering - County Hall,Supplies and Services,324117,Provisions,13-Mar-2018,000007123244687,FREEMAN CATERING BUTCH,5422,Catering costs - provisions,155.63,0.00,155.63
Regeneration and Local Services,Direct Services,021242,Catering - County Hall,Supplies and Services,324117,Provisions,13-Mar-2018,000007123244691,JR HOLLAND FOODSERVICE,5422,Catering costs - provisions,123.16,0.00,123.16
Regeneration and Local Services,Direct Services,021242,Catering - County Hall,Supplies and Services,324117,Provisions,13-Mar-2018,000007123244697,JR HOLLAND FOODSERVICE,5422,Catering costs - provisions,17.11,0.00,17.11
Regeneration and Local Services,Direct Services,021242,Catering - County Hall,Supplies and Services,324117,Provisions,13-Mar-2018,000007123244699,JR HOLLAND FOODSERVICE,5422,Catering costs - provisions,6.60,0.00,6.60
Regeneration and Local Services,Economic Development and Housing,030737,Durham Works Flexible Fund,Transport,235057,Public Transport,13-Mar-2018,000007123244707,ARRIVA NORTH EAST,4131,Staff travelling,9.00,0.00,9.00
Regeneration and Local Services,Culture & Sport,054812,Gala Theatre - Catering etc,Supplies and Services,324117,Provisions,13-Mar-2018,000007123244713,JR HOLLAND FOODSERVICE,5422,Catering costs - provisions,43.74,0.00,43.74
Children and Young Peoples Services,Head of Early Help Assessment and Safeguarding,071491,Childrens Resilience Service,Supplies and Services,324117,Provisions,13-Mar-2018,000007123244731,ASDA SUPERSTORE 4987,5411,Catering costs - provisions,1.15,0.00,1.15
Regeneration and Local Services,Economic Development and Housing,031576,B& B - Temp Accom,Supplies and Services,352001,Conference Expenses,13-Mar-2018,000007123244751,TRAVELODGE,3615,Conferencesseminars fees etc,50.00,8.33,41.67
Children and Young Peoples Services,Head of Early Help Assessment and Safeguarding,071445,Chester le Street One Point Hub,Supplies and Services,348037,Subsistence,13-Mar-2018,000007123244809,THE TASTY TUCKER (N.E),5814,Subsistence,26.80,0.00,26.80
Regeneration and Local Services,Culture & Sport,054813,Gala Theatre - Technical,Supplies and Services,312011,Newspapers Books and Periodicals,13-Mar-2018,000007123244815,Amazon UK Marketplace,5942,Books-school library,29.43,0.00,29.43
Regeneration and Local Services,Culture & Sport,054813,Gala Theatre - Technical,Supplies and Services,312011,Newspapers Books and Periodicals,13-Mar-2018,000007123244817,Amazon UK Marketplace,5942,Books-school library,148.49,0.00,148.49
Regeneration and Local Services,Direct Services,010301,C&G - North Grounds Maintenance,Supplies and Services,304259,Equipment and Materials,13-Mar-2018,000007123244823,MACHINE MART LTD,5722,Equipment-purchase and rental,329.86,0.00,329.86
Regeneration and Local Services,Culture & Sport,011060,Hardwick Park Catering,Supplies and Services,324117,Provisions,13-Mar-2018,000007123244827,FREEMAN CATERING BUTCH,5422,Catering costs - provisions,28.54,0.00,28.54
Regeneration and Local Services,Culture & Sport,011060,Hardwick Park Catering,Supplies and Services,324117,Provisions,13-Mar-2018,000007123244829,FREEMAN CATERING BUTCH,5422,Catering costs - provisions,23.97,0.00,23.97
Regeneration and Local Services,Culture & Sport,011060,Hardwick Park Catering,Supplies and Services,324117,Provisions,13-Mar-2018,000007123244833,JR HOLLAND FOODSERVICE,5422,Catering costs - provisions,11.97,0.00,11.97
Regeneration and Local Services,Economic Development and Housing,030755,Durham Employment & Skills - Other Training,Employees,040149,Recruitment Instruction and Training,13-Mar-2018,000007123244845,CITB,8220,Training-all costs,30.00,5.00,25.00
Children and Young Peoples Services,Head of Looked After Provision Permanence and Care Leavers,085332,Middlestone Moor CU,Supplies and Services,324117,Provisions,13-Mar-2018,000007123244849,ALDI 74 774,5411,Catering costs - provisions,13.20,0.00,13.20
Regeneration and Local Services,Direct Services,021234,Catering - Locomotion,Supplies and Services,324117,Provisions,13-Mar-2018,000007123244857,FREEMAN CATERING BUTCH,5422,Catering costs - provisions,47.19,0.00,47.19
Regeneration and Local Services,Direct Services,010525,Catering - Green Lane,Supplies and Services,324117,Provisions,13-Mar-2018,000007123244867,FREEMAN CATERING BUTCH,5422,Catering costs - provisions,51.95,0.00,51.95
Regeneration and Local Services,Economic Development and Housing,031576,B& B - Temp Accom,Supplies and Services,384999,Miscellaneous Expenses,13-Mar-2018,000007123244889,HOTEL 52,7011,Other expenses,100.00,0.00,100.00
Adult and Health Services,Head of Adults,055643,Hawthorn House LD Respite Unit,Supplies and Services,324117,Provisions,13-Mar-2018,000007123244941,FREEMAN CATERING BUTCH,5422,Catering costs - provisions,25.86,0.00,25.86
Adult and Health Services,Head of Adults,055643,Hawthorn House LD Respite Unit,Supplies and Services,324117,Provisions,13-Mar-2018,000007123244943,FREEMAN CATERING BUTCH,5422,Catering costs - provisions,21.39,0.00,21.39
Adult and Health Services,Head of Adults,055643,Hawthorn House LD Respite Unit,Supplies and Services,324117,Provisions,13-Mar-2018,000007123244945,JR HOLLAND FOODSERVICE,5422,Catering costs - provisions,21.60,0.00,21.60
Adult and Health Services,Head of Adults,055643,Hawthorn House LD Respite Unit,Supplies and Services,324117,Provisions,13-Mar-2018,000007123244949,JR HOLLAND FOODSERVICE,5422,Catering costs - provisions,16.52,0.00,16.52
Regeneration and Local Services,Direct Services,010301,C&G - North Grounds Maintenance,Supplies and Services,304259,Equipment and Materials,13-Mar-2018,000007123244977,HARELAW SAWMILL,5211,Equipment-purchase and rental,66.00,11.00,55.00
Children and Young Peoples Services,Head of Looked After Provision Permanence and Care Leavers,085957,Secure Management,Supplies and Services,304245,Equipment and Materials,13-Mar-2018,000007123244993,Amazon UK Marketplace,5942,Materials,9.99,0.00,9.99
Children and Young Peoples Services,Head of Looked After Provision Permanence and Care Leavers,085957,Secure Management,Supplies and Services,304245,Equipment and Materials,13-Mar-2018,000007123244997,Amazon UK Marketplace,5942,Materials,29.98,0.00,29.98
Children and Young Peoples Services,Head of Looked After Provision Permanence and Care Leavers,085957,Secure Management,Supplies and Services,328041,Clothing Uniforms and Laundry,13-Mar-2018,000007123244999,Amazon EU,5969,Clothing uniforms and laundry,18.99,0.00,18.99
Children and Young Peoples Services,Head of Looked After Provision Permanence and Care Leavers,085957,Secure Management,Supplies and Services,328041,Clothing Uniforms and Laundry,13-Mar-2018,000007123245003,VERY,5964,Clothing uniforms and laundry,15.99,0.00,15.99
Regeneration and Local Services,Transport and Contracted Services,032061,Traffic,Supplies and Services,372009,Subscriptions,13-Mar-2018,000007123245017,CIHT CHARTERED INST H&,8398,Subscriptions,72.00,0.00,72.00
Regeneration and Local Services,Transport and Contracted Services,032061,Traffic,Supplies and Services,372009,Subscriptions,13-Mar-2018,000007123245021,CIHT CHARTERED INST H&,8398,Subscriptions,72.00,0.00,72.00
Regeneration and Local Services,Culture & Sport,054235,Bishop Auckland Town Hall Cafe,Supplies and Services,324117,Provisions,13-Mar-2018,000007123245039,JR HOLLAND FOODSERVICE,5422,Catering costs - provisions,10.73,0.00,10.73
Regeneration and Local Services,Direct Services,021324,Catering - Meadowfield,Supplies and Services,324117,Provisions,13-Mar-2018,000007123245045,FREEMAN CATERING BUTCH,5422,Catering costs - provisions,71.84,0.00,71.84
Regeneration and Local Services,Direct Services,021324,Catering - Meadowfield,Supplies and Services,324117,Provisions,13-Mar-2018,000007123245049,FREEMAN CATERING BUTCH,5422,Catering costs - provisions,67.93,0.00,67.93
Regeneration and Local Services,Direct Services,021324,Catering - Meadowfield,Supplies and Services,324117,Provisions,13-Mar-2018,000007123245053,FREEMAN CATERING BUTCH,5422,Catering costs - provisions,3.03,0.00,3.03
Regeneration and Local Services,Economic Development and Housing,030694,Netpark Incubator 2,Supplies and Services,324117,Provisions,13-Mar-2018,000007123245113,SAINSBURYS SACAT (2303,5411,Catering costs - provisions,10.00,0.00,10.00
Regeneration and Local Services,Direct Services,021235,Catering - Wharton Park,Supplies and Services,324117,Provisions,13-Mar-2018,000007123245149,JR HOLLAND FOODSERVICE,5422,Catering costs - provisions,27.10,0.00,27.10
Regeneration and Local Services,Economic Development and Housing,030737,Durham Works Flexible Fund,Transport,235057,Public Transport,13-Mar-2018,000007123245167,GO NORTH EAST LIMITED,4131,Staff travelling,8.00,0.00,8.00
Children and Young Peoples Services,Childrens Services Operational Support,052986,CYPS - Locality and Operational Support,Supplies and Services,304259,Equipment and Materials,13-Mar-2018,000007123245213,SUNDERLAND CC,9399,Equipment-purchase and rental,10.00,0.00,10.00
Regeneration and Local Services,Direct Services,021242,Catering - County Hall,Supplies and Services,324117,Provisions,13-Mar-2018,000007127968743,BATLEYS PERTH,5300,Catering costs - provisions,439.68,73.28,366.40
Regeneration and Local Services,Direct Services,021242,Catering - County Hall,Supplies and Services,324117,Provisions,13-Mar-2018,000007127968743 - 1,BATLEYS PERTH,5300,Catering costs - provisions,255.96,,255.96
Regeneration and Local Services,Economic Development and Housing,031576,B& B - Temp Accom,Employees,040149,Recruitment Instruction and Training,13-Mar-2018,000007127968801,PREMIER INN,3811,Training-all costs,87.00,14.50,72.50
Regeneration and Local Services,Economic Development and Housing,031576,B& B - Temp Accom,Employees,040149,Recruitment Instruction and Training,13-Mar-2018,000007127968803,PREMIER INN,3811,Training-all costs,243.00,40.50,202.50
Regeneration and Local Services,Culture & Sport,011060,Hardwick Park Catering,Supplies and Services,324117,Provisions,13-Mar-2018,000007127968945,BATLEYS PERTH,5300,Catering costs - provisions,64.80,10.80,54.00
Regeneration and Local Services,Culture & Sport,011060,Hardwick Park Catering,Supplies and Services,324117,Provisions,13-Mar-2018,000007127968945 - 1,BATLEYS PERTH,5300,Catering costs - provisions,40.21,,40.21
Regeneration and Local Services,Direct Services,021234,Catering - Locomotion,Supplies and Services,324117,Provisions,13-Mar-2018,000007127968985,BATLEYS PERTH,5300,Catering costs - provisions,197.88,32.98,164.90
Regeneration and Local Services,Direct Services,021234,Catering - Locomotion,Supplies and Services,324117,Provisions,13-Mar-2018,000007127968985 - 1,BATLEYS PERTH,5300,Catering costs - provisions,245.54,,245.54
Regeneration and Local Services,Direct Services,021234,Catering - Locomotion,Supplies and Services,324117,Provisions,13-Mar-2018,000007127968991,BATLEYS PERTH,5300,Catering costs - provisions,111.01,18.50,92.51
Regeneration and Local Services,Economic Development and Housing,031576,B& B - Temp Accom,Supplies and Services,384999,Miscellaneous Expenses,13-Mar-2018,000007127969037,PREMIER INN,3811,Other expenses,81.00,13.50,67.50
Regeneration and Local Services,Culture & Sport,054235,Bishop Auckland Town Hall Cafe,Supplies and Services,324117,Provisions,13-Mar-2018,000007127969261,BATLEYS PERTH,5300,Catering costs - provisions,71.52,0.00,71.52
Regeneration and Local Services,Direct Services,021324,Catering - Meadowfield,Supplies and Services,324117,Provisions,13-Mar-2018,000007127969281,BATLEYS PERTH,5300,Catering costs - provisions,73.86,12.31,61.55
Regeneration and Local Services,Direct Services,021324,Catering - Meadowfield,Supplies and Services,324117,Provisions,13-Mar-2018,000007127969281 - 1,BATLEYS PERTH,5300,Catering costs - provisions,141.29,,141.29
Children and Young Peoples Services,Head of Looked After Provision Permanence and Care Leavers,085956,Lumley,Supplies and Services,328041,Clothing Uniforms and Laundry,13-Mar-2018,000007133025979,SPORTSDIRECT.COM,5941,Clothing uniforms and laundry,76.99,0.00,76.99
Children and Young Peoples Services,Head of Looked After Provision Permanence and Care Leavers,085957,Secure Management,Supplies and Services,384999,Miscellaneous Expenses,13-Mar-2018,000007133025983,NEWTON PRESS,7338,Other expenses,106.80,0.00,106.80
Children and Young Peoples Services,Head of Education,071801,Selby Cottage Childcare Centre,Supplies and Services,328041,Clothing Uniforms and Laundry,14-Mar-2018,000007127968641,THE RANGE,5311,Clothing uniforms and laundry,79.37,0.00,79.37
Children and Young Peoples Services,Head of Education,071801,Selby Cottage Childcare Centre,Supplies and Services,324117,Provisions,14-Mar-2018,000007127968645,TESCO STORES 2278,5411,Catering costs - provisions,29.93,0.00,29.93
Children and Young Peoples Services,Head of Education,071801,Selby Cottage Childcare Centre,Supplies and Services,308011,Furniture,14-Mar-2018,000007127968649,IKEA LIMITED,5712,Furniture repair and replacement,208.32,0.00,208.32
Adult and Health Services,Head of Adults,055302,Durham Pathways,Supplies and Services,324117,Provisions,14-Mar-2018,000007127968663,ASDA STORES LTD 4313,5411,Catering costs - provisions,11.40,0.00,11.40
Regeneration and Local Services,Economic Development and Housing,030705,Visit County Durham,Supplies and Services,384999,Miscellaneous Expenses,14-Mar-2018,000007127968671,WEBTICKETMANAGER LTD,7922,Other expenses,298.80,0.00,298.80
Regeneration and Local Services,Direct Services,021242,Catering - County Hall,Supplies and Services,324117,Provisions,14-Mar-2018,000007127968713,HOPWELLS LTD,5811,Catering costs - provisions,349.51,0.00,349.51
Regeneration and Local Services,Direct Services,021242,Catering - County Hall,Supplies and Services,324117,Provisions,14-Mar-2018,000007127968719,HOPWELLS LTD,5811,Catering costs - provisions,310.75,0.00,310.75
Regeneration and Local Services,Direct Services,021242,Catering - County Hall,Supplies and Services,324117,Provisions,14-Mar-2018,000007127968725,JR HOLLAND FOODSERVICE,5422,Catering costs - provisions,161.78,0.00,161.78
Regeneration and Local Services,Direct Services,021242,Catering - County Hall,Supplies and Services,324117,Provisions,14-Mar-2018,000007127968729,JR HOLLAND FOODSERVICE,5422,Catering costs - provisions,102.23,0.00,102.23
Regeneration and Local Services,Direct Services,021242,Catering - County Hall,Supplies and Services,324117,Provisions,14-Mar-2018,000007127968733,JR HOLLAND FOODSERVICE,5422,Catering costs - provisions,30.14,0.00,30.14
Regeneration and Local Services,Direct Services,021242,Catering - County Hall,Supplies and Services,324117,Provisions,14-Mar-2018,000007127968737,JR HOLLAND FOODSERVICE,5422,Catering costs - provisions,9.06,0.00,9.06
Regeneration and Local Services,Direct Services,021242,Catering - County Hall,Supplies and Services,324117,Provisions,14-Mar-2018,000007127968741,JR HOLLAND FOODSERVICE,5422,Catering costs - provisions,8.80,0.00,8.80
Regeneration and Local Services,Economic Development and Housing,030737,Durham Works Flexible Fund,Transport,235057,Public Transport,14-Mar-2018,000007127968757,ARRIVA NORTH EAST,4131,Staff travelling,7.00,0.00,7.00
Regeneration and Local Services,Culture & Sport,054812,Gala Theatre - Catering etc,Supplies and Services,324117,Provisions,14-Mar-2018,000007127968763,HOPWELLS LTD,5811,Catering costs - provisions,74.38,0.00,74.38
Children and Young Peoples Services,Head of Looked After Provision Permanence and Care Leavers,085334,West Rainton Satelite Home,Supplies and Services,312011,Newspapers Books and Periodicals,14-Mar-2018,000007127968823,HOME BARGAINS,5251,Books-school library,19.27,0.00,19.27
Children and Young Peoples Services,Head of Looked After Provision Permanence and Care Leavers,085334,West Rainton Satelite Home,Supplies and Services,312011,Newspapers Books and Periodicals,14-Mar-2018,000007127968827,HOME BARGAINS,5251,Books-school library,9.87,0.00,9.87
Children and Young Peoples Services,Head of Looked After Provision Permanence and Care Leavers,085334,West Rainton Satelite Home,Supplies and Services,324117,Provisions,14-Mar-2018,000007127968831,TESCO STORES 2371,5411,Catering costs - provisions,45.06,0.00,45.06
Children and Young Peoples Services,Head of Looked After Provision Permanence and Care Leavers,085334,West Rainton Satelite Home,Supplies and Services,324117,Provisions,14-Mar-2018,000007127968835,ALDI 12 774,5411,Catering costs - provisions,80.67,0.00,80.67
Regeneration and Local Services,Direct Services,010367,C&G - South Grounds Maintenance,Supplies and Services,312011,Newspapers Books and Periodicals,14-Mar-2018,000007127968837,GROUNDSMAN TOOLS AND S,5251,Books-school library,62.46,10.41,52.05
Regeneration and Local Services,Economic Development and Housing,030737,Durham Works Flexible Fund,Supplies and Services,328041,Clothing Uniforms and Laundry,14-Mar-2018,000007127968905,MATALAN,5691,Clothing uniforms and laundry,30.05,0.00,30.05
Regeneration and Local Services,Culture & Sport,054813,Gala Theatre - Technical,Supplies and Services,312011,Newspapers Books and Periodicals,14-Mar-2018,000007127968917,Amazon EU,5969,Books-school library,9.85,0.00,9.85
Regeneration and Local Services,Culture & Sport,054813,Gala Theatre - Technical,Supplies and Services,312011,Newspapers Books and Periodicals,14-Mar-2018,000007127968921,Amazon UK Marketplace,5942,Books-school library,9.69,0.00,9.69
Regeneration and Local Services,Culture & Sport,054813,Gala Theatre - Technical,Supplies and Services,312011,Newspapers Books and Periodicals,14-Mar-2018,000007127968923,Amazon UK Marketplace,5942,Books-school library,51.98,0.00,51.98
Regeneration and Local Services,Direct Services,010301,C&G - North Grounds Maintenance,Supplies and Services,304259,Equipment and Materials,14-Mar-2018,000007127968929,WWW.JTDOVE.CO.UK,5211,Equipment-purchase and rental,117.79,0.00,117.79
Regeneration and Local Services,Culture & Sport,011060,Hardwick Park Catering,Supplies and Services,324117,Provisions,14-Mar-2018,000007127968933,HOPWELLS LTD,5811,Catering costs - provisions,44.22,7.37,36.85
Regeneration and Local Services,Culture & Sport,011060,Hardwick Park Catering,Supplies and Services,324117,Provisions,14-Mar-2018,000007127968933 - 1,HOPWELLS LTD,5811,Catering costs - provisions,48.88,,48.88
Regeneration and Local Services,Culture & Sport,011060,Hardwick Park Catering,Supplies and Services,324117,Provisions,14-Mar-2018,000007127968937,JR HOLLAND FOODSERVICE,5422,Catering costs - provisions,78.94,0.00,78.94
Regeneration and Local Services,Culture & Sport,011060,Hardwick Park Catering,Supplies and Services,324117,Provisions,14-Mar-2018,000007127968941,JR HOLLAND FOODSERVICE,5422,Catering costs - provisions,47.12,0.00,47.12
Children and Young Peoples Services,Head of Looked After Provision Permanence and Care Leavers,085332,Middlestone Moor CU,Supplies and Services,384871,Miscellaneous Expenses,14-Mar-2018,000007127968959,SUNDERLAND AFC LTD,7997,Training-other activities,40.50,6.75,33.75
Children and Young Peoples Services,Head of Looked After Provision Permanence and Care Leavers,085332,Middlestone Moor CU,Supplies and Services,324117,Provisions,14-Mar-2018,000007127968961,TESCO STORES 2371,5411,Catering costs - provisions,144.50,0.00,144.50
Regeneration and Local Services,Direct Services,021234,Catering - Locomotion,Supplies and Services,324117,Provisions,14-Mar-2018,000007127968967,HOPWELLS LTD,5811,Catering costs - provisions,114.90,19.15,95.75
Regeneration and Local Services,Direct Services,021234,Catering - Locomotion,Supplies and Services,324117,Provisions,14-Mar-2018,000007127968967 - 1,HOPWELLS LTD,5811,Catering costs - provisions,207.21,,207.21
Regeneration and Local Services,Direct Services,021234,Catering - Locomotion,Supplies and Services,324117,Provisions,14-Mar-2018,000007127968971,HOPWELLS LTD,5811,Catering costs - provisions,138.69,0.00,138.69
Regeneration and Local Services,Direct Services,021234,Catering - Locomotion,Supplies and Services,324117,Provisions,14-Mar-2018,000007127968975,JR HOLLAND FOODSERVICE,5422,Catering costs - provisions,68.14,0.00,68.14
Regeneration and Local Services,Direct Services,021234,Catering - Locomotion,Supplies and Services,324117,Provisions,14-Mar-2018,000007127968981,JR HOLLAND FOODSERVICE,5422,Catering costs - provisions,4.04,0.00,4.04
Regeneration and Local Services,Direct Services,021234,Catering - Locomotion,Supplies and Services,324117,Provisions,14-Mar-2018,000007127968995,JR HOLLAND FOODSERVICE,5422,Catering costs - provisions,-9.66,0.00,-9.66
Regeneration and Local Services,Economic Development and Housing,031576,B& B - Temp Accom,Supplies and Services,364320,Grants to Voluntary Organisations,14-Mar-2018,000007127968999,HOTEL 52,7011,Accommodation assistance,100.00,0.00,100.00
Regeneration and Local Services,Direct Services,010525,Catering - Green Lane,Supplies and Services,324117,Provisions,14-Mar-2018,000007127969003,HOPWELLS LTD,5811,Catering costs - provisions,95.28,0.00,95.28
Regeneration and Local Services,Direct Services,010525,Catering - Green Lane,Supplies and Services,324117,Provisions,14-Mar-2018,000007127969007,HOPWELLS LTD,5811,Catering costs - provisions,77.45,0.00,77.45
Regeneration and Local Services,Direct Services,010525,Catering - Green Lane,Supplies and Services,324117,Provisions,14-Mar-2018,000007127969011,JR HOLLAND FOODSERVICE,5422,Catering costs - provisions,61.37,0.00,61.37
Regeneration and Local Services,Direct Services,010525,Catering - Green Lane,Supplies and Services,324117,Provisions,14-Mar-2018,000007127969015,HOPWELLS LTD,5811,Catering costs - provisions,-6.55,0.00,-6.55
Children and Young Peoples Services,Head of Looked After Provision Permanence and Care Leavers,085332,Middlestone Moor CU,Supplies and Services,324117,Provisions,14-Mar-2018,000007127969055,SAINSBURYS 2199,5411,Catering costs - provisions,141.02,0.00,141.02
Regeneration and Local Services,Direct Services,010367,C&G - South Grounds Maintenance,Third Party Payments,430100,Rendered by Private Contractors,14-Mar-2018,000007127969059,GREEN-TECH LTD,7399,Payments to sub-contractors,393.24,65.54,327.70
Regeneration and Local Services,Direct Services,010367,C&G - South Grounds Maintenance,Supplies and Services,384999,Miscellaneous Expenses,14-Mar-2018,000007127969079,WWW.GUSTHARTS.COM,5046,Other expenses,215.11,35.85,179.26
Adult and Health Services,Head of Adults,055643,Hawthorn House LD Respite Unit,Supplies and Services,324117,Provisions,14-Mar-2018,000007127969123,HOPWELLS LTD,5811,Catering costs - provisions,42.69,0.00,42.69
Adult and Health Services,Head of Adults,055643,Hawthorn House LD Respite Unit,Supplies and Services,324117,Provisions,14-Mar-2018,000007127969127,JR HOLLAND FOODSERVICE,5422,Catering costs - provisions,19.20,0.00,19.20
Adult and Health Services,Head of Adults,055643,Hawthorn House LD Respite Unit,Supplies and Services,324117,Provisions,14-Mar-2018,000007127969131,JR HOLLAND FOODSERVICE,5422,Catering costs - provisions,9.62,0.00,9.62
Adult and Health Services,Head of Adults,055643,Hawthorn House LD Respite Unit,Supplies and Services,324117,Provisions,14-Mar-2018,000007127969133,JR HOLLAND FOODSERVICE,5422,Catering costs - provisions,2.55,0.00,2.55
Children and Young Peoples Services,Head of Looked After Provision Permanence and Care Leavers,085380,Operations Manager Adoption & Fostering,Supplies and Services,324117,Provisions,14-Mar-2018,000007127969143,ASDA STORES,5411,Catering costs - provisions,42.19,0.00,42.19
Children and Young Peoples Services,Head of Early Help Assessment and Safeguarding,074000,TTF-Attachment and Results,Supplies and Services,312011,Newspapers Books and Periodicals,14-Mar-2018,000007127969173,Amazon UK Marketplace,5942,Books-school library,2.35,0.00,2.35
Children and Young Peoples Services,Head of Early Help Assessment and Safeguarding,074000,TTF-Attachment and Results,Supplies and Services,312011,Newspapers Books and Periodicals,14-Mar-2018,000007127969177,Amazon UK Marketplace,5942,Books-school library,2.79,0.00,2.79
Children and Young Peoples Services,Head of Early Help Assessment and Safeguarding,074000,TTF-Attachment and Results,Supplies and Services,324117,Provisions,14-Mar-2018,000007127969181,ASDA GEORGE COM LEEDS,5411,Catering costs - provisions,93.42,15.57,77.85
Children and Young Peoples Services,Head of Early Help Assessment and Safeguarding,074000,TTF-Attachment and Results,Supplies and Services,324117,Provisions,14-Mar-2018,000007127969181 - 1,ASDA GEORGE COM LEEDS,5411,Catering costs - provisions,5.90,,5.90
Children and Young Peoples Services,Head of Early Help Assessment and Safeguarding,074000,TTF-Attachment and Results,Supplies and Services,324117,Provisions,14-Mar-2018,000007127969183,ASDA GEORGE COM LEEDS,5411,Catering costs - provisions,46.53,7.76,38.77
Children and Young Peoples Services,Head of Early Help Assessment and Safeguarding,074000,TTF-Attachment and Results,Supplies and Services,324117,Provisions,14-Mar-2018,000007127969187,ASDA GEORGE COM LEEDS,5411,Catering costs - provisions,26.74,4.46,22.28
Children and Young Peoples Services,Head of Looked After Provision Permanence and Care Leavers,085957,Secure Management,Supplies and Services,304245,Equipment and Materials,14-Mar-2018,000007127969199,Amazon UK Marketplace,5942,Materials,3.00,0.00,3.00
Children and Young Peoples Services,Head of Looked After Provision Permanence and Care Leavers,085956,Lumley,Supplies and Services,384999,Miscellaneous Expenses,14-Mar-2018,000007127969203,WWW.HMV.COM,5735,Other expenses,54.98,0.00,54.98
Children and Young Peoples Services,Head of Looked After Provision Permanence and Care Leavers,085955,Auckland,Supplies and Services,324117,Provisions,14-Mar-2018,000007127969205,TESCO STORES 6329,5411,Catering costs - provisions,88.27,0.00,88.27
Dedicated Schools Grant,Dedicated Schools Grant,079040,SENSS-HQ,Supplies and Services,312011,Newspapers Books and Periodicals,14-Mar-2018,000007127969213,Amazon UK Marketplace,5942,Books-school library,17.78,0.00,17.78
Dedicated Schools Grant,Dedicated Schools Grant,079040,SENSS-HQ,Supplies and Services,312011,Newspapers Books and Periodicals,14-Mar-2018,000007127969215,Amazon UK Marketplace,5942,Books-school library,11.23,0.00,11.23
Dedicated Schools Grant,Dedicated Schools Grant,079040,SENSS-HQ,Supplies and Services,312011,Newspapers Books and Periodicals,14-Mar-2018,000007127969219,Amazon UK Marketplace,5942,Books-school library,30.00,0.00,30.00
Dedicated Schools Grant,Dedicated Schools Grant,079040,SENSS-HQ,Supplies and Services,312011,Newspapers Books and Periodicals,14-Mar-2018,000007127969223,Amazon UK Marketplace,5942,Books-school library,8.92,0.00,8.92
Dedicated Schools Grant,Dedicated Schools Grant,079040,SENSS-HQ,Supplies and Services,312011,Newspapers Books and Periodicals,14-Mar-2018,000007127969225,Amazon UK Marketplace,5942,Books-school library,41.17,0.00,41.17
Children and Young Peoples Services,Head of Looked After Provision Permanence and Care Leavers,085372,Young People Services - North,Supplies and Services,304403,Equipment and Materials,14-Mar-2018,000007127969247,SP CHERISHED URNS,5734,Other consumables,35.00,0.00,35.00
Regeneration and Local Services,Culture & Sport,054235,Bishop Auckland Town Hall Cafe,Supplies and Services,324117,Provisions,14-Mar-2018,000007127969257,JR HOLLAND FOODSERVICE,5422,Catering costs - provisions,59.77,0.00,59.77
Regeneration and Local Services,Direct Services,021324,Catering - Meadowfield,Supplies and Services,324117,Provisions,14-Mar-2018,000007127969269,HOPWELLS LTD,5811,Catering costs - provisions,53.81,0.00,53.81
Regeneration and Local Services,Direct Services,021324,Catering - Meadowfield,Supplies and Services,324117,Provisions,14-Mar-2018,000007127969273,JR HOLLAND FOODSERVICE,5422,Catering costs - provisions,34.55,0.00,34.55
Regeneration and Local Services,Direct Services,021324,Catering - Meadowfield,Supplies and Services,324117,Provisions,14-Mar-2018,000007127969277,JR HOLLAND FOODSERVICE,5422,Catering costs - provisions,13.89,0.00,13.89
Adult and Health Services,Head of Adults,055306,Spennymoor Pathways,Supplies and Services,324117,Provisions,14-Mar-2018,000007127969415,ASDA SUPERSTORE 4987,5411,Catering costs - provisions,1.70,0.00,1.70
Regeneration and Local Services,Direct Services,021235,Catering - Wharton Park,Supplies and Services,324117,Provisions,14-Mar-2018,000007127969419,HOPWELLS LTD,5811,Catering costs - provisions,13.08,2.18,10.90
Regeneration and Local Services,Direct Services,021235,Catering - Wharton Park,Supplies and Services,324117,Provisions,14-Mar-2018,000007127969419 - 1,HOPWELLS LTD,5811,Catering costs - provisions,47.07,,47.07
Regeneration and Local Services,Direct Services,021235,Catering - Wharton Park,Supplies and Services,324117,Provisions,14-Mar-2018,000007127969423,JR HOLLAND FOODSERVICE,5422,Catering costs - provisions,-20.15,0.00,-20.15
Regeneration and Local Services,Economic Development and Housing,030737,Durham Works Flexible Fund,Supplies and Services,304259,Equipment and Materials,14-Mar-2018,000007127969429,GATESHEAD COUNCIL,9399,Equipment-purchase and rental,18.00,0.00,18.00
Regeneration and Local Services,Spatial Policy Planning Assets & Environment,031200,North Pennines Core,Supplies and Services,312011,Newspapers Books and Periodicals,14-Mar-2018,000007127969465,Amazon UK Marketplace,5942,Books-school library,97.88,0.00,97.88
Resources,Finance & Transactional Services,065116,Creditors/Purchasing,Supplies and Services,338064,Services,14-Mar-2018,000007127969475,DISCLOSURE SCOT,9399,Disclosure & Barring (DBS) Fees,25.00,0.00,25.00
Regeneration and Local Services,Economic Development and Housing,030699,Business Growth and Innovation General,Supplies and Services,342033,Computers and Communications,14-Mar-2018,000007133025571,WATCHFULPAYPAL,7379,Computer hardware,14.35,0.00,14.35
Regeneration and Local Services,Economic Development and Housing,031576,B& B - Temp Accom,Supplies and Services,364320,Grants to Voluntary Organisations,14-Mar-2018,000007133025781,PREMIER INN,3811,Accommodation assistance,81.00,13.50,67.50
Regeneration and Local Services,Economic Development and Housing,031576,B& B - Temp Accom,Supplies and Services,364320,Grants to Voluntary Organisations,14-Mar-2018,000007133025785,PREMIER INN,3811,Accommodation assistance,93.00,15.50,77.50
Adult and Health Services,Head of Adults,053813,Charles Dickens Extra Care,Premises,145015,Cleaning and Domestic Supplies,14-Mar-2018,000007133025845,WWW.ARGOS.CO.UK,5310,Cleaning and domestic equipment,157.98,0.00,157.98
Regeneration and Local Services,Economic Development and Housing,031576,B& B - Temp Accom,Supplies and Services,384999,Miscellaneous Expenses,14-Mar-2018,000007133025859,PREMIER INN,3811,Other expenses,249.00,41.50,207.50
Regeneration and Local Services,Economic Development and Housing,031576,B& B - Temp Accom,Supplies and Services,384999,Miscellaneous Expenses,14-Mar-2018,000007133025861,PREMIER INN,3811,Other expenses,751.50,125.25,626.25
Regeneration and Local Services,Spatial Policy Planning Assets & Environment,031200,North Pennines Core,Supplies and Services,352001,Conference Expenses,14-Mar-2018,000007133025935,STANHOPE OLD HALL,7011,Conferencesseminars fees etc,60.00,0.00,60.00
Regeneration and Local Services,Spatial Policy Planning Assets & Environment,031200,North Pennines Core,Supplies and Services,352001,Conference Expenses,14-Mar-2018,000007133025939,STANHOPE OLD HALL,7011,Conferencesseminars fees etc,20.00,0.00,20.00
Children and Young Peoples Services,Head of Education,071801,Selby Cottage Childcare Centre,Supplies and Services,324117,Provisions,15-Mar-2018,000007133025479,ASDA GROCERIES ONLINE,5411,Catering costs - provisions,5.00,0.00,5.00
Regeneration and Local Services,Business Support,010832,Business Support,Supplies and Services,312009,Newspapers Books and Periodicals,15-Mar-2018,000007133025487,Amazon UK Marketplace,5942,Newspapers books and periodicals,48.36,0.00,48.36
Regeneration and Local Services,Economic Development and Housing,030732,Rural Employability Project - South Durham,Supplies and Services,384999,Miscellaneous Expenses,15-Mar-2018,000007133025525,BROWNS PET CARE LI,5995,Other expenses,300.00,0.00,300.00
Regeneration and Local Services,Economic Development and Housing,030699,Business Growth and Innovation General,Supplies and Services,304999,Equipment and Materials,15-Mar-2018,000007133025573,MOZ,5817,Misc equipment tools and materials,71.10,0.00,71.10
Regeneration and Local Services,Direct Services,021242,Catering - County Hall,Supplies and Services,324117,Provisions,15-Mar-2018,000007133025627,JR HOLLAND FOODSERVICE,5422,Catering costs - provisions,73.83,0.00,73.83
Regeneration and Local Services,Direct Services,021242,Catering - County Hall,Supplies and Services,324117,Provisions,15-Mar-2018,000007133025631,JR HOLLAND FOODSERVICE,5422,Catering costs - provisions,13.20,0.00,13.20
Regeneration and Local Services,Culture & Sport,054812,Gala Theatre - Catering etc,Supplies and Services,324117,Provisions,15-Mar-2018,000007133025639,JR HOLLAND FOODSERVICE,5422,Catering costs - provisions,56.22,0.00,56.22
Children and Young Peoples Services,Head of Looked After Provision Permanence and Care Leavers,085334,West Rainton Satelite Home,Supplies and Services,324117,Provisions,15-Mar-2018,000007133025671,GEORGE BOLAM (FOODS) L,5499,Catering costs - provisions,99.39,0.00,99.39
Children and Young Peoples Services,Head of Education,071732,Dean Bank Childcare,Supplies and Services,384956,Miscellaneous Expenses,15-Mar-2018,000007133025683,OFSTED INTERNET,9399,Licences,220.00,0.00,220.00
Regeneration and Local Services,Economic Development and Housing,030737,Durham Works Flexible Fund,Supplies and Services,348037,Subsistence,15-Mar-2018,000007133025717,GO NORTH EAST LIMITED,4131,Subsistence,6.50,0.00,6.50
Regeneration and Local Services,Culture & Sport,054813,Gala Theatre - Technical,Supplies and Services,312011,Newspapers Books and Periodicals,15-Mar-2018,000007133025719,Amazon EU,5969,Books-school library,10.00,0.00,10.00
Regeneration and Local Services,Culture & Sport,054813,Gala Theatre - Technical,Supplies and Services,312011,Newspapers Books and Periodicals,15-Mar-2018,000007133025723,Amazon UK Marketplace,5942,Books-school library,29.99,0.00,29.99
Children and Young Peoples Services,Head of Early Help Assessment and Safeguarding,071746,Newton Aycliffe Childrens Centre,Supplies and Services,324117,Provisions,15-Mar-2018,000007133025743,TESCO STORES 2916,5411,Catering costs - provisions,18.11,0.00,18.11
Regeneration and Local Services,Spatial Policy Planning Assets & Environment,031200,North Pennines Core,Supplies and Services,304403,Equipment and Materials,15-Mar-2018,000007133025749,W E & J ROWLE,5947,Other consumables,6.99,0.00,6.99
Regeneration and Local Services,Spatial Policy Planning Assets & Environment,031200,North Pennines Core,Transport,235057,Public Transport,15-Mar-2018,000007133025753,PRINCE BISHOP SHOPPING,7523,Staff travelling,1.50,0.00,1.50
Children and Young Peoples Services,Head of Looked After Provision Permanence and Care Leavers,085332,Middlestone Moor CU,Supplies and Services,324117,Provisions,15-Mar-2018,000007133025765,SAINSBURYS 2199,5411,Catering costs - provisions,30.28,0.00,30.28
Regeneration and Local Services,Direct Services,021234,Catering - Locomotion,Supplies and Services,324117,Provisions,15-Mar-2018,000007133025771,JR HOLLAND FOODSERVICE,5422,Catering costs - provisions,59.87,0.00,59.87
Regeneration and Local Services,Direct Services,021234,Catering - Locomotion,Supplies and Services,324117,Provisions,15-Mar-2018,000007133025775,JR HOLLAND FOODSERVICE,5422,Catering costs - provisions,10.71,0.00,10.71
Regeneration and Local Services,Economic Development and Housing,031576,B& B - Temp Accom,Supplies and Services,364320,Grants to Voluntary Organisations,15-Mar-2018,000007133025797,HOTEL 52,7011,Accommodation assistance,100.00,0.00,100.00
Children and Young Peoples Services,Head of Looked After Provision Permanence and Care Leavers,085352,Tow Law CU,Supplies and Services,324117,Provisions,15-Mar-2018,000007133025801,TESCO STORES 2371,5411,Catering costs - provisions,171.24,0.00,171.24
Adult and Health Services,EnvironmentHealth & Consumer Protection,010827,Health Protection,Supplies and Services,304403,Equipment and Materials,15-Mar-2018,000007133025841,Amazon EU,5969,Other consumables,9.28,1.55,7.73
Regeneration and Local Services,Direct Services,010913,Bldg Serv - Construction General,Supplies and Services,312009,Newspapers Books and Periodicals,15-Mar-2018,000007133025869,Amazon UK Marketplace,5942,Newspapers books and periodicals,116.22,0.00,116.22
Children and Young Peoples Services,Head of Looked After Provision Permanence and Care Leavers,085380,Operations Manager Adoption & Fostering,Supplies and Services,324117,Provisions,15-Mar-2018,000007133025949,ASDA STORES,5411,Catering costs - provisions,8.00,0.00,8.00
Regeneration and Local Services,Direct Services,010301,C&G - North Grounds Maintenance,Supplies and Services,304259,Equipment and Materials,15-Mar-2018,000007133025967,HARELAW SAWMILL,5211,Equipment-purchase and rental,168.49,28.08,140.41
Children and Young Peoples Services,Head of Looked After Provision Permanence and Care Leavers,085957,Secure Management,Supplies and Services,304245,Equipment and Materials,15-Mar-2018,000007133025977,Amazon UK Marketplace,5942,Materials,25.98,0.00,25.98
Children and Young Peoples Services,Head of Looked After Provision Permanence and Care Leavers,085965,Barnard,Supplies and Services,324117,Provisions,15-Mar-2018,000007133025985,TESCO STORES 6329,5411,Catering costs - provisions,69.56,0.00,69.56
Children and Young Peoples Services,Head of Looked After Provision Permanence and Care Leavers,085957,Secure Management,Supplies and Services,328041,Clothing Uniforms and Laundry,15-Mar-2018,000007133025987,VERY,5964,Clothing uniforms and laundry,-65.00,0.00,-65.00
Adult and Health Services,Head of Adults,055301,Stanley Pathways,Supplies and Services,324117,Provisions,15-Mar-2018,000007133026007,ASDA SUPERSTORE,5411,Catering costs - provisions,7.00,0.00,7.00
Regeneration and Local Services,Direct Services,021235,Catering - Wharton Park,Supplies and Services,324117,Provisions,15-Mar-2018,000007133026079,JR HOLLAND FOODSERVICE,5422,Catering costs - provisions,30.19,0.00,30.19
Children and Young Peoples Services,Head of Looked After Provision Permanence and Care Leavers,085363,LAC & Permanence Team 3,Supplies and Services,304259,Equipment and Materials,15-Mar-2018,000007133026081,HM PASSPORT OFFICE,9399,Equipment-purchase and rental,46.00,0.00,46.00
Regeneration and Local Services,Economic Development and Housing,030554,International Relations,Supplies and Services,384926,Miscellaneous Expenses,15-Mar-2018,000007133026103,EUROWINGS AVIATION GMB,4511,International visits,-231.98,0.00,-231.98
Children and Young Peoples Services,Childrens Services Operational Support,052986,CYPS - Locality and Operational Support,Supplies and Services,304259,Equipment and Materials,15-Mar-2018,000007133026107,DARLINGTON BC INTERNET,9399,Equipment-purchase and rental,12.00,0.00,12.00
Children and Young Peoples Services,Childrens Services Operational Support,052986,CYPS - Locality and Operational Support,Supplies and Services,308011,Furniture,15-Mar-2018,000007133026111,EDS BEDS LTD,5712,Furniture repair and replacement,243.00,0.00,243.00
Resources,Digital and Customer Services,065481,Technical Services,Supplies and Services,304335,Equipment and Materials,15-Mar-2018,000007139244681,cmindscom,7399,ICT supplies etc,28.08,0.00,28.08
Regeneration and Local Services,Economic Development and Housing,031576,B& B - Temp Accom,Supplies and Services,364320,Grants to Voluntary Organisations,15-Mar-2018,000007139245087,PREMIER INN,3811,Accommodation assistance,65.00,0.00,65.00
Regeneration and Local Services,Economic Development and Housing,031576,B& B - Temp Accom,Supplies and Services,364320,Grants to Voluntary Organisations,15-Mar-2018,000007139245091,PREMIER INN,3811,Accommodation assistance,494.00,0.00,494.00
Regeneration and Local Services,Culture & Sport,011060,Hardwick Park Catering,Supplies and Services,324117,Provisions,15-Mar-2018,000007145886909,BATLEYS PERTH,5300,Catering costs - provisions,259.56,43.26,216.30
Regeneration and Local Services,Culture & Sport,011060,Hardwick Park Catering,Supplies and Services,324117,Provisions,15-Mar-2018,000007145886909 - 1,BATLEYS PERTH,5300,Catering costs - provisions,257.28,,257.28
Regeneration and Local Services,Culture & Sport,011060,Hardwick Park Catering,Supplies and Services,324117,Provisions,15-Mar-2018,000007145886921,BATLEYS PERTH,5300,Catering costs - provisions,-4.58,0.00,-4.58
Regeneration and Local Services,Direct Services,021234,Catering - Locomotion,Supplies and Services,324117,Provisions,15-Mar-2018,000007145886953,BATLEYS PERTH,5300,Catering costs - provisions,18.81,0.00,18.81
Children and Young Peoples Services,Head of Looked After Provision Permanence and Care Leavers,085957,Secure Management,Supplies and Services,304245,Equipment and Materials,15-Mar-2018,000007198838493,WWW.UTTINGS.CO.UK,5941,Materials,19.98,0.00,19.98
Regeneration and Local Services,Economic Development and Housing,030699,Business Growth and Innovation General,Supplies and Services,342033,Computers and Communications,16-Mar-2018,000007133025575,WATCHFULPAYPAL,7379,Computer hardware,0.39,0.00,0.39
Regeneration and Local Services,Economic Development and Housing,030699,Business Growth and Innovation General,Supplies and Services,304999,Equipment and Materials,16-Mar-2018,000007133025577,MOZ,5817,Misc equipment tools and materials,1.96,0.00,1.96
Regeneration and Local Services,Economic Development and Housing,031576,B& B - Temp Accom,Supplies and Services,364320,Grants to Voluntary Organisations,16-Mar-2018,000007139244669,HOTEL 52,7011,Accommodation assistance,300.00,50.00,250.00
Regeneration and Local Services,Economic Development and Housing,031576,B& B - Temp Accom,Supplies and Services,364320,Grants to Voluntary Organisations,16-Mar-2018,000007139244673,PREMIER INN,3811,Accommodation assistance,184.00,30.67,153.33
Children and Young Peoples Services,Head of Early Help Assessment and Safeguarding,088037,One Point YEI,Employees,040149,Recruitment Instruction and Training,16-Mar-2018,000007139244697,THE COURSE MIX,8299,Training-all costs,19.00,0.00,19.00
Regeneration and Local Services,Culture & Sport,054401,Strategic Management Libraries,Employees,040149,Recruitment Instruction and Training,16-Mar-2018,000007139244709,SJASUPLIES,8398,Training-all costs,130.80,0.00,130.80
Regeneration and Local Services,Economic Development and Housing,030705,Visit County Durham,Supplies and Services,352001,Conference Expenses,16-Mar-2018,000007139244727,RADISSON BLU,3583,Conferencesseminars fees etc,432.00,72.00,360.00
Regeneration and Local Services,Economic Development and Housing,030737,Durham Works Flexible Fund,Transport,230031,Contract Hire,16-Mar-2018,000007139244807,ARRIVA NORTH EAST,4131,Pupils-transport to play fields etc,28.00,0.00,28.00
Regeneration and Local Services,Direct Services,021242,Catering - County Hall,Supplies and Services,324117,Provisions,16-Mar-2018,000007139244813,HOPWELLS LTD,5811,Catering costs - provisions,328.10,0.00,328.10
Regeneration and Local Services,Direct Services,021242,Catering - County Hall,Supplies and Services,324117,Provisions,16-Mar-2018,000007139244817,JR HOLLAND FOODSERVICE,5422,Catering costs - provisions,51.10,0.00,51.10
Regeneration and Local Services,Direct Services,021242,Catering - County Hall,Supplies and Services,324117,Provisions,16-Mar-2018,000007139244819,HOPWELLS LTD,5811,Catering costs - provisions,-17.88,0.00,-17.88
Regeneration and Local Services,Economic Development and Housing,030737,Durham Works Flexible Fund,Transport,235057,Public Transport,16-Mar-2018,000007139244833,ARRIVA NORTH EAST,4131,Staff travelling,7.00,0.00,7.00
Regeneration and Local Services,Economic Development and Housing,030737,Durham Works Flexible Fund,Transport,235057,Public Transport,16-Mar-2018,000007139244837,ARRIVA NORTH EAST,4131,Staff travelling,21.00,0.00,21.00
Regeneration and Local Services,Economic Development and Housing,030749,Employability - Youth Contract,Transport,235057,Public Transport,16-Mar-2018,000007139244917,ARRIVA NORTH EAST,4131,Staff travelling,23.00,0.00,23.00
Regeneration and Local Services,Spatial Policy Planning Assets & Environment,031221,North Pennines - Bowlees,Supplies and Services,304403,Equipment and Materials,16-Mar-2018,000007139244937,W E & J ROWLE,5947,Other consumables,24.48,0.00,24.48
Regeneration and Local Services,Direct Services,010301,C&G - North Grounds Maintenance,Third Party Payments,430100,Rendered by Private Contractors,16-Mar-2018,000007139244969,JOHN WARREN (ANIMAL BY,7399,Payments to sub-contractors,10.80,0.00,10.80
Regeneration and Local Services,Economic Development and Housing,030737,Durham Works Flexible Fund,Supplies and Services,348037,Subsistence,16-Mar-2018,000007139244973,ARRIVA NORTH EAST,4131,Subsistence,23.00,0.00,23.00
Children and Young Peoples Services,Head of Early Help Assessment and Safeguarding,088037,One Point YEI,Supplies and Services,304403,Equipment and Materials,16-Mar-2018,000007139244987,GRO HM PASSPORT OFFICE,9399,Other consumables,18.50,0.00,18.50
Regeneration and Local Services,Culture & Sport,054813,Gala Theatre - Technical,Supplies and Services,312011,Newspapers Books and Periodicals,16-Mar-2018,000007139244993,Amazon UK Marketplace,5942,Books-school library,10.35,0.00,10.35
Regeneration and Local Services,Culture & Sport,011060,Hardwick Park Catering,Supplies and Services,324117,Provisions,16-Mar-2018,000007139245027,HOPWELLS LTD,5811,Catering costs - provisions,78.78,13.13,65.65
Regeneration and Local Services,Culture & Sport,011060,Hardwick Park Catering,Supplies and Services,324117,Provisions,16-Mar-2018,000007139245027 - 1,HOPWELLS LTD,5811,Catering costs - provisions,111.52,,111.52
Regeneration and Local Services,Culture & Sport,011060,Hardwick Park Catering,Supplies and Services,324117,Provisions,16-Mar-2018,000007139245031,JR HOLLAND FOODSERVICE,5422,Catering costs - provisions,16.95,0.00,16.95
Regeneration and Local Services,Economic Development and Housing,030755,Durham Employment & Skills - Other Training,Employees,040149,Recruitment Instruction and Training,16-Mar-2018,000007139245047,CITB,8220,Training-all costs,30.00,5.00,25.00
Regeneration and Local Services,Economic Development and Housing,030755,Durham Employment & Skills - Other Training,Employees,040149,Recruitment Instruction and Training,16-Mar-2018,000007139245049,CITB,8220,Training-all costs,30.00,5.00,25.00
Regeneration and Local Services,Economic Development and Housing,030755,Durham Employment & Skills - Other Training,Employees,040149,Recruitment Instruction and Training,16-Mar-2018,000007139245053,CITB,8220,Training-all costs,30.00,5.00,25.00
Regeneration and Local Services,Economic Development and Housing,030755,Durham Employment & Skills - Other Training,Employees,040149,Recruitment Instruction and Training,16-Mar-2018,000007139245055,CITB,8220,Training-all costs,30.00,5.00,25.00
Children and Young Peoples Services,Head of Looked After Provision Permanence and Care Leavers,085332,Middlestone Moor CU,Supplies and Services,324117,Provisions,16-Mar-2018,000007139245065,HOME BARGAINS SPENNYMO,5251,Catering costs - provisions,12.30,2.05,10.25
Children and Young Peoples Services,Head of Looked After Provision Permanence and Care Leavers,085332,Middlestone Moor CU,Supplies and Services,324117,Provisions,16-Mar-2018,000007139245065 - 1,HOME BARGAINS SPENNYMO,5251,Catering costs - provisions,10.06,,10.06
Children and Young Peoples Services,Head of Looked After Provision Permanence and Care Leavers,085332,Middlestone Moor CU,Supplies and Services,324117,Provisions,16-Mar-2018,000007139245069,ASDA SUPERSTORE 4987,5411,Catering costs - provisions,50.78,0.00,50.78
Regeneration and Local Services,Direct Services,021234,Catering - Locomotion,Supplies and Services,324117,Provisions,16-Mar-2018,000007139245071,HOPWELLS LTD,5811,Catering costs - provisions,39.66,6.61,33.05
Regeneration and Local Services,Direct Services,021234,Catering - Locomotion,Supplies and Services,324117,Provisions,16-Mar-2018,000007139245071 - 1,HOPWELLS LTD,5811,Catering costs - provisions,115.28,,115.28
Regeneration and Local Services,Economic Development and Housing,031576,B& B - Temp Accom,Supplies and Services,364320,Grants to Voluntary Organisations,16-Mar-2018,000007139245075,TRAVELODGE,3615,Accommodation assistance,144.75,0.00,144.75
Regeneration and Local Services,Direct Services,010525,Catering - Green Lane,Supplies and Services,324117,Provisions,16-Mar-2018,000007139245095,JR HOLLAND FOODSERVICE,5422,Catering costs - provisions,78.97,0.00,78.97
Adult and Health Services,EnvironmentHealth & Consumer Protection,010829,Environment Protection,Employees,040149,Recruitment Instruction and Training,16-Mar-2018,000007139245117,CIEH,8699,Training-all costs,189.00,0.00,189.00
Adult and Health Services,EnvironmentHealth & Consumer Protection,010829,Environment Protection,Employees,040149,Recruitment Instruction and Training,16-Mar-2018,000007139245121,RICARDO-AEA LTD,7392,Training-all costs,"2,302.80",383.80,1919.00
Regeneration and Local Services,Economic Development and Housing,030554,International Relations,Supplies and Services,348037,Subsistence,16-Mar-2018,000007139245133,FOX CUB,5813,Subsistence,52.45,0.00,52.45
Regeneration and Local Services,Economic Development and Housing,031576,B& B - Temp Accom,Supplies and Services,384999,Miscellaneous Expenses,16-Mar-2018,000007139245135,PREMIER INN,3811,Other expenses,185.00,30.83,154.17
Regeneration and Local Services,Economic Development and Housing,031576,B& B - Temp Accom,Supplies and Services,384999,Miscellaneous Expenses,16-Mar-2018,000007139245137,PREMIER INN,3811,Other expenses,206.47,34.41,172.06
Children and Young Peoples Services,Head of Looked After Provision Permanence and Care Leavers,085333,Coxhoe Satelite Home,Supplies and Services,324117,Provisions,16-Mar-2018,000007139245171,TESCO STORES 2371,5411,Catering costs - provisions,124.92,0.00,124.92
Adult and Health Services,Head of Adults,055643,Hawthorn House LD Respite Unit,Supplies and Services,324117,Provisions,16-Mar-2018,000007139245205,HOPWELLS LTD,5811,Catering costs - provisions,1.50,0.25,1.25
Adult and Health Services,Head of Adults,055643,Hawthorn House LD Respite Unit,Supplies and Services,324117,Provisions,16-Mar-2018,000007139245205 - 1,HOPWELLS LTD,5811,Catering costs - provisions,23.91,,23.91
Adult and Health Services,Head of Adults,055643,Hawthorn House LD Respite Unit,Supplies and Services,324117,Provisions,16-Mar-2018,000007139245209,JR HOLLAND FOODSERVICE,5422,Catering costs - provisions,10.27,0.00,10.27
Adult and Health Services,Head of Adults,055643,Hawthorn House LD Respite Unit,Supplies and Services,324117,Provisions,16-Mar-2018,000007139245211,JR HOLLAND FOODSERVICE,5422,Catering costs - provisions,7.94,0.00,7.94
Regeneration and Local Services,Spatial Policy Planning Assets & Environment,031200,North Pennines Core,Supplies and Services,304221,Equipment and Materials,16-Mar-2018,000007139245215,TMPCN WSHOP,5085,Direct materials,30.94,0.00,30.94
Children and Young Peoples Services,Head of Looked After Provision Permanence and Care Leavers,085957,Secure Management,Supplies and Services,328041,Clothing Uniforms and Laundry,16-Mar-2018,000007139245257,Amazon EU,5969,Clothing uniforms and laundry,22.24,0.00,22.24
Children and Young Peoples Services,Head of Looked After Provision Permanence and Care Leavers,085957,Secure Management,Supplies and Services,384999,Miscellaneous Expenses,16-Mar-2018,000007139245261,BAKER ROSS LTD,5970,Other expenses,158.04,0.00,158.04
Children and Young Peoples Services,Head of Looked After Provision Permanence and Care Leavers,085955,Auckland,Supplies and Services,384999,Miscellaneous Expenses,16-Mar-2018,000007139245263,SP CUT IT OUT.CO.UK,5734,Other expenses,12.99,0.00,12.99
Children and Young Peoples Services,Head of Looked After Provision Permanence and Care Leavers,085956,Lumley,Supplies and Services,324117,Provisions,16-Mar-2018,000007139245267,TESCO STORES 6329,5411,Catering costs - provisions,108.47,0.00,108.47
Children and Young Peoples Services,Head of Looked After Provision Permanence and Care Leavers,085957,Secure Management,Supplies and Services,304245,Equipment and Materials,16-Mar-2018,000007139245269,SCREWFIX DIRECT,5211,Materials,74.45,0.00,74.45
Dedicated Schools Grant,Dedicated Schools Grant,079040,SENSS-HQ,Supplies and Services,312011,Newspapers Books and Periodicals,16-Mar-2018,000007139245283,Amazon UK Marketplace,5942,Books-school library,46.66,0.00,46.66
Regeneration and Local Services,Direct Services,021324,Catering - Meadowfield,Supplies and Services,324117,Provisions,16-Mar-2018,000007139245303,JR HOLLAND FOODSERVICE,5422,Catering costs - provisions,36.72,0.00,36.72
Regeneration and Local Services,Direct Services,021324,Catering - Meadowfield,Supplies and Services,324117,Provisions,16-Mar-2018,000007139245309,JR HOLLAND FOODSERVICE,5422,Catering costs - provisions,9.90,0.00,9.90
Children and Young Peoples Services,Head of Looked After Provision Permanence and Care Leavers,085363,LAC & Permanence Team 3,Supplies and Services,304259,Equipment and Materials,16-Mar-2018,000007139245479,HARTLEPOOL BC CNP,9399,Equipment-purchase and rental,14.00,0.00,14.00
Children and Young Peoples Services,Head of Looked After Provision Permanence and Care Leavers,085363,LAC & Permanence Team 3,Supplies and Services,304259,Equipment and Materials,16-Mar-2018,000007139245481,WWW.DURHAM.GOV.UK,9399,Equipment-purchase and rental,48.00,0.00,48.00
Regeneration and Local Services,Direct Services,021242,Catering - County Hall,Supplies and Services,324117,Provisions,16-Mar-2018,000007145886731,BATLEYS PERTH,5300,Catering costs - provisions,546.48,91.08,455.40
Regeneration and Local Services,Direct Services,021242,Catering - County Hall,Supplies and Services,324117,Provisions,16-Mar-2018,000007145886731 - 1,BATLEYS PERTH,5300,Catering costs - provisions,121.32,,121.32
Regeneration and Local Services,Culture & Sport,011060,Hardwick Park Catering,Supplies and Services,324117,Provisions,16-Mar-2018,000007145886913,BATLEYS PERTH,5300,Catering costs - provisions,82.26,13.71,68.55
Regeneration and Local Services,Culture & Sport,011060,Hardwick Park Catering,Supplies and Services,324117,Provisions,16-Mar-2018,000007145886913 - 1,BATLEYS PERTH,5300,Catering costs - provisions,150.29,,150.29
Regeneration and Local Services,Culture & Sport,011060,Hardwick Park Catering,Supplies and Services,324117,Provisions,16-Mar-2018,000007145886923,BATLEYS PERTH,5300,Catering costs - provisions,-2.19,0.00,-2.19
Regeneration and Local Services,Culture & Sport,011060,Hardwick Park Catering,Supplies and Services,324117,Provisions,16-Mar-2018,000007145886927,BATLEYS PERTH,5300,Catering costs - provisions,-17.22,0.00,-17.22
Regeneration and Local Services,Direct Services,010525,Catering - Green Lane,Supplies and Services,324117,Provisions,16-Mar-2018,000007145886971,BATLEYS PERTH,5300,Catering costs - provisions,187.02,31.17,155.85
Regeneration and Local Services,Direct Services,010525,Catering - Green Lane,Supplies and Services,324117,Provisions,16-Mar-2018,000007145886971 - 1,BATLEYS PERTH,5300,Catering costs - provisions,112.82,,112.82
Regeneration and Local Services,Direct Services,010525,Catering - Green Lane,Supplies and Services,324117,Provisions,16-Mar-2018,000007145886977,BATLEYS PERTH,5300,Catering costs - provisions,43.02,7.17,35.85
Regeneration and Local Services,Direct Services,010525,Catering - Green Lane,Supplies and Services,324117,Provisions,16-Mar-2018,000007145886977 - 1,BATLEYS PERTH,5300,Catering costs - provisions,13.95,,13.95
Adult and Health Services,Head of Adults,055643,Hawthorn House LD Respite Unit,Supplies and Services,324117,Provisions,16-Mar-2018,000007145887073,BATLEYS PERTH,5300,Catering costs - provisions,31.44,5.24,26.20
Adult and Health Services,Head of Adults,055643,Hawthorn House LD Respite Unit,Supplies and Services,324117,Provisions,16-Mar-2018,000007145887073 - 1,BATLEYS PERTH,5300,Catering costs - provisions,55.69,,55.69
Adult and Health Services,Head of Adults,055643,Hawthorn House LD Respite Unit,Supplies and Services,324117,Provisions,16-Mar-2018,000007145887075,BATLEYS PERTH,5300,Catering costs - provisions,4.25,0.00,4.25
Adult and Health Services,Head of Adults,055643,Hawthorn House LD Respite Unit,Supplies and Services,324117,Provisions,16-Mar-2018,000007145887077,BATLEYS PERTH,5300,Catering costs - provisions,4.25,0.00,4.25
Adult and Health Services,EnvironmentHealth & Consumer Protection,010827,Health Protection,Supplies and Services,304403,Equipment and Materials,16-Mar-2018,000007150565923,Amazon UK Marketplace,5942,Other consumables,6.10,1.02,5.08
Children and Young Peoples Services,Head of Looked After Provision Permanence and Care Leavers,085957,Secure Management,Supplies and Services,328041,Clothing Uniforms and Laundry,16-Mar-2018,000007150566187,Amazon UK Marketplace,5942,Clothing uniforms and laundry,16.90,0.00,16.90
Children and Young Peoples Services,Head of Looked After Provision Permanence and Care Leavers,085341,High Etherley Satelite Home,Supplies and Services,324117,Provisions,17-Mar-2018,000007139244649,TESCO STORES 6329,5411,Catering costs - provisions,120.39,0.00,120.39
Children and Young Peoples Services,Head of Looked After Provision Permanence and Care Leavers,085342,9 Cedar Drive Aycliffe,Supplies and Services,324117,Provisions,17-Mar-2018,000007139244765,ASDA HOME SHOPPING,5411,Catering costs - provisions,156.52,0.00,156.52
Children and Young Peoples Services,Head of Looked After Provision Permanence and Care Leavers,085342,9 Cedar Drive Aycliffe,Supplies and Services,324117,Provisions,17-Mar-2018,000007139244769,ASDA HOME SHOPPING,5411,Catering costs - provisions,-0.22,0.00,-0.22
Children and Young Peoples Services,Head of Looked After Provision Permanence and Care Leavers,085954,Walworth,Supplies and Services,324117,Provisions,17-Mar-2018,000007139245273,TESCO STORES 6329,5411,Catering costs - provisions,95.38,0.00,95.38
Resources,Digital and Customer Services,069010,Administration,Supplies and Services,342033,Computers and Communications,17-Mar-2018,000007139245455,STK SHUTTERSTOCK.COM,7333,Computer hardware,70.80,0.00,70.80
Children and Young Peoples Services,Head of Looked After Provision Permanence and Care Leavers,085333,Coxhoe Satelite Home,Supplies and Services,304259,Equipment and Materials,17-Mar-2018,000007155499445,SPORTSDIRECT.COM,5941,Equipment-purchase and rental,185.72,0.00,185.72
Regeneration and Local Services,Culture & Sport,054813,Gala Theatre - Technical,Supplies and Services,312011,Newspapers Books and Periodicals,18-Mar-2018,000007139244995,Amazon UK Marketplace,5942,Books-school library,8.98,0.00,8.98
Regeneration and Local Services,Culture & Sport,054813,Gala Theatre - Technical,Supplies and Services,312011,Newspapers Books and Periodicals,18-Mar-2018,000007139244999,Amazon UK Marketplace,5942,Books-school library,33.95,0.00,33.95
Regeneration and Local Services,Culture & Sport,054813,Gala Theatre - Technical,Supplies and Services,312011,Newspapers Books and Periodicals,18-Mar-2018,000007139245001,Amazon UK Marketplace,5942,Books-school library,18.99,0.00,18.99
Regeneration and Local Services,Culture & Sport,054813,Gala Theatre - Technical,Supplies and Services,312011,Newspapers Books and Periodicals,18-Mar-2018,000007139245005,Amazon UK Marketplace,5942,Books-school library,5.32,0.00,5.32
Regeneration and Local Services,Culture & Sport,054813,Gala Theatre - Technical,Supplies and Services,312011,Newspapers Books and Periodicals,18-Mar-2018,000007139245007,Amazon UK Marketplace,5942,Books-school library,46.74,0.00,46.74
Children and Young Peoples Services,Head of Looked After Provision Permanence and Care Leavers,085551,Short Break Services-Park Hse Sher,Supplies and Services,324117,Provisions,18-Mar-2018,000007139245061,TESCO STORES 6329,5411,Catering costs - provisions,278.00,0.00,278.00
Regeneration and Local Services,Direct Services,020041,Bldg Serv - Business Development - General,Supplies and Services,342033,Computers and Communications,18-Mar-2018,000007139245163,Amazon UK Marketplace,5942,Computer hardware,28.96,0.00,28.96
Regeneration and Local Services,Direct Services,020041,Bldg Serv - Business Development - General,Supplies and Services,342033,Computers and Communications,18-Mar-2018,000007139245167,Amazon UK Marketplace,5942,Computer hardware,26.34,0.00,26.34
Dedicated Schools Grant,Dedicated Schools Grant,079040,SENSS-HQ,Supplies and Services,312011,Newspapers Books and Periodicals,18-Mar-2018,000007139245285,Amazon UK Marketplace,5942,Books-school library,37.99,0.00,37.99
Dedicated Schools Grant,Dedicated Schools Grant,079040,SENSS-HQ,Supplies and Services,312011,Newspapers Books and Periodicals,18-Mar-2018,000007139245289,Amazon EU,5969,Books-school library,18.76,0.00,18.76
Transformation and Partnerships,Partnerships & Community Engagement Div.,060472,Syrian Vulnerable Persons Scheme,Supplies and Services,308011,Furniture,18-Mar-2018,000007139245499,SP TERRYS FABRICS,5691,Furniture repair and replacement,302.92,50.49,252.43
Transformation and Partnerships,Partnerships & Community Engagement Div.,060472,Syrian Vulnerable Persons Scheme,Supplies and Services,308011,Furniture,18-Mar-2018,000007139245501,SP TERRYS FABRICS,5691,Furniture repair and replacement,300.91,50.15,250.76
Transformation and Partnerships,Partnerships & Community Engagement Div.,060472,Syrian Vulnerable Persons Scheme,Supplies and Services,308011,Furniture,18-Mar-2018,000007139245505,VERTICAL BLINDS DIRECT,5719,Furniture repair and replacement,177.43,29.57,147.86
Transformation and Partnerships,Partnerships & Community Engagement Div.,060472,Syrian Vulnerable Persons Scheme,Supplies and Services,308011,Furniture,18-Mar-2018,000007139245507,WILKO.COM,5722,Furniture repair and replacement,74.00,12.33,61.67
Regeneration and Local Services,Economic Development and Housing,031576,B& B - Temp Accom,Supplies and Services,384999,Miscellaneous Expenses,18-Mar-2018,000007145886985,PREMIER INN,3811,Other expenses,61.00,10.17,50.83
Regeneration and Local Services,Economic Development and Housing,031576,B& B - Temp Accom,Supplies and Services,384999,Miscellaneous Expenses,18-Mar-2018,000007145886989,PREMIER INN,3811,Other expenses,61.00,10.17,50.83
